Workbook

Sheet Main
B10: 2024-03-14
B12: Sheet No. | C12: Template Name | D12: Summary
B13: 1 | C13: Future Intra | D13: For Intraday trading in F&O segment
B14: 2 | C14: Cash Intra | D14: For Intraday trading in cash market segment
B15: 3 | C15: Mid-cap Intra | D15: For Intraday trading in Mid-cap stocks
B16: 4 | C16: Bulk Deals | D16: Reveals Bulk Deals carried on NSE & BSE
B17: 5 | C17: Call Tracker
K27: `

Sheet Future Intra
M5: Back to Main Page
A6: FOR INTRA DAY TRADING | L6: =Main!B10 -> 2024-03-14
A9: Sr.no | B9: Sector | C9: Scrip | D9: Expiry Date | E9: CLOSE RATE | F9: Pivot Point | G9: Supports | J9: Resistances
E10: Point | F10: Point | G10: S1 | H10: S2 | I10: S3 | J10: R1 | K10: R2 | L10: R3 | M10: HIGH | N10: LOW | O10: OI | P10: % Change in OI
A11: 1 | B11: Index | C11: NIFTY | D11: 2024-03-28 | E11: 22103.25 | F11: 22214.42 | G11: 21913.83 | H11: 21724.42 | I11: 21423.83 | J11: 22403.83 | K11: 22704.42 | L11: 22893.83 | M11: 22515 | N11: 22025 | O11: 15483150 | P11: -0.95%
A12: 2 | B12: Index | C12: BANKNIFTY | D12: 2024-03-27 | E12: 47081.35 | F12: 47237.73 | G12: 46791.17 | H12: 46500.98 | I12: 46054.42 | J12: 47527.92 | K12: 47974.48 | L12: 48264.67 | M12: 47684.3 | N12: 46947.55 | O12: 5336190 | P12: 2.13%
A13: 3 | B13: Index | C13: FINNIFTY | D13: 2024-03-26 | E13: 20795.30 | F13: 20854.95 | G13: 20697.45 | H13: 20599.60 | I13: 20442.10 | J13: 20952.80 | K13: 21110.30 | L13: 21208.15 | M13: 21012.45 | N13: 20757.1 | O13: 73160 | P13: -8.69%
A14: 4 | B14: Index | C14: MIDCPNIFTY | D14: 2024-03-22 | E14: 10386.35 | F14: 10492.60 | G14: 10211.10 | H14: 10035.85 | I14: 9754.35 | J14: 10667.85 | K14: 10949.35 | L14: 11124.60 | M14: 10774.1 | N14: 10317.35 | O14: 1446525 | P14: 2.51%
A15: 5 | B15: Chemical | C15: AARTIIND | D15: 2024-03-28 | E15: 621.45 | F15: 630.57 | G15: 605.03 | H15: 588.62 | I15: 563.08 | J15: 646.98 | K15: 672.52 | L15: 688.93 | M15: 656.1 | N15: 614.15 | O15: 13951000 | P15: -2.74%
A16: 6 | B16: Capital_Goods | C16: ABB | D16: 2024-03-28 | E16: 5627.50 | F16: 5687.75 | G16: 5542.75 | H16: 5458.00 | I16: 5313.00 | J16: 5772.50 | K16: 5917.50 | L16: 6002.25 | M16: 5832.75 | N16: 5603 | O16: 1082250 | P16: -2.54%
A17: 7 | B17: Pharma | C17: ABBOTINDIA | D17: 2024-03-28 | E17: 27482.25 | F17: 27358.42 | G17: 27077.83 | H17: 26673.42 | I17: 26392.83 | J17: 27762.83 | K17: 28043.42 | L17: 28447.83 | M17: 27639 | N17: 26954 | O17: 210040 | P17: -0.77%
A18: 8 | B18: Others | C18: ABCAPITAL | D18: 2024-03-28 | E18: 171.90 | F18: 175.45 | G18: 166.40 | H18: 160.90 | I18: 151.85 | J18: 180.95 | K18: 190.00 | L18: 195.50 | M18: 184.5 | N18: 169.95 | O18: 58606200 | P18: 5.28%
A19: 9 | B19: Textile | C19: ABFRL | D19: 2024-03-28 | E19: 200.50 | F19: 204.98 | G19: 194.02 | H19: 187.53 | I19: 176.57 | J19: 211.47 | K19: 222.43 | L19: 228.92 | M19: 215.95 | N19: 198.5 | O19: 47195200 | P19: -5.23%
A20: 10 | B20: Cement | C20: ACC | D20: 2024-03-28 | E20: 2400.75 | F20: 2450.92 | G20: 2316.83 | H20: 2232.92 | I20: 2098.83 | J20: 2534.83 | K20: 2668.92 | L20: 2752.83 | M20: 2585 | N20: 2367 | O20: 4833600 | P20: -0.42%
A21: 11 | B21: Others | C21: ADANIENT | D21: 2024-03-28 | E21: 2917.05 | F21: 2979.93 | G21: 2795.02 | H21: 2672.98 | I21: 2488.07 | J21: 3101.97 | K21: 3286.88 | L21: 3408.92 | M21: 3164.85 | N21: 2857.9 | O21: 19495800 | P21: 8.24%
A22: 12 | B22: Others | C22: ADANIPORTS | D22: 2024-03-28 | E22: 1216.50 | F22: 1240.90 | G22: 1169.10 | H22: 1121.70 | I22: 1049.90 | J22: 1288.30 | K22: 1360.10 | L22: 1407.50 | M22: 1312.7 | N22: 1193.5 | O22: 42417600 | P22: 9.94%
A23: 13 | B23: Pharma | C23: ALKEM | D23: 2024-03-28 | E23: 4963.65 | F23: 4994.77 | G23: 4892.53 | H23: 4821.42 | I23: 4719.18 | J23: 5065.88 | K23: 5168.12 | L23: 5239.23 | M23: 5097 | N23: 4923.65 | O23: 1049200 | P23: 3.15%
A24: 14 | B24: Cement | C24: AMBUJACEM | D24: 2024-03-28 | E24: 560.55 | F24: 568.30 | G24: 544.60 | H24: 528.65 | I24: 504.95 | J24: 584.25 | K24: 607.95 | L24: 623.90 | M24: 592 | N24: 552.35 | O24: 45248400 | P24: -2.86%
A25: 15 | B25: Others | C25: APOLLOHOSP | D25: 2024-03-28 | E25: 6039.95 | F25: 6070.13 | G25: 5955.42 | H25: 5870.88 | I25: 5756.17 | J25: 6154.67 | K25: 6269.38 | L25: 6353.92 | M25: 6184.85 | N25: 5985.6 | O25: 2278625 | P25: 1.00%
A26: 16 | B26: Automobile | C26: APOLLOTYRE | D26: 2024-03-28 | E26: 488.00 | F26: 495.03 | G26: 478.22 | H26: 468.43 | I26: 451.62 | J26: 504.82 | K26: 521.63 | L26: 531.42 | M26: 511.85 | N26: 485.25 | O26: 13307600 | P26: 0.88%
A27: 17 | B27: Automobile | C27: ASHOKLEY | D27: 2024-03-28 | E27: 160.60 | F27: 162.82 | G27: 157.43 | H27: 154.27 | I27: 148.88 | J27: 165.98 | K27: 171.37 | L27: 174.53 | M27: 168.2 | N27: 159.65 | O27: 115980000 | P27: -1.15%
A28: 18 | B28: FMCG | C28: ASIANPAINT | D28: 2024-03-28 | E28: 2866.05 | F28: 2868.33 | G28: 2841.72 | H28: 2817.38 | I28: 2790.77 | J28: 2892.67 | K28: 2919.28 | L28: 2943.62 | M28: 2894.95 | N28: 2844 | O28: 7685800 | P28: -1.94%
A29: 19 | B29: Others | C29: ASTRAL | D29: 2024-03-28 | E29: 2002.35 | F29: 2025.12 | G29: 1962.23 | H29: 1922.12 | I29: 1859.23 | J29: 2065.23 | K29: 2128.12 | L29: 2168.23 | M29: 2088 | N29: 1985 | O29: 3475857 | P29: -1.57%
A30: 20 | B30: Others | C30: ATUL | D30: 2024-03-28 | E30: 5974.95 | F30: 6003.22 | G30: 5902.78 | H30: 5830.62 | I30: 5730.18 | J30: 6075.38 | K30: 6175.82 | L30: 6247.98 | M30: 6103.65 | N30: 5931.05 | O30: 382950 | P30: 5.39%
A31: 21 | B31: Banking | C31: AUBANK | D31: 2024-03-28 | E31: 576.25 | F31: 578.55 | G31: 569.55 | H31: 562.85 | I31: 553.85 | J31: 585.25 | K31: 594.25 | L31: 600.95 | M31: 587.55 | N31: 571.85 | O31: 20920000 | P31: -5.26%
A32: 22 | B32: Pharma | C32: AUROPHARMA | D32: 2024-03-28 | E32: 1007.60 | F32: 1021.82 | G32: 972.93 | H32: 938.27 | I32: 889.38 | J32: 1056.48 | K32: 1105.37 | L32: 1140.03 | M32: 1070.7 | N32: 987.15 | O32: 20335700 | P32: -0.50%
A33: 23 | B33: Banking | C33: AXISBANK | D33: 2024-03-28 | E33: 1083.15 | F33: 1087.68 | G33: 1071.97 | H33: 1060.78 | I33: 1045.07 | J33: 1098.87 | K33: 1114.58 | L33: 1125.77 | M33: 1103.4 | N33: 1076.5 | O33: 45217500 | P33: -4.93%
A34: 24 | B34: Automobile | C34: BAJAJ-AUTO | D34: 2024-03-28 | E34: 8400.55 | F34: 8455.57 | G34: 8276.13 | H34: 8151.72 | I34: 7972.28 | J34: 8579.98 | K34: 8759.42 | L34: 8883.83 | M34: 8635 | N34: 8331.15 | O34: 2434750 | P34: -0.75%
A35: 25 | B35: Finance | C35: BAJAJFINSV | D35: 2024-03-28 | E35: 1576.55 | F35: 1583.05 | G35: 1562.30 | H35: 1548.05 | I35: 1527.30 | J35: 1597.30 | K35: 1618.05 | L35: 1632.30 | M35: 1603.8 | N35: 1568.8 | O35: 9996500 | P35: -0.19%
A36: 26 | B36: Finance | C36: BAJFINANCE | D36: 2024-03-28 | E36: 6479.30 | F36: 6478.90 | G36: 6417.80 | H36: 6356.30 | I36: 6295.20 | J36: 6540.40 | K36: 6601.50 | L36: 6663.00 | M36: 6540 | N36: 6417.4 | O36: 9663875 | P36: -2.83%
A37: 27 | B37: Automobile | C37: BALKRISIND | D37: 2024-03-28 | E37: 2292.35 | F37: 2320.12 | G37: 2252.33 | H37: 2212.32 | I37: 2144.53 | J37: 2360.13 | K37: 2427.92 | L37: 2467.93 | M37: 2387.9 | N37: 2280.1 | O37: 2505600 | P37: -1.97%
A38: 28 | B38: Others | C38: BALRAMCHIN | D38: 2024-03-28 | E38: 349.25 | F38: 354.77 | G38: 341.13 | H38: 333.02 | I38: 319.38 | J38: 362.88 | K38: 376.52 | L38: 384.63 | M38: 368.4 | N38: 346.65 | O38: 10654400 | P38: 2.71%
A39: 29 | B39: Banking | C39: BANDHANBNK | D39: 2024-03-28 | E39: 179.35 | F39: 182.53 | G39: 174.42 | H39: 169.48 | I39: 161.37 | J39: 187.47 | K39: 195.58 | L39: 200.52 | M39: 190.65 | N39: 177.6 | O39: 107815000 | P39: 3.56%
A40: 30 | B40: Banking | C40: BANKBARODA | D40: 2024-03-28 | E40: 261.60 | F40: 265.03 | G40: 255.72 | H40: 249.83 | I40: 240.52 | J40: 270.92 | K40: 280.23 | L40: 286.12 | M40: 274.35 | N40: 259.15 | O40: 123806475 | P40: 0.74%
A41: 31 | B41: FMCG | C41: BATAINDIA | D41: 2024-03-28 | E41: 1379.20 | F41: 1393.07 | G41: 1349.43 | H41: 1319.67 | I41: 1276.03 | J41: 1422.83 | K41: 1466.47 | L41: 1496.23 | M41: 1436.7 | N41: 1363.3 | O41: 3259125 | P41: 9.90%
A42: 32 | B42: Capital_Goods | C42: BEL | D42: 2024-03-28 | E42: 190.90 | F42: 195.10 | G42: 184.40 | H42: 177.90 | I42: 167.20 | J42: 201.60 | K42: 212.30 | L42: 218.80 | M42: 205.8 | N42: 188.6 | O42: 158665200 | P42: 1.90%
A43: 33 | B43: FMCG | C43: BERGEPAINT | D43: 2024-03-28 | E43: 552.30 | F43: 555.77 | G43: 544.53 | H43: 536.77 | I43: 525.53 | J43: 563.53 | K43: 574.77 | L43: 582.53 | M43: 567 | N43: 548 | O43: 15664440 | P43: -0.57%
A44: 34 | B44: Automobile | C44: BHARATFORG | D44: 2024-03-28 | E44: 1121.30 | F44: 1133.52 | G44: 1098.93 | H44: 1076.57 | I44: 1041.98 | J44: 1155.88 | K44: 1190.47 | L44: 1212.83 | M44: 1168.1 | N44: 1111.15 | O44: 8037000 | P44: 7.31%
A45: 35 | B45: Telecom | C45: BHARTIARTL | D45: 2024-03-28 | E45: 1172.85 | F45: 1181.17 | G45: 1149.63 | H45: 1126.42 | I45: 1094.88 | J45: 1204.38 | K45: 1235.92 | L45: 1259.13 | M45: 1212.7 | N45: 1157.95 | O45: 34257950 | P45: -0.54%
A46: 36 | B46: Capital_Goods | C46: BHEL | D46: 2024-03-28 | E46: 226.35 | F46: 232.28 | G46: 217.32 | H46: 208.28 | I46: 193.32 | J46: 241.32 | K46: 256.28 | L46: 265.32 | M46: 247.25 | N46: 223.25 | O46: 96463500 | P46: 5.43%
A47: 37 | B47: Pharma | C47: BIOCON | D47: 2024-03-28 | E47: 254.05 | F47: 259.72 | G47: 245.43 | H47: 236.82 | I47: 222.53 | J47: 268.33 | K47: 282.62 | L47: 291.23 | M47: 274 | N47: 251.1 | O47: 48690000 | P47: -1.43%
A48: 38 | B48: Automobile | C48: BOSCHLTD | D48: 2024-03-28 | E48: 28443.20 | F48: 28861.80 | G48: 27804.10 | H48: 27165.00 | I48: 26107.30 | J48: 29500.90 | K48: 30558.60 | L48: 31197.70 | M48: 29919.5 | N48: 28222.7 | O48: 249350 | P48: -6.08%
A49: 39 | B49: Oil_Gas | C49: BPCL | D49: 2024-03-28 | E49: 599.35 | F49: 606.37 | G49: 584.73 | H49: 570.12 | I49: 548.48 | J49: 620.98 | K49: 642.62 | L49: 657.23 | M49: 628 | N49: 591.75 | O49: 28211400 | P49: 1.42%
A50: 40 | B50: FMCG | C50: BRITANNIA | D50: 2024-03-28 | E50: 4869.45 | F50: 4901.82 | G50: 4815.68 | H50: 4761.92 | I50: 4675.78 | J50: 4955.58 | K50: 5041.72 | L50: 5095.48 | M50: 4987.95 | N50: 4848.05 | O50: 2486800 | P50: 1.06%
A51: 41 | B51: Technology | C51: BSOFT | D51: 2024-03-28 | E51: 726.95 | F51: 745.02 | G51: 703.08 | H51: 679.22 | I51: 637.28 | J51: 768.88 | K51: 810.82 | L51: 834.68 | M51: 786.95 | N51: 721.15 | O51: 7771000 | P51: -4.04%
A52: 42 | B52: Banking | C52: CANBK | D52: 2024-03-28 | E52: 539.30 | F52: 548.28 | G52: 523.02 | H52: 506.73 | I52: 481.47 | J52: 564.57 | K52: 589.83 | L52: 606.12 | M52: 573.55 | N52: 532 | O52: 49077900 | P52: 4.68%
A53: 43 | B53: Finance | C53: CANFINHOME | D53: 2024-03-28 | E53: 723.95 | F53: 735.98 | G53: 706.97 | H53: 689.98 | I53: 660.97 | J53: 752.97 | K53: 781.98 | L53: 798.97 | M53: 765 | N53: 719 | O53: 4090125 | P53: 7.10%
A54: 44 | B54: Others | C54: CHAMBLFERT | D54: 2024-03-28 | E54: 339.25 | F54: 347.48 | G54: 328.47 | H54: 317.68 | I54: 298.67 | J54: 358.27 | K54: 377.28 | L54: 388.07 | M54: 366.5 | N54: 336.7 | O54: 8323900 | P54: 4.96%
A55: 45 | B55: Finance | C55: CHOLAFIN | D55: 2024-03-28 | E55: 1050.10 | F55: 1057.05 | G55: 1034.40 | H55: 1018.70 | I55: 996.05 | J55: 1072.75 | K55: 1095.40 | L55: 1111.10 | M55: 1079.7 | N55: 1041.35 | O55: 14143125 | P55: 0.27%
A56: 46 | B56: Pharma | C56: CIPLA | D56: 2024-03-28 | E56: 1475.30 | F56: 1472.12 | G56: 1458.98 | H56: 1442.67 | I56: 1429.53 | J56: 1488.43 | K56: 1501.57 | L56: 1517.88 | M56: 1485.25 | N56: 1455.8 | O56: 10206950 | P56: 0.17%
A57: 47 | B57: Others | C57: COALINDIA | D57: 2024-03-28 | E57: 419.15 | F57: 427.38 | G57: 403.62 | H57: 388.08 | I57: 364.32 | J57: 442.92 | K57: 466.68 | L57: 482.22 | M57: 451.15 | N57: 411.85 | O57: 60104100 | P57: 4.58%
A58: 48 | B58: Technology | C58: COFORGE | D58: 2024-03-28 | E58: 6184.65 | F58: 6218.40 | G58: 6098.30 | H58: 6011.95 | I58: 5891.85 | J58: 6304.75 | K58: 6424.85 | L58: 6511.20 | M58: 6338.5 | N58: 6132.05 | O58: 1363200 | P58: -3.05%
A59: 49 | B59: FMCG | C59: COLPAL | D59: 2024-03-28 | E59: 2571.15 | F59: 2592.93 | G59: 2528.37 | H59: 2485.58 | I59: 2421.02 | J59: 2635.72 | K59: 2700.28 | L59: 2743.07 | M59: 2657.5 | N59: 2550.15 | O59: 3337600 | P59: 3.25%
A60: 50 | B60: Others | C60: CONCOR | D60: 2024-03-28 | E60: 863.85 | F60: 883.62 | G60: 835.23 | H60: 806.62 | I60: 758.23 | J60: 912.23 | K60: 960.62 | L60: 989.23 | M60: 932 | N60: 855 | O60: 18015000 | P60: 1.10%
A61: 51 | B61: Others | C61: COROMANDEL | D61: 2024-03-28 | E61: 1069.60 | F61: 1082.63 | G61: 1047.62 | H61: 1025.63 | I61: 990.62 | J61: 1104.62 | K61: 1139.63 | L61: 1161.62 | M61: 1117.65 | N61: 1060.65 | O61: 1332100 | P61: 2.37%
A62: 52 | B62: Capital_Goods | C62: CROMPTON | D62: 2024-03-28 | E62: 278.50 | F62: 280.83 | G62: 271.52 | H62: 264.53 | I62: 255.22 | J62: 287.82 | K62: 297.13 | L62: 304.12 | M62: 290.15 | N62: 273.85 | O62: 17712000 | P62: -1.07%
A63: 53 | B63: Banking | C63: CUB | D63: 2024-03-28 | E63: 127.35 | F63: 128.98 | G63: 125.17 | H63: 122.98 | I63: 119.17 | J63: 131.17 | K63: 134.98 | L63: 137.17 | M63: 132.8 | N63: 126.8 | O63: 47630000 | P63: 5.89%
A64: 54 | B64: Capital_Goods | C64: CUMMINSIND | D64: 2024-03-28 | E64: 2683.90 | F64: 2720.00 | G64: 2630.00 | H64: 2576.10 | I64: 2486.10 | J64: 2773.90 | K64: 2863.90 | L64: 2917.80 | M64: 2810 | N64: 2666.1 | O64: 3582300 | P64: -1.60%
A65: 55 | B65: FMCG | C65: DABUR | D65: 2024-03-28 | E65: 521.85 | F65: 524.05 | G65: 514.95 | H65: 508.05 | I65: 498.95 | J65: 530.95 | K65: 540.05 | L65: 546.95 | M65: 533.15 | N65: 517.15 | O65: 22153750 | P65: 0.73%
A66: 56 | B66: Cement | C66: DALBHARAT | D66: 2024-03-28 | E66: 1829.75 | F66: 1855.97 | G66: 1781.73 | H66: 1733.72 | I66: 1659.48 | J66: 1903.98 | K66: 1978.22 | L66: 2026.23 | M66: 1930.2 | N66: 1807.95 | O66: 3445000 | P66: -1.42%
A67: 57 | B67: Chemical | C67: DEEPAKNTR | D67: 2024-03-28 | E67: 2072.65 | F67: 2096.25 | G67: 2036.55 | H67: 2000.45 | I67: 1940.75 | J67: 2132.35 | K67: 2192.05 | L67: 2228.15 | M67: 2155.95 | N67: 2060.15 | O67: 2808900 | P67: -1.71%
A68: 58 | B68: Pharma | C68: DIVISLAB | D68: 2024-03-28 | E68: 3486.15 | F68: 3517.23 | G68: 3436.92 | H68: 3387.68 | I68: 3307.37 | J68: 3566.47 | K68: 3646.78 | L68: 3696.02 | M68: 3597.55 | N68: 3468 | O68: 3862400 | P68: -0.40%
A69: 59 | B69: Others | C69: DIXON | D69: 2024-03-28 | E69: 6632.80 | F69: 6728.23 | G69: 6496.47 | H69: 6360.13 | I69: 6128.37 | J69: 6864.57 | K69: 7096.33 | L69: 7232.67 | M69: 6960 | N69: 6591.9 | O69: 1422100 | P69: 1.69%
A70: 60 | B70: Realty | C70: DLF | D70: 2024-03-28 | E70: 834.55 | F70: 845.67 | G70: 814.33 | H70: 794.12 | I70: 762.78 | J70: 865.88 | K70: 897.22 | L70: 917.43 | M70: 877 | N70: 825.45 | O70: 37318050 | P70: 5.00%
A71: 61 | B71: Pharma | C71: DRREDDY | D71: 2024-03-28 | E71: 6315.05 | F71: 6317.73 | G71: 6262.87 | H71: 6210.68 | I71: 6155.82 | J71: 6369.92 | K71: 6424.78 | L71: 6476.97 | M71: 6372.6 | N71: 6265.55 | O71: 2154000 | P71: -0.89%
A72: 62 | B72: Automobile | C72: EICHERMOT | D72: 2024-03-28 | E72: 3743.50 | F72: 3775.58 | G72: 3691.17 | H72: 3638.83 | I72: 3554.42 | J72: 3827.92 | K72: 3912.33 | L72: 3964.67 | M72: 3860 | N72: 3723.25 | O72: 3859450 | P72: -4.13%
A73: 63 | B73: Automobile | C73: ESCORTS | D73: 2024-03-28 | E73: 2723.05 | F73: 2758.67 | G73: 2676.83 | H73: 2630.62 | I73: 2548.78 | J73: 2804.88 | K73: 2886.72 | L73: 2932.93 | M73: 2840.5 | N73: 2712.45 | O73: 2069650 | P73: 0.35%
A74: 64 | B74: Automobile | C74: EXIDEIND | D74: 2024-03-28 | E74: 302.25 | F74: 307.73 | G74: 293.72 | H74: 285.18 | I74: 271.17 | J74: 316.27 | K74: 330.28 | L74: 338.82 | M74: 321.75 | N74: 299.2 | O74: 20192400 | P74: 6.03%
A75: 65 | B75: Banking | C75: FEDERALBNK | D75: 2024-03-28 | E75: 148.60 | F75: 149.75 | G75: 146.25 | H75: 143.90 | I75: 140.40 | J75: 152.10 | K75: 155.60 | L75: 157.95 | M75: 153.25 | N75: 147.4 | O75: 92780000 | P75: 0.73%
A76: 66 | B76: Oil_Gas | C76: GAIL | D76: 2024-03-28 | E76: 169.50 | F76: 172.35 | G76: 164.05 | H76: 158.60 | I76: 150.30 | J76: 177.80 | K76: 186.10 | L76: 191.55 | M76: 180.65 | N76: 166.9 | O76: 133672350 | P76: 0.41%
A77: 67 | B77: Pharma | C77: GLENMARK | D77: 2024-03-28 | E77: 900.25 | F77: 913.77 | G77: 874.48 | H77: 848.72 | I77: 809.43 | J77: 939.53 | K77: 978.82 | L77: 1004.58 | M77: 953.05 | N77: 888 | O77: 14065725 | P77: -0.95%
A78: 68 | B78: Infrastructure | C78: GMRINFRA | D78: 2024-03-28 | E78: 75.50 | F78: 76.98 | G78: 72.47 | H78: 69.43 | I78: 64.92 | J78: 80.02 | K78: 84.53 | L78: 87.57 | M78: 81.5 | N78: 73.95 | O78: 206482500 | P78: 0.32%
A79: 69 | B79: Others | C79: GNFC | D79: 2024-03-28 | E79: 599.05 | F79: 606.75 | G79: 586.30 | H79: 573.55 | I79: 553.10 | J79: 619.50 | K79: 639.95 | L79: 652.70 | M79: 627.2 | N79: 594 | O79: 8568300 | P79: -0.86%
A80: 70 | B80: FMCG | C80: GODREJCP | D80: 2024-03-28 | E80: 1201.55 | F80: 1211.00 | G80: 1181.85 | H80: 1162.15 | I80: 1133.00 | J80: 1230.70 | K80: 1259.85 | L80: 1279.55 | M80: 1240.15 | N80: 1191.3 | O80: 5873500 | P80: -0.46%
A81: 71 | B81: Realty | C81: GODREJPROP | D81: 2024-03-28 | E81: 2213.55 | F81: 2252.53 | G81: 2153.52 | H81: 2093.48 | I81: 1994.47 | J81: 2312.57 | K81: 2411.58 | L81: 2471.62 | M81: 2351.55 | N81: 2192.5 | O81: 4435550 | P81: -2.72%
A82: 72 | B82: Pharma | C82: GRANULES | D82: 2024-03-28 | E82: 413.75 | F82: 419.23 | G82: 402.97 | H82: 392.18 | I82: 375.92 | J82: 430.02 | K82: 446.28 | L82: 457.07 | M82: 435.5 | N82: 408.45 | O82: 11442000 | P82: 0.39%
A83: 73 | B83: Cement | C83: GRASIM | D83: 2024-03-28 | E83: 2154.05 | F83: 2168.87 | G83: 2130.78 | H83: 2107.52 | I83: 2069.43 | J83: 2192.13 | K83: 2230.22 | L83: 2253.48 | M83: 2206.95 | N83: 2145.6 | O83: 7278543 | P83: 2.27%
A84: 74 | B84: Oil_Gas | C84: GUJGASLTD | D84: 2024-03-28 | E84: 529.75 | F84: 538.03 | G84: 518.12 | H84: 506.48 | I84: 486.57 | J84: 549.67 | K84: 569.58 | L84: 581.22 | M84: 557.95 | N84: 526.4 | O84: 7273750 | P84: 1.24%
A85: 75 | B85: Others | C85: HAL | D85: 2024-03-28 | E85: 3051.70 | F85: 3119.45 | G85: 2955.15 | H85: 2858.60 | I85: 2694.30 | J85: 3216.00 | K85: 3380.30 | L85: 3476.85 | M85: 3283.75 | N85: 3022.9 | O85: 9339000 | P85: 7.14%
A86: 76 | B86: Capital_Goods | C86: HAVELLS | D86: 2024-03-28 | E86: 1481.00 | F86: 1498.78 | G86: 1454.77 | H86: 1428.53 | I86: 1384.52 | J86: 1525.02 | K86: 1569.03 | L86: 1595.27 | M86: 1542.8 | N86: 1472.55 | O86: 5412500 | P86: 1.76%
A87: 77 | B87: Technology | C87: HCLTECH | D87: 2024-03-28 | E87: 1634.35 | F87: 1635.92 | G87: 1617.28 | H87: 1600.22 | I87: 1581.58 | J87: 1652.98 | K87: 1671.62 | L87: 1688.68 | M87: 1654.55 | N87: 1618.85 | O87: 15140300 | P87: 1.75%
A88: 78 | B88: Finance | C88: HDFCAMC | D88: 2024-03-28 | E88: 3612.30 | F88: 3642.53 | G88: 3547.82 | H88: 3483.33 | I88: 3388.62 | J88: 3707.02 | K88: 3801.73 | L88: 3866.22 | M88: 3737.25 | N88: 3578.05 | O88: 2952900 | P88: 0.86%
A89: 79 | B89: Banking | C89: HDFCBANK | D89: 2024-03-28 | E89: 1464.35 | F89: 1466.35 | G89: 1455.05 | H89: 1445.75 | I89: 1434.45 | J89: 1475.65 | K89: 1486.95 | L89: 1496.25 | M89: 1477.65 | N89: 1457.05 | O89: 192906450 | P89: -6.40%
A90: 80 | B90: Finance | C90: HDFCLIFE | D90: 2024-03-28 | E90: 610.90 | F90: 614.62 | G90: 601.23 | H90: 591.57 | I90: 578.18 | J90: 624.28 | K90: 637.67 | L90: 647.33 | M90: 628 | N90: 604.95 | O90: 28052200 | P90: -1.91%
A91: 81 | B91: Automobile | C91: HEROMOTOCO | D91: 2024-03-28 | E91: 4528.15 | F91: 4569.85 | G91: 4456.15 | H91: 4384.15 | I91: 4270.45 | J91: 4641.85 | K91: 4755.55 | L91: 4827.55 | M91: 4683.55 | N91: 4497.85 | O91: 3770700 | P91: -2.11%
A92: 82 | B92: Metals | C92: HINDALCO | D92: 2024-03-28 | E92: 509.55 | F92: 515.02 | G92: 497.83 | H92: 486.12 | I92: 468.93 | J92: 526.73 | K92: 543.92 | L92: 555.63 | M92: 532.2 | N92: 503.3 | O92: 41988800 | P92: 4.31%
A93: 83 | B93: Metals | C93: HINDCOPPER | D93: 2024-03-28 | E93: 235.10 | F93: 241.60 | G93: 224.70 | H93: 214.30 | I93: 197.40 | J93: 252.00 | K93: 268.90 | L93: 279.30 | M93: 258.5 | N93: 231.2 | O93: 33135600 | P93: -9.72%
A94: 84 | B94: Oil_Gas | C94: HINDPETRO | D94: 2024-03-28 | E94: 486.50 | F94: 495.32 | G94: 472.13 | H94: 457.77 | I94: 434.58 | J94: 509.68 | K94: 532.87 | L94: 547.23 | M94: 518.5 | N94: 480.95 | O94: 39779100 | P94: 2.27%
A95: 85 | B95: FMCG | C95: HINDUNILVR | D95: 2024-03-28 | E95: 2320.60 | F95: 2341.15 | G95: 2289.55 | H95: 2258.50 | I95: 2206.90 | J95: 2372.20 | K95: 2423.80 | L95: 2454.85 | M95: 2392.75 | N95: 2310.1 | O95: 13525200 | P95: 4.56%
A96: 86 | B96: Banking | C96: ICICIBANK | D96: 2024-03-28 | E96: 1086.30 | F96: 1085.73 | G96: 1078.57 | H96: 1070.83 | I96: 1063.67 | J96: 1093.47 | K96: 1100.63 | L96: 1108.37 | M96: 1092.9 | N96: 1078 | O96: 70493500 | P96: -2.36%
A97: 87 | B97: Finance | C97: ICICIGI | D97: 2024-03-28 | E97: 1647.55 | F97: 1657.78 | G97: 1632.52 | H97: 1617.48 | I97: 1592.22 | J97: 1672.82 | K97: 1698.08 | L97: 1713.12 | M97: 1683.05 | N97: 1642.75 | O97: 2298000 | P97: -2.17%
A98: 88 | B98: Finance | C98: ICICIPRULI | D98: 2024-03-28 | E98: 575.85 | F98: 583.40 | G98: 562.25 | H98: 548.65 | I98: 527.50 | J98: 597.00 | K98: 618.15 | L98: 631.75 | M98: 604.55 | N98: 569.8 | O98: 11626500 | P98: -7.38%
A99: 89 | B99: Telecom | C99: IDEA | D99: 2024-03-28 | E99: 12.50 | F99: 12.83 | G99: 11.77 | H99: 11.03 | I99: 9.97 | J99: 13.57 | K99: 14.63 | L99: 15.37 | M99: 13.9 | N99: 12.1 | O99: 2038640000 | P99: -2.55%
A100: 90 | B100: Finance | C100: IDFC | D100: 2024-03-28 | E100: 109.10 | F100: 110.52 | G100: 106.83 | H100: 104.57 | I100: 100.88 | J100: 112.78 | K100: 116.47 | L100: 118.73 | M100: 114.2 | N100: 108.25 | O100: 78200000 | P100: 3.98%
A101: 91 | B101: Banking | C101: IDFCFIRSTB | D101: 2024-03-28 | E101: 77.40 | F101: 78.12 | G101: 76.28 | H101: 75.17 | I101: 73.33 | J101: 79.23 | K101: 81.07 | L101: 82.18 | M101: 79.95 | N101: 77 | O101: 386092500 | P101: 0.60%
A102: 92 | B102: Others | C102: IEX | D102: 2024-03-28 | E102: 133.65 | F102: 135.97 | G102: 129.83 | H102: 126.02 | I102: 119.88 | J102: 139.78 | K102: 145.92 | L102: 149.73 | M102: 142.1 | N102: 132.15 | O102: 66015000 | P102: -0.88%
A103: 93 | B103: Oil_Gas | C103: IGL | D103: 2024-03-28 | E103: 404.65 | F103: 411.65 | G103: 394.75 | H103: 384.85 | I103: 367.95 | J103: 421.55 | K103: 438.45 | L103: 448.35 | M103: 428.55 | N103: 401.75 | O103: 19690000 | P103: 2.93%
A104: 94 | B104: Infrastructure | C104: INDHOTEL | D104: 2024-03-28 | E104: 547.20 | F104: 556.47 | G104: 533.93 | H104: 520.67 | I104: 498.13 | J104: 569.73 | K104: 592.27 | L104: 605.53 | M104: 579 | N104: 543.2 | O104: 19704000 | P104: 0.68%
A105: 95 | B105: Cement | C105: INDIACEM | D105: 2024-03-28 | E105: 197.20 | F105: 202.60 | G105: 189.75 | H105: 182.30 | I105: 169.45 | J105: 210.05 | K105: 222.90 | L105: 230.35 | M105: 215.45 | N105: 195.15 | O105: 23298600 | P105: 5.91%
A106: 96 | B106: Others | C106: INDIAMART | D106: 2024-03-28 | E106: 2517.65 | F106: 2569.83 | G106: 2453.82 | H106: 2389.98 | I106: 2273.97 | J106: 2633.67 | K106: 2749.68 | L106: 2813.52 | M106: 2685.85 | N106: 2506 | O106: 975000 | P106: 0.96%
A107: 97 | B107: Others | C107: INDIGO | D107: 2024-03-28 | E107: 3126.55 | F107: 3166.85 | G107: 3062.70 | H107: 2998.85 | I107: 2894.70 | J107: 3230.70 | K107: 3334.85 | L107: 3398.70 | M107: 3271 | N107: 3103 | O107: 7219500 | P107: -4.46%
A108: 98 | B108: Banking | C108: INDUSINDBK | D108: 2024-03-28 | E108: 1507.30 | F108: 1516.38 | G108: 1488.57 | H108: 1469.83 | I108: 1442.02 | J108: 1535.12 | K108: 1562.93 | L108: 1581.67 | M108: 1544.2 | N108: 1497.65 | O108: 24800000 | P108: 1.51%
A109: 99 | B109: Telecom | C109: INDUSTOWER | D109: 2024-03-28 | E109: 237.25 | F109: 240.25 | G109: 229.45 | H109: 221.65 | I109: 210.85 | J109: 248.05 | K109: 258.85 | L109: 266.65 | M109: 251.05 | N109: 232.45 | O109: 107106800 | P109: 1.46%
A110: 100 | B110: Technology | C110: INFY | D110: 2024-03-28 | E110: 1616.15 | F110: 1617.73 | G110: 1603.47 | H110: 1590.78 | I110: 1576.52 | J110: 1630.42 | K110: 1644.68 | L110: 1657.37 | M110: 1632 | N110: 1605.05 | O110: 31964800 | P110: 2.62%
A111: 101 | B111: Oil_Gas | C111: IOC | D111: 2024-03-28 | E111: 164.20 | F111: 167.05 | G111: 159.65 | H111: 155.10 | I111: 147.70 | J111: 171.60 | K111: 179.00 | L111: 183.55 | M111: 174.45 | N111: 162.5 | O111: 168987000 | P111: -1.11%
A112: 102 | B112: Pharma | C112: IPCALAB | D112: 2024-03-28 | E112: 1134.85 | F112: 1147.98 | G112: 1112.32 | H112: 1089.78 | I112: 1054.12 | J112: 1170.52 | K112: 1206.18 | L112: 1228.72 | M112: 1183.65 | N112: 1125.45 | O112: 2472600 | P112: 0.90%
A113: 103 | B113: Others | C113: IRCTC | D113: 2024-03-28 | E113: 884.70 | F113: 897.62 | G113: 860.38 | H113: 836.07 | I113: 798.83 | J113: 921.93 | K113: 959.17 | L113: 983.48 | M113: 934.85 | N113: 873.3 | O113: 17871000 | P113: 2.13%
A114: 104 | B114: FMCG | C114: ITC | D114: 2024-03-28 | E114: 423.60 | F114: 428.38 | G114: 417.77 | H114: 411.93 | I114: 401.32 | J114: 434.22 | K114: 444.83 | L114: 450.67 | M114: 439 | N114: 422.55 | O114: 128273600 | P114: 8.13%
A115: 105 | B115: Metals | C115: JINDALSTEL | D115: 2024-03-28 | E115: 768.55 | F115: 783.48 | G115: 749.32 | H115: 730.08 | I115: 695.92 | J115: 802.72 | K115: 836.88 | L115: 856.12 | M115: 817.65 | N115: 764.25 | O115: 23061250 | P115: 1.74%
A116: 106 | B116: Cement | C116: JKCEMENT | D116: 2024-03-28 | E116: 4093.20 | F116: 4120.65 | G116: 4038.50 | H116: 3983.80 | I116: 3901.65 | J116: 4175.35 | K116: 4257.50 | L116: 4312.20 | M116: 4202.8 | N116: 4065.95 | O116: 689500 | P116: 2.22%
A117: 107 | B117: Metals | C117: JSWSTEEL | D117: 2024-03-28 | E117: 794.45 | F117: 802.65 | G117: 782.30 | H117: 770.15 | I117: 749.80 | J117: 814.80 | K117: 835.15 | L117: 847.30 | M117: 823 | N117: 790.5 | O117: 18759600 | P117: 5.97%
A118: 108 | B118: Others | C118: JUBLFOOD | D118: 2024-03-28 | E118: 431.80 | F118: 436.78 | G118: 422.22 | H118: 412.63 | I118: 398.07 | J118: 446.37 | K118: 460.93 | L118: 470.52 | M118: 451.35 | N118: 427.2 | O118: 20270000 | P118: 4.52%
A119: 109 | B119: Banking | C119: KOTAKBANK | D119: 2024-03-28 | E119: 1732.70 | F119: 1734.73 | G119: 1720.47 | H119: 1708.23 | I119: 1693.97 | J119: 1746.97 | K119: 1761.23 | L119: 1773.47 | M119: 1749 | N119: 1722.5 | O119: 36928800 | P119: -6.32%
A120: 110 | B120: Finance | C120: L&TFH | D120: 2024-03-28 | E120: 148.45 | F120: 151.35 | G120: 144.40 | H120: 140.35 | I120: 133.40 | J120: 155.40 | K120: 162.35 | L120: 166.40 | M120: 158.3 | N120: 147.3 | O120: 50456296 | P120: 1.39%
A121: 111 | B121: Others | C121: LALPATHLAB | D121: 2024-03-28 | E121: 2021.80 | F121: 2049.08 | G121: 1982.72 | H121: 1943.63 | I121: 1877.27 | J121: 2088.17 | K121: 2154.53 | L121: 2193.62 | M121: 2115.45 | N121: 2010 | O121: 1835100 | P121: 5.90%
A122: 112 | B122: Pharma | C122: LAURUSLABS | D122: 2024-03-28 | E122: 401.35 | F122: 404.90 | G122: 391.00 | H122: 380.65 | I122: 366.75 | J122: 415.25 | K122: 429.15 | L122: 439.50 | M122: 418.8 | N122: 394.55 | O122: 11956100 | P122: -0.97%
A123: 113 | B123: Finance | C123: LICHSGFIN | D123: 2024-03-28 | E123: 593.40 | F123: 603.02 | G123: 577.98 | H123: 562.57 | I123: 537.53 | J123: 618.43 | K123: 643.47 | L123: 658.88 | M123: 628.05 | N123: 587.6 | O123: 16376000 | P123: 1.61%
A124: 114 | B124: Capital_Goods | C124: LT | D124: 2024-03-28 | E124: 3547.60 | F124: 3575.00 | G124: 3495.25 | H124: 3442.90 | I124: 3363.15 | J124: 3627.35 | K124: 3707.10 | L124: 3759.45 | M124: 3654.75 | N124: 3522.65 | O124: 15960000 | P124: -0.50%
A125: 115 | B125: Technology | C125: LTIM | D125: 2024-03-28 | E125: 5203.05 | F125: 5221.10 | G125: 5158.00 | H125: 5112.95 | I125: 5049.85 | J125: 5266.15 | K125: 5329.25 | L125: 5374.30 | M125: 5284.2 | N125: 5176.05 | O125: 2762100 | P125: -5.18%
A126: 116 | B126: Technology | C126: LTTS | D126: 2024-03-28 | E126: 5181.30 | F126: 5221.62 | G126: 5110.68 | H126: 5040.07 | I126: 4929.13 | J126: 5292.23 | K126: 5403.17 | L126: 5473.78 | M126: 5332.55 | N126: 5151 | O126: 774200 | P126: 1.92%
A127: 117 | B127: Pharma | C127: LUPIN | D127: 2024-03-28 | E127: 1607.45 | F127: 1619.98 | G127: 1582.47 | H127: 1557.48 | I127: 1519.97 | J127: 1644.97 | K127: 1682.48 | L127: 1707.47 | M127: 1657.5 | N127: 1595 | O127: 6162500 | P127: 0.74%
A128: 118 | B128: Automobile | C128: M&M | D128: 2024-03-28 | E128: 1859.80 | F128: 1873.43 | G128: 1839.37 | H128: 1818.93 | I128: 1784.87 | J128: 1893.87 | K128: 1927.93 | L128: 1948.37 | M128: 1907.5 | N128: 1853 | O128: 14281400 | P128: -0.39%
A129: 119 | B129: Finance | C129: M&MFIN | D129: 2024-03-28 | E129: 261.60 | F129: 267.78 | G129: 252.72 | H129: 243.83 | I129: 228.77 | J129: 276.67 | K129: 291.73 | L129: 300.62 | M129: 282.85 | N129: 258.9 | O129: 25400000 | P129: 4.79%
A130: 120 | B130: Finance | C130: MANAPPURAM | D130: 2024-03-28 | E130: 160.85 | F130: 163.57 | G130: 155.13 | H130: 149.42 | I130: 140.98 | J130: 169.28 | K130: 177.72 | L130: 183.43 | M130: 172 | N130: 157.85 | O130: 58572000 | P130: -3.84%
A131: 121 | B131: FMCG | C131: MARICO | D131: 2024-03-28 | E131: 498.75 | F131: 503.40 | G131: 492.35 | H131: 485.95 | I131: 474.90 | J131: 509.80 | K131: 520.85 | L131: 527.25 | M131: 514.45 | N131: 497 | O131: 13628400 | P131: 3.60%
A132: 122 | B132: Automobile | C132: MARUTI | D132: 2024-03-28 | E132: 11418.00 | F132: 11439.67 | G132: 11279.33 | H132: 11140.67 | I132: 10980.33 | J132: 11578.33 | K132: 11738.67 | L132: 11877.33 | M132: 11600 | N132: 11301 | O132: 2619600 | P132: -1.20%
A133: 123 | B133: FMCG | C133: MCDOWELL-N | D133: 2024-03-28 | E133: 1113.10 | F133: 1124.75 | G133: 1095.50 | H133: 1077.90 | I133: 1048.65 | J133: 1142.35 | K133: 1171.60 | L133: 1189.20 | M133: 1154 | N133: 1107.15 | O133: 6620600 | P133: 2.02%
A134: 124 | B134: Others | C134: MCX | D134: 2024-03-28 | E134: 3223.35 | F134: 3305.28 | G134: 3106.67 | H134: 2989.98 | I134: 2791.37 | J134: 3421.97 | K134: 3620.58 | L134: 3737.27 | M134: 3503.9 | N134: 3188.6 | O134: 2592400 | P134: 8.63%
A135: 125 | B135: Pharma | C135: METROPOLIS | D135: 2024-03-28 | E135: 1595.20 | F135: 1610.08 | G135: 1568.57 | H135: 1541.93 | I135: 1500.42 | J135: 1636.72 | K135: 1678.23 | L135: 1704.87 | M135: 1651.6 | N135: 1583.45 | O135: 1485600 | P135: 12.04%
A136: 126 | B136: Finance | C136: MFSL | D136: 2024-03-28 | E136: 952.95 | F136: 967.38 | G136: 931.77 | H136: 910.58 | I136: 874.97 | J136: 988.57 | K136: 1024.18 | L136: 1045.37 | M136: 1003 | N136: 946.2 | O136: 10076800 | P136: -3.12%
A137: 127 | B137: Oil_Gas | C137: MGL | D137: 2024-03-28 | E137: 1224.90 | F137: 1250.30 | G137: 1175.65 | H137: 1126.40 | I137: 1051.75 | J137: 1299.55 | K137: 1374.20 | L137: 1423.45 | M137: 1324.95 | N137: 1201.05 | O137: 3292800 | P137: -10.29%
A138: 128 | B138: Automobile | C138: MOTHERSON | D138: 2024-03-28 | E138: 110.45 | F138: 111.30 | G138: 105.65 | H138: 100.85 | I138: 95.20 | J138: 116.10 | K138: 121.75 | L138: 126.55 | M138: 116.95 | N138: 106.5 | O138: 154978800 | P138: 0.89%
A139: 129 | B139: Technology | C139: MPHASIS | D139: 2024-03-28 | E139: 2389.00 | F139: 2407.22 | G139: 2342.43 | H139: 2295.87 | I139: 2231.08 | J139: 2453.78 | K139: 2518.57 | L139: 2565.13 | M139: 2472 | N139: 2360.65 | O139: 3642375 | P139: 1.17%
A140: 130 | B140: Automobile | C140: MRF | D140: 2024-03-28 | E140: 139582.55 | F140: 140515.88 | G140: 137346.77 | H140: 135110.98 | I140: 131941.87 | J140: 142751.67 | K140: 145920.78 | L140: 148156.57 | M140: 143685 | N140: 138280.1 | O140: 43965 | P140: 2.32%
A141: 131 | B141: Finance | C141: MUTHOOTFIN | D141: 2024-03-28 | E141: 1347.05 | F141: 1363.15 | G141: 1322.75 | H141: 1298.45 | I141: 1258.05 | J141: 1387.45 | K141: 1427.85 | L141: 1452.15 | M141: 1403.55 | N141: 1338.85 | O141: 6687450 | P141: -1.23%
A142: 132 | B142: Metals | C142: NATIONALUM | D142: 2024-03-28 | E142: 136.50 | F142: 140.35 | G142: 127.40 | H142: 118.30 | I142: 105.35 | J142: 149.45 | K142: 162.40 | L142: 171.50 | M142: 153.3 | N142: 131.25 | O142: 85710000 | P142: -14.79%
A143: 133 | B143: Others | C143: NAUKRI | D143: 2024-03-28 | E143: 5122.60 | F143: 5144.32 | G143: 5033.83 | H143: 4945.07 | I143: 4834.58 | J143: 5233.08 | K143: 5343.57 | L143: 5432.33 | M143: 5254.8 | N143: 5055.55 | O143: 1316850 | P143: 1.37%
A144: 134 | B144: Chemical | C144: NAVINFLUOR | D144: 2024-03-28 | E144: 2931.30 | F144: 2964.37 | G144: 2887.53 | H144: 2843.77 | I144: 2766.93 | J144: 3008.13 | K144: 3084.97 | L144: 3128.73 | M144: 3041.2 | N144: 2920.6 | O144: 1973400 | P144: 1.59%
A145: 135 | B145: FMCG | C145: NESTLEIND | D145: 2024-03-28 | E145: 2590.30 | F145: 2606.20 | G145: 2550.90 | H145: 2511.50 | I145: 2456.20 | J145: 2645.60 | K145: 2700.90 | L145: 2740.30 | M145: 2661.5 | N145: 2566.8 | O145: 4887200 | P145: -0.02%
A146: 136 | B146: Metals | C146: NMDC | D146: 2024-03-28 | E146: 206.10 | F146: 211.72 | G146: 198.83 | H146: 191.57 | I146: 178.68 | J146: 218.98 | K146: 231.87 | L146: 239.13 | M146: 224.6 | N146: 204.45 | O146: 86220000 | P146: 3.48%
A147: 137 | B147: Power | C147: NTPC | D147: 2024-03-28 | E147: 323.05 | F147: 329.83 | G147: 313.87 | H147: 304.68 | I147: 288.72 | J147: 339.02 | K147: 354.98 | L147: 364.17 | M147: 345.8 | N147: 320.65 | O147: 92979000 | P147: 5.47%
A148: 138 | B148: Realty | C148: OBEROIRLTY | D148: 2024-03-28 | E148: 1301.40 | F148: 1315.78 | G148: 1274.62 | H148: 1247.83 | I148: 1206.67 | J148: 1342.57 | K148: 1383.73 | L148: 1410.52 | M148: 1356.95 | N148: 1289 | O148: 6209000 | P148: 0.41%
A149: 139 | B149: Technology | C149: OFSS | D149: 2024-03-28 | E149: 8080.05 | F149: 8172.70 | G149: 7908.45 | H149: 7736.85 | I149: 7472.60 | J149: 8344.30 | K149: 8608.55 | L149: 8780.15 | M149: 8436.95 | N149: 8001.1 | O149: 1177400 | P149: -4.07%
A150: 140 | B150: Oil_Gas | C150: ONGC | D150: 2024-03-28 | E150: 256.50 | F150: 260.75 | G150: 249.70 | H150: 242.90 | I150: 231.85 | J150: 267.55 | K150: 278.60 | L150: 285.40 | M150: 271.8 | N150: 253.95 | O150: 88064900 | P150: -1.45%
A151: 141 | B151: Textile | C151: PAGEIND | D151: 2024-03-28 | E151: 34094.65 | F151: 34473.70 | G151: 33557.40 | H151: 33020.15 | I151: 32103.85 | J151: 35010.95 | K151: 35927.25 | L151: 36464.50 | M151: 35390 | N151: 33936.45 | O151: 162165 | P151: 5.74%
A152: 142 | B152: Pharma | C152: PEL | D152: 2024-03-28 | E152: 826.30 | F152: 833.15 | G152: 797.45 | H152: 768.60 | I152: 732.90 | J152: 862.00 | K152: 897.70 | L152: 926.55 | M152: 868.85 | N152: 804.3 | O152: 13287750 | P152: -5.92%
A153: 143 | B153: Technology | C153: PERSISTENT | D153: 2024-03-28 | E153: 8152.35 | F153: 8193.67 | G153: 8050.68 | H153: 7949.02 | I153: 7806.03 | J153: 8295.33 | K153: 8438.32 | L153: 8539.98 | M153: 8336.65 | N153: 8092 | O153: 1596800 | P153: 4.20%
A154: 144 | B154: Oil_Gas | C154: PETRONET | D154: 2024-03-28 | E154: 264.60 | F154: 268.90 | G154: 258.80 | H154: 253.00 | I154: 242.90 | J154: 274.70 | K154: 284.80 | L154: 290.60 | M154: 279 | N154: 263.1 | O154: 41271000 | P154: -0.98%
A155: 145 | B155: Finance | C155: PFC | D155: 2024-03-28 | E155: 396.60 | F155: 405.78 | G155: 382.42 | H155: 368.23 | I155: 344.87 | J155: 419.97 | K155: 443.33 | L155: 457.52 | M155: 429.15 | N155: 391.6 | O155: 73462250 | P155: 6.93%
A156: 146 | B156: FMCG | C156: PIDILITIND | D156: 2024-03-28 | E156: 2835.20 | F156: 2848.40 | G156: 2791.80 | H156: 2748.40 | I156: 2691.80 | J156: 2891.80 | K156: 2948.40 | L156: 2991.80 | M156: 2905 | N156: 2805 | O156: 2154500 | P156: -4.72%
A157: 147 | B157: Chemical | C157: PIIND | D157: 2024-03-28 | E157: 3587.40 | F157: 3607.12 | G157: 3530.28 | H157: 3473.17 | I157: 3396.33 | J157: 3664.23 | K157: 3741.07 | L157: 3798.18 | M157: 3683.95 | N157: 3550 | O157: 1902000 | P157: -7.07%
A158: 148 | B158: Banking | C158: PNB | D158: 2024-03-28 | E158: 119.25 | F158: 121.30 | G158: 115.45 | H158: 111.65 | I158: 105.80 | J158: 125.10 | K158: 130.95 | L158: 134.75 | M158: 127.15 | N158: 117.5 | O158: 234864000 | P158: 0.77%
A159: 149 | B159: Others | C159: POLYCAB | D159: 2024-03-28 | E159: 4789.50 | F159: 4828.67 | G159: 4702.33 | H159: 4615.17 | I159: 4488.83 | J159: 4915.83 | K159: 5042.17 | L159: 5129.33 | M159: 4955 | N159: 4741.5 | O159: 1950500 | P159: -2.36%
A160: 150 | B160: Power | C160: POWERGRID | D160: 2024-03-28 | E160: 265.60 | F160: 271.32 | G160: 257.63 | H160: 249.67 | I160: 235.98 | J160: 279.28 | K160: 292.97 | L160: 300.93 | M160: 285 | N160: 263.35 | O160: 63885600 | P160: 13.60%
A161: 151 | B161: Media | C161: PVRINOX | D161: 2024-03-28 | E161: 1306.25 | F161: 1320.48 | G161: 1279.02 | H161: 1251.78 | I161: 1210.32 | J161: 1347.72 | K161: 1389.18 | L161: 1416.42 | M161: 1361.95 | N161: 1293.25 | O161: 7461938 | P161: 3.65%
A162: 152 | B162: Cement | C162: RAMCOCEM | D162: 2024-03-28 | E162: 792.05 | F162: 796.07 | G162: 779.63 | H162: 767.22 | I162: 750.78 | J162: 808.48 | K162: 824.92 | L162: 837.33 | M162: 812.5 | N162: 783.65 | O162: 4618050 | P162: -1.65%
A163: 153 | B163: Banking | C163: RBLBANK | D163: 2024-03-28 | E163: 231.20 | F163: 237.18 | G163: 222.87 | H163: 214.53 | I163: 200.22 | J163: 245.52 | K163: 259.83 | L163: 268.17 | M163: 251.5 | N163: 228.85 | O163: 71700000 | P163: 6.86%
A164: 154 | B164: Power | C164: RECLTD | D164: 2024-03-28 | E164: 447.10 | F164: 457.13 | G164: 430.77 | H164: 414.43 | I164: 388.07 | J164: 473.47 | K164: 499.83 | L164: 516.17 | M164: 483.5 | N164: 440.8 | O164: 37840000 | P164: 4.17%
A165: 155 | B165: Oil_Gas | C165: RELIANCE | D165: 2024-03-28 | E165: 2879.45 | F165: 2907.75 | G165: 2841.90 | H165: 2804.35 | I165: 2738.50 | J165: 2945.30 | K165: 3011.15 | L165: 3048.70 | M165: 2973.6 | N165: 2870.2 | O165: 41556750 | P165: 4.07%
A166: 156 | B166: Metals | C166: SAIL | D166: 2024-03-28 | E166: 118.95 | F166: 122.37 | G166: 114.08 | H166: 109.22 | I166: 100.93 | J166: 127.23 | K166: 135.52 | L166: 140.38 | M166: 130.65 | N166: 117.5 | O166: 149104000 | P166: -10.86%
A167: 157 | B167: Banking | C167: SBICARD | D167: 2024-03-28 | E167: 682.50 | F167: 687.97 | G167: 674.98 | H167: 667.47 | I167: 654.48 | J167: 695.48 | K167: 708.47 | L167: 715.98 | M167: 700.95 | N167: 680.45 | O167: 24387200 | P167: 1.20%
A168: 158 | B168: Finance | C168: SBILIFE | D168: 2024-03-28 | E168: 1491.65 | F168: 1503.95 | G168: 1474.45 | H168: 1457.25 | I168: 1427.75 | J168: 1521.15 | K168: 1550.65 | L168: 1567.85 | M168: 1533.45 | N168: 1486.75 | O168: 8544000 | P168: 1.08%
A169: 159 | B169: Banking | C169: SBIN | D169: 2024-03-28 | E169: 750.45 | F169: 754.73 | G169: 742.47 | H169: 734.48 | I169: 722.22 | J169: 762.72 | K169: 774.98 | L169: 782.97 | M169: 767 | N169: 746.75 | O169: 91470000 | P169: 1.84%
A170: 160 | B170: Cement | C170: SHREECEM | D170: 2024-03-28 | E170: 24495.30 | F170: 24719.78 | G170: 24174.72 | H170: 23854.13 | I170: 23309.07 | J170: 25040.37 | K170: 25585.43 | L170: 25906.02 | M170: 25264.85 | N170: 24399.2 | O170: 294225 | P170: 0.93%
A171: 161 | B171: Capital_Goods | C171: SIEMENS | D171: 2024-03-28 | E171: 4667.25 | F171: 4719.90 | G171: 4584.25 | H171: 4501.25 | I171: 4365.60 | J171: 4802.90 | K171: 4938.55 | L171: 5021.55 | M171: 4855.55 | N171: 4636.9 | O171: 1074300 | P171: -4.17%
A172: 162 | B172: Textile | C172: SRF | D172: 2024-03-28 | E172: 2397.40 | F172: 2418.00 | G172: 2366.00 | H172: 2334.60 | I172: 2282.60 | J172: 2449.40 | K172: 2501.40 | L172: 2532.80 | M172: 2470 | N172: 2386.6 | O172: 3445875 | P172: -1.83%
A173: 163 | B173: Finance | C173: SHRIRAMFIN | D173: 2024-03-28 | E173: 2329.75 | F173: 2362.60 | G173: 2278.65 | H173: 2227.55 | I173: 2143.60 | J173: 2413.70 | K173: 2497.65 | L173: 2548.75 | M173: 2446.55 | N173: 2311.5 | O173: 5868000 | P173: 0.57%
A174: 164 | B174: Pharma | C174: SUNPHARMA | D174: 2024-03-28 | E174: 1562.15 | F174: 1572.92 | G174: 1541.08 | H174: 1520.02 | I174: 1488.18 | J174: 1593.98 | K174: 1625.82 | L174: 1646.88 | M174: 1604.75 | N174: 1551.85 | O174: 15777300 | P174: -5.63%
A175: 165 | B175: Media | C175: SUNTV | D175: 2024-03-28 | E175: 588.15 | F175: 597.17 | G175: 575.98 | H175: 563.82 | I175: 542.63 | J175: 609.33 | K175: 630.52 | L175: 642.68 | M175: 618.35 | N175: 585 | O175: 7254000 | P175: 0.39%
A176: 166 | B176: Pharma | C176: SYNGENE | D176: 2024-03-28 | E176: 671.45 | F176: 678.85 | G176: 658.90 | H176: 646.35 | I176: 626.40 | J176: 691.40 | K176: 711.35 | L176: 723.90 | M176: 698.8 | N176: 666.3 | O176: 5021000 | P176: 0.50%
A177: 167 | B177: Chemical | C177: TATACHEM | D177: 2024-03-28 | E177: 1094.05 | F177: 1113.85 | G177: 1062.70 | H177: 1031.35 | I177: 980.20 | J177: 1145.20 | K177: 1196.35 | L177: 1227.70 | M177: 1165 | N177: 1082.5 | O177: 11781550 | P177: -3.68%
A178: 168 | B178: Telecom | C178: TATACOMM | D178: 2024-03-28 | E178: 1890.95 | F178: 1920.08 | G178: 1841.97 | H178: 1792.98 | I178: 1714.87 | J178: 1969.07 | K178: 2047.18 | L178: 2096.17 | M178: 1998.2 | N178: 1871.1 | O178: 7093000 | P178: -1.18%
A179: 169 | B179: FMCG | C179: TATACONSUM | D179: 2024-03-28 | E179: 1182.50 | F179: 1193.43 | G179: 1165.72 | H179: 1148.93 | I179: 1121.22 | J179: 1210.22 | K179: 1237.93 | L179: 1254.72 | M179: 1221.15 | N179: 1176.65 | O179: 10584000 | P179: -4.35%
A180: 170 | B180: Automobile | C180: TATAMOTORS | D180: 2024-03-28 | E180: 978.00 | F180: 989.92 | G180: 956.93 | H180: 935.87 | I180: 902.88 | J180: 1010.98 | K180: 1043.97 | L180: 1065.03 | M180: 1022.9 | N180: 968.85 | O180: 64881675 | P180: 4.07%
A181: 171 | B181: Power | C181: TATAPOWER | D181: 2024-03-28 | E181: 373.50 | F181: 381.22 | G181: 361.43 | H181: 349.37 | I181: 329.58 | J181: 393.28 | K181: 413.07 | L181: 425.13 | M181: 401 | N181: 369.15 | O181: 100419750 | P181: 1.00%
A182: 172 | B182: Metals | C182: TATASTEEL | D182: 2024-03-28 | E182: 144.40 | F182: 147.00 | G182: 140.70 | H182: 137.00 | I182: 130.70 | J182: 150.70 | K182: 157.00 | L182: 160.70 | M182: 153.3 | N182: 143.3 | O182: 288524500 | P182: 7.26%
A183: 173 | B183: Technology | C183: TCS | D183: 2024-03-28 | E183: 4169.20 | F183: 4191.70 | G183: 4132.50 | H183: 4095.80 | I183: 4036.60 | J183: 4228.40 | K183: 4287.60 | L183: 4324.30 | M183: 4250.9 | N183: 4155 | O183: 13823950 | P183: 2.46%
A184: 174 | B184: Technology | C184: TECHM | D184: 2024-03-28 | E184: 1279.35 | F184: 1284.03 | G184: 1264.62 | H184: 1249.88 | I184: 1230.47 | J184: 1298.77 | K184: 1318.18 | L184: 1332.92 | M184: 1303.45 | N184: 1269.3 | O184: 13651800 | P184: -1.11%
A185: 175 | B185: FMCG | C185: TITAN | D185: 2024-03-28 | E185: 3637.35 | F185: 3670.97 | G185: 3576.68 | H185: 3516.02 | I185: 3421.73 | J185: 3731.63 | K185: 3825.92 | L185: 3886.58 | M185: 3765.25 | N185: 3610.3 | O185: 5012000 | P185: 3.71%
A186: 176 | B186: Pharma | C186: TORNTPHARM | D186: 2024-03-28 | E186: 2669.00 | F186: 2669.25 | G186: 2644.20 | H186: 2619.40 | I186: 2594.35 | J186: 2694.05 | K186: 2719.10 | L186: 2743.90 | M186: 2694.3 | N186: 2644.45 | O186: 1541000 | P186: -3.23%
A187: 177 | B187: Others | C187: TRENT | D187: 2024-03-28 | E187: 3954.10 | F187: 3968.07 | G187: 3886.08 | H187: 3818.07 | I187: 3736.08 | J187: 4036.08 | K187: 4118.07 | L187: 4186.08 | M187: 4050.05 | N187: 3900.05 | O187: 2885600 | P187: -3.35%
A188: 178 | B188: Automobile | C188: TVSMOTOR | D188: 2024-03-28 | E188: 2145.35 | F188: 2175.98 | G188: 2097.97 | H188: 2050.58 | I188: 1972.57 | J188: 2223.37 | K188: 2301.38 | L188: 2348.77 | M188: 2254 | N188: 2128.6 | O188: 4807950 | P188: -3.70%
A189: 179 | B189: FMCG | C189: UBL | D189: 2024-03-28 | E189: 1690.70 | F189: 1707.08 | G189: 1665.62 | H189: 1640.53 | I189: 1599.07 | J189: 1732.17 | K189: 1773.63 | L189: 1798.72 | M189: 1748.55 | N189: 1682 | O189: 2464000 | P189: 0.92%
A190: 180 | B190: Cement | C190: ULTRACEMCO | D190: 2024-03-28 | E190: 9609.05 | F190: 9602.95 | G190: 9526.15 | H190: 9443.25 | I190: 9366.45 | J190: 9685.85 | K190: 9762.65 | L190: 9845.55 | M190: 9679.75 | N190: 9520.05 | O190: 2287700 | P190: -4.69%
A191: 181 | B191: Chemical | C191: UPL | D191: 2024-03-28 | E191: 453.40 | F191: 461.22 | G191: 443.43 | H191: 433.47 | I191: 415.68 | J191: 471.18 | K191: 488.97 | L191: 498.93 | M191: 479 | N191: 451.25 | O191: 39455000 | P191: 2.83%
A192: 182 | B192: Metals | C192: VEDL | D192: 2024-03-28 | E192: 252.85 | F192: 258.25 | G192: 245.00 | H192: 237.15 | I192: 223.90 | J192: 266.10 | K192: 279.35 | L192: 287.20 | M192: 271.5 | N192: 250.4 | O192: 125711100 | P192: -2.27%
A193: 183 | B193: Capital_Goods | C193: VOLTAS | D193: 2024-03-28 | E193: 1045.95 | F193: 1048.65 | G193: 1025.45 | H193: 1004.95 | I193: 981.75 | J193: 1069.15 | K193: 1092.35 | L193: 1112.85 | M193: 1071.85 | N193: 1028.15 | O193: 8823000 | P193: 3.44%
A194: 184 | B194: Technology | C194: WIPRO | D194: 2024-03-28 | E194: 505.70 | F194: 508.43 | G194: 496.82 | H194: 487.93 | I194: 476.32 | J194: 517.32 | K194: 528.93 | L194: 537.82 | M194: 520.05 | N194: 499.55 | O194: 51649500 | P194: -4.56%
A195: 185 | B195: Media | C195: ZEEL | D195: 2024-03-28 | E195: 144.75 | F195: 147.60 | G195: 138.30 | H195: 131.85 | I195: 122.55 | J195: 154.05 | K195: 163.35 | L195: 169.80 | M195: 156.9 | N195: 141.15 | O195: 117330000 | P195: -1.33%
A196: 186 | B196: Pharma | C196: ZYDUSLIFE | D196: 2024-03-28 | E196: 973.60 | F196: 980.33 | G196: 958.92 | H196: 944.23 | I196: 922.82 | J196: 995.02 | K196: 1016.43 | L196: 1031.12 | M196: 1001.75 | N196: 965.65 | O196: 7662600 | P196: -0.79%
A221: Pivot Point: This is trigger point for intra day buy/sell based on the price range of the previous day
A222: As per the tool,the trader should take BUY position just above Pivot and keep the stop loss of pivot point and the first target would be Resistance 1(R1)
A223: If R1 is crossed then R2 becomes the next target with stop loss of at R1
A224: Similarly if price goes below pivot point then the trader should sell and keep a stop loss of pivot point and the first target would be S1
A225: If S1 is crossed then S2 becomes the next target with stop loss of at S1
A227: Disclaimer:
A228: This document has been prepared by the Retail Research Desk of Asit C Mehta
A229: Investment Intermediates Ltd. and is meant for use of the recipient only
A230: and is not for circulation. This document is not to be reported or
A231: copied or made available to others. It should not be considered to be
... 5 more rows

Sheet Cash Intra
M5: Back to Main Page
A6: FOR INTRA DAY TRADING | K6: =Main!B10 -> 2024-03-14
A8: Sr.no | C8: CLOSE RATE | D8: Pivot Point | E8: Supports | H8: Resistances
E9: S1 | F9: S2 | G9: S3 | H9: R1 | I9: R2 | J9: R3 | K9: HIGH | L9: LOW | M9: Total Trade Quanity in Lakhs
A10: 1 | B10: Nifty 50 | C10: 21997.70 | D10: 22116.70 | E10: 21786.65 | F10: 21575.60 | G10: 21245.55 | H10: 22327.75 | I10: 22657.80 | J10: 22868.85 | K10: 22446.75 | L10: 21905.65
A11: 2 | B11: Nifty Bank | C11: 46981.30 | D11: 47097.38 | E11: 46726.07 | F11: 46470.83 | G11: 46099.52 | H11: 47352.62 | I11: 47723.93 | J11: 47979.17 | K11: 47468.70 | L11: 46842.15
A12: 3 | B12: Nifty CPSE | C12: 5457.45 | D12: 5569.12 | E12: 5284.78 | F12: 5112.12 | G12: 4827.78 | H12: 5741.78 | I12: 6026.12 | J12: 6198.78 | K12: 5853.45 | L12: 5396.45
A13: 4 | B13: Nifty Infra | C13: 7916.20 | D13: 8010.67 | E13: 7773.18 | F13: 7630.17 | G13: 7392.68 | H13: 8153.68 | I13: 8391.17 | J13: 8534.18 | K13: 8248.15 | L13: 7867.65
A14: 5 | B14: Nifty IT | C14: 36946.45 | D14: 37064.05 | E14: 36571.50 | F14: 36196.55 | G14: 35704.00 | H14: 37439.00 | I14: 37931.55 | J14: 38306.50 | K14: 37556.60 | L14: 36689.10
A15: 6 | B15: Nifty PSE | C15: 8756.40 | D15: 8933.02 | E15: 8490.03 | F15: 8223.67 | G15: 7780.68 | H15: 9199.38 | I15: 9642.37 | J15: 9908.73 | K15: 9376.00 | L15: 8666.65
A16: 7 | B16: Nifty Midcap 50 | C16: 13189.05 | D16: 13359.58 | E16: 12921.42 | F16: 12653.78 | G16: 12215.62 | H16: 13627.22 | I16: 14065.38 | J16: 14333.02 | K16: 13797.75 | L16: 13091.95
A17: 8 | B17: ABB | C17: 5597.25 | D17: 5659.77 | E17: 5510.18 | F17: 5423.12 | G17: 5273.53 | H17: 5746.83 | I17: 5896.42 | J17: 5983.48 | K17: 5809.35 | L17: 5572.7 | M17: 4.54668
A18: 9 | B18: ACC | C18: 2389.1 | D18: 2439.73 | E18: 2303.82 | F18: 2218.53 | G18: 2082.62 | H18: 2525.02 | I18: 2660.93 | J18: 2746.22 | K18: 2575.65 | L18: 2354.45 | M18: 5.12003
A19: 10 | B19: APLAPOLLO | C19: 1492.45 | D19: 1530.82 | E19: 1401.63 | F19: 1310.82 | G19: 1181.63 | H19: 1621.63 | I19: 1750.82 | J19: 1841.63 | K19: 1660 | L19: 1440 | M19: 65.07913
A20: 11 | B20: AUBANK | C20: 576.9 | D20: 578.08 | E20: 569.72 | F20: 562.53 | G20: 554.17 | H20: 585.27 | I20: 593.63 | J20: 600.82 | K20: 586.45 | L20: 570.9 | M20: 46.09989
A21: 12 | B21: ADANIENSOL | C21: 947.95 | D21: 970.08 | E21: 893.17 | F21: 838.38 | G21: 761.47 | H21: 1024.87 | I21: 1101.78 | J21: 1156.57 | K21: 1047 | L21: 915.3 | M21: 28.54959
A22: 13 | B22: ADANIENT | C22: 2906.2 | D22: 2964.80 | E22: 2791.55 | F22: 2676.90 | G22: 2503.65 | H22: 3079.45 | I22: 3252.70 | J22: 3367.35 | K22: 3138.05 | L22: 2850.15 | M22: 34.0704
A23: 14 | B23: ADANIGREEN | C23: 1725 | D23: 1763.87 | E23: 1611.13 | F23: 1497.27 | G23: 1344.53 | H23: 1877.73 | I23: 2030.47 | J23: 2144.33 | K23: 1916.6 | L23: 1650 | M23: 23.48187
A24: 15 | B24: ADANIPORTS | C24: 1209.55 | D24: 1235.22 | E24: 1162.43 | F24: 1115.32 | G24: 1042.53 | H24: 1282.33 | I24: 1355.12 | J24: 1402.23 | K24: 1308 | L24: 1188.1 | M24: 86.70336
A25: 16 | B25: ADANIPOWER | C25: 528.3 | D25: 538.57 | E25: 518.03 | F25: 507.77 | G25: 487.23 | H25: 548.83 | I25: 569.37 | J25: 579.63 | K25: 559.1 | L25: 528.3 | M25: 17.91061
A26: 17 | B26: ATGL | C26: 873 | D26: 903.70 | E26: 831.35 | F26: 789.70 | G26: 717.35 | H26: 945.35 | I26: 1017.70 | J26: 1059.35 | K26: 976.05 | L26: 862.05 | M26: 41.64593
A27: 18 | B27: AWL | C27: 332.55 | D27: 337.20 | E27: 320.70 | F27: 308.85 | G27: 292.35 | H27: 349.05 | I27: 365.55 | J27: 377.40 | K27: 353.7 | L27: 325.35 | M27: 38.33297
A28: 19 | B28: ABCAPITAL | C28: 171.4 | D28: 174.93 | E28: 165.77 | F28: 160.13 | G28: 150.97 | H28: 180.57 | I28: 189.73 | J28: 195.37 | K28: 184.1 | L28: 169.3 | M28: 115.24938
A29: 20 | B29: ABFRL | C29: 200.35 | D29: 205.02 | E29: 194.18 | F29: 188.02 | G29: 177.18 | H29: 211.18 | I29: 222.02 | J29: 228.18 | K29: 215.85 | L29: 198.85 | M29: 56.58098
A30: 21 | B30: ALKEM | C30: 4945.65 | D30: 4973.87 | E30: 4866.83 | F30: 4788.02 | G30: 4680.98 | H30: 5052.68 | I30: 5159.72 | J30: 5238.53 | K30: 5080.9 | L30: 4895.05 | M30: 2.4096
A31: 22 | B31: AMBUJACEM | C31: 559.25 | D31: 566.80 | E31: 543.25 | F31: 527.25 | G31: 503.70 | H31: 582.80 | I31: 606.35 | J31: 622.35 | K31: 590.35 | L31: 550.8 | M31: 59.46259
A32: 23 | B32: APOLLOHOSP | C32: 6008.4 | D32: 6048.15 | E32: 5916.30 | F32: 5824.20 | G32: 5692.35 | H32: 6140.25 | I32: 6272.10 | J32: 6364.20 | K32: 6180 | L32: 5956.05 | M32: 3.56191
A33: 24 | B33: APOLLOTYRE | C33: 492.1 | D33: 498.55 | E33: 482.55 | F33: 473.00 | G33: 457.00 | H33: 508.10 | I33: 524.10 | J33: 533.65 | K33: 514.55 | L33: 489 | M33: 28.50815
A34: 25 | B34: ASHOKLEY | C34: 159.8 | D34: 162.22 | E34: 156.63 | F34: 153.47 | G34: 147.88 | H34: 165.38 | I34: 170.97 | J34: 174.13 | K34: 167.8 | L34: 159.05 | M34: 144.67593
A35: 26 | B35: ASIANPAINT | C35: 2860.15 | D35: 2860.80 | E35: 2834.35 | F35: 2808.55 | G35: 2782.10 | H35: 2886.60 | I35: 2913.05 | J35: 2938.85 | K35: 2887.25 | L35: 2835 | M35: 9.55841
A36: 27 | B36: ASTRAL | C36: 2001.15 | D36: 2020.00 | E36: 1956.75 | F36: 1912.35 | G36: 1849.10 | H36: 2064.40 | I36: 2127.65 | J36: 2172.05 | K36: 2083.25 | L36: 1975.6 | M36: 10.66781
A37: 28 | B37: AUROPHARMA | C37: 1005.6 | D37: 1019.33 | E37: 971.32 | F37: 937.03 | G37: 889.02 | H37: 1053.62 | I37: 1101.63 | J37: 1135.92 | K37: 1067.35 | L37: 985.05 | M37: 20.54014
A38: 29 | B38: DMART | C38: 3967.8 | D38: 3985.28 | E38: 3914.57 | F38: 3861.33 | G38: 3790.62 | H38: 4038.52 | I38: 4109.23 | J38: 4162.47 | K38: 4056 | L38: 3932.05 | M38: 5.21699
A39: 30 | B39: AXISBANK | C39: 1080.4 | D39: 1083.57 | E39: 1067.58 | F39: 1054.77 | G39: 1038.78 | H39: 1096.38 | I39: 1112.37 | J39: 1125.18 | K39: 1099.55 | L39: 1070.75 | M39: 115.0389
A40: 31 | B40: BAJAJ-AUTO | C40: 8384.9 | D40: 8433.02 | E40: 8248.83 | F40: 8112.77 | G40: 7928.58 | H40: 8569.08 | I40: 8753.27 | J40: 8889.33 | K40: 8617.2 | L40: 8296.95 | M40: 4.30048
A41: 32 | B41: BAJFINANCE | C41: 6456.15 | D41: 6454.22 | E41: 6393.48 | F41: 6330.82 | G41: 6270.08 | H41: 6516.88 | I41: 6577.62 | J41: 6640.28 | K41: 6514.95 | L41: 6391.55 | M41: 11.32183
A42: 33 | B42: BAJAJFINSV | C42: 1573.15 | D42: 1578.03 | E42: 1557.12 | F42: 1541.08 | G42: 1520.17 | H42: 1594.07 | I42: 1614.98 | J42: 1631.02 | K42: 1598.95 | L42: 1562 | M42: 12.79653
A43: 34 | B43: BAJAJHLDNG | C43: 8369 | D43: 8409.38 | E43: 8237.52 | F43: 8106.03 | G43: 7934.17 | H43: 8540.87 | I43: 8712.73 | J43: 8844.22 | K43: 8581.25 | L43: 8277.9 | M43: 0.36711
A44: 35 | B44: BALKRISIND | C44: 2285.4 | D44: 2311.57 | E44: 2244.33 | F44: 2203.27 | G44: 2136.03 | H44: 2352.63 | I44: 2419.87 | J44: 2460.93 | K44: 2378.8 | L44: 2270.5 | M44: 6.34895
A45: 36 | B45: BANDHANBNK | C45: 178.7 | D45: 181.83 | E45: 173.72 | F45: 168.73 | G45: 160.62 | H45: 186.82 | I45: 194.93 | J45: 199.92 | K45: 189.95 | L45: 176.85 | M45: 182.29091
A46: 37 | B46: BANKBARODA | C46: 260.9 | D46: 264.25 | E46: 255.05 | F46: 249.20 | G46: 240.00 | H46: 270.10 | I46: 279.30 | J46: 285.15 | K46: 273.45 | L46: 258.4 | M46: 207.11328
A47: 38 | B47: BANKINDIA | C47: 128.45 | D47: 132.48 | E47: 122.87 | F47: 117.28 | G47: 107.67 | H47: 138.07 | I47: 147.68 | J47: 153.27 | K47: 142.1 | L47: 126.9 | M47: 211.97858
A48: 39 | B48: BATAINDIA | C48: 1403.5 | D48: 1404.95 | E48: 1377.30 | F48: 1351.10 | G48: 1323.45 | H48: 1431.15 | I48: 1458.80 | J48: 1485.00 | K48: 1432.6 | L48: 1378.75 | M48: 8.19845
A49: 40 | B49: BERGEPAINT | C49: 556.75 | D49: 560.05 | E49: 549.95 | F49: 543.15 | G49: 533.05 | H49: 566.85 | I49: 576.95 | J49: 583.75 | K49: 570.15 | L49: 553.25 | M49: 7.85395
A50: 41 | B50: BDL | C50: 1590.15 | D50: 1631.15 | E50: 1524.00 | F50: 1457.85 | G50: 1350.70 | H50: 1697.30 | I50: 1804.45 | J50: 1870.60 | K50: 1738.3 | L50: 1565 | M50: 15.65428
A51: 42 | B51: BEL | C51: 190.3 | D51: 194.70 | E51: 183.80 | F51: 177.30 | G51: 166.40 | H51: 201.20 | I51: 212.10 | J51: 218.60 | K51: 205.6 | L51: 188.2 | M51: 416.20003
A52: 43 | B52: BHARATFORG | C52: 1127 | D52: 1135.48 | E52: 1106.52 | F52: 1086.03 | G52: 1057.07 | H52: 1155.97 | I52: 1184.93 | J52: 1205.42 | K52: 1164.45 | L52: 1115 | M52: 15.38078
A53: 44 | B53: BHEL | C53: 225.3 | D53: 231.20 | E53: 216.15 | F53: 207.00 | G53: 191.95 | H53: 240.35 | I53: 255.40 | J53: 264.55 | K53: 246.25 | L53: 222.05 | M53: 422.67395
A54: 45 | B54: BPCL | C54: 597.75 | D54: 606.65 | E54: 585.30 | F54: 572.85 | G54: 551.50 | H54: 619.10 | I54: 640.45 | J54: 652.90 | K54: 628 | L54: 594.2 | M54: 74.55092
A55: 46 | B55: BHARTIARTL | C55: 1168.75 | D55: 1177.48 | E55: 1142.97 | F55: 1117.18 | G55: 1082.67 | H55: 1203.27 | I55: 1237.78 | J55: 1263.57 | K55: 1212 | L55: 1151.7 | M55: 75.28096
A56: 47 | B56: BIOCON | C56: 252.85 | D56: 258.90 | E56: 244.35 | F56: 235.85 | G56: 221.30 | H56: 267.40 | I56: 281.95 | J56: 290.45 | K56: 273.45 | L56: 250.4 | M56: 70.7806
A57: 48 | B57: BOSCHLTD | C57: 28300.3 | D57: 28755.43 | E57: 27660.87 | F57: 27021.43 | G57: 25926.87 | H57: 29394.87 | I57: 30489.43 | J57: 31128.87 | K57: 29850 | L57: 28116 | M57: 0.58216
A58: 49 | B58: BRITANNIA | C58: 4856.65 | D58: 4884.55 | E58: 4794.10 | F58: 4731.55 | G58: 4641.10 | H58: 4947.10 | I58: 5037.55 | J58: 5100.10 | K58: 4975 | L58: 4822 | M58: 4.10729
A59: 50 | B59: CGPOWER | C59: 461.45 | D59: 459.38 | E59: 452.87 | F59: 444.28 | G59: 437.77 | H59: 467.97 | I59: 474.48 | J59: 483.07 | K59: 465.9 | L59: 450.8 | M59: 58.76878
A60: 51 | B60: CANBK | C60: 536.45 | D60: 545.85 | E60: 520.05 | F60: 503.65 | G60: 477.85 | H60: 562.25 | I60: 588.05 | J60: 604.45 | K60: 571.65 | L60: 529.45 | M60: 122.0718
A61: 52 | B61: CHOLAFIN | C61: 1048.3 | D61: 1051.65 | E61: 1032.50 | F61: 1016.70 | G61: 997.55 | H61: 1067.45 | I61: 1086.60 | J61: 1102.40 | K61: 1070.8 | L61: 1035.85 | M61: 24.03094
A62: 53 | B62: CIPLA | C62: 1471.25 | D62: 1466.42 | E62: 1453.83 | F62: 1436.42 | G62: 1423.83 | H62: 1483.83 | I62: 1496.42 | J62: 1513.83 | K62: 1479 | L62: 1449 | M62: 17.20173
A63: 54 | B63: COALINDIA | C63: 417.05 | D63: 425.65 | E63: 401.40 | F63: 385.75 | G63: 361.50 | H63: 441.30 | I63: 465.55 | J63: 481.20 | K63: 449.9 | L63: 410 | M63: 178.03423
A64: 55 | B64: COFORGE | C64: 6173.6 | D64: 6206.32 | E64: 6087.28 | F64: 6000.97 | G64: 5881.93 | H64: 6292.63 | I64: 6411.67 | J64: 6497.98 | K64: 6325.35 | L64: 6120 | M64: 3.642
A65: 56 | B65: COLPAL | C65: 2572.4 | D65: 2590.13 | E65: 2520.27 | F65: 2468.13 | G65: 2398.27 | H65: 2642.27 | I65: 2712.13 | J65: 2764.27 | K65: 2660 | L65: 2538 | M65: 4.99489
A66: 57 | B66: CONCOR | C66: 862.45 | D66: 881.42 | E66: 834.13 | F66: 805.82 | G66: 758.53 | H66: 909.73 | I66: 957.02 | J66: 985.33 | K66: 928.7 | L66: 853.1 | M66: 37.96016
A67: 58 | B67: COROMANDEL | C67: 1076.75 | D67: 1089.40 | E67: 1055.15 | F67: 1033.55 | G67: 999.30 | H67: 1111.00 | I67: 1145.25 | J67: 1166.85 | K67: 1123.65 | L67: 1067.8 | M67: 3.58551
A68: 59 | B68: CROMPTON | C68: 277.15 | D68: 280.37 | E68: 271.33 | F68: 265.52 | G68: 256.48 | H68: 286.18 | I68: 295.22 | J68: 301.03 | K68: 289.4 | L68: 274.55 | M68: 46.68709
A69: 60 | B69: CUMMINSIND | C69: 2675.95 | D69: 2708.55 | E69: 2619.40 | F69: 2562.85 | G69: 2473.70 | H69: 2765.10 | I69: 2854.25 | J69: 2910.80 | K69: 2797.7 | L69: 2652 | M69: 6.12537
A70: 61 | B70: DLF | C70: 830.15 | D70: 841.35 | E70: 809.45 | F70: 788.75 | G70: 756.85 | H70: 862.05 | I70: 893.95 | J70: 914.65 | K70: 873.25 | L70: 820.65 | M70: 86.39565
A71: 62 | B71: DABUR | C71: 519.95 | D71: 522.38 | E71: 513.37 | F71: 506.78 | G71: 497.77 | H71: 528.97 | I71: 537.98 | J71: 544.57 | K71: 531.4 | L71: 515.8 | M71: 26.66699
A72: 63 | B72: DALBHARAT | C72: 1825.5 | D72: 1849.38 | E72: 1779.27 | F72: 1733.03 | G72: 1662.92 | H72: 1895.62 | I72: 1965.73 | J72: 2011.97 | K72: 1919.5 | L72: 1803.15 | M72: 4.50072
A73: 64 | B73: DEEPAKNTR | C73: 2065.2 | D73: 2088.45 | E73: 2030.95 | F73: 1996.70 | G73: 1939.20 | H73: 2122.70 | I73: 2180.20 | J73: 2214.45 | K73: 2145.95 | L73: 2054.2 | M73: 3.96878
A74: 65 | B74: DELHIVERY | C74: 423.45 | D74: 428.37 | E74: 412.38 | F74: 401.32 | G74: 385.33 | H74: 439.43 | I74: 455.42 | J74: 466.48 | K74: 444.35 | L74: 417.3 | M74: 22.46414
A75: 66 | B75: DEVYANI | C75: 147.85 | D75: 147.45 | E75: 142.65 | F75: 137.45 | G75: 132.65 | H75: 152.65 | I75: 157.45 | J75: 162.65 | K75: 152.25 | L75: 142.25 | M75: 72.0919
A76: 67 | B76: DIVISLAB | C76: 3479.8 | D76: 3507.18 | E76: 3427.37 | F76: 3374.93 | G76: 3295.12 | H76: 3559.62 | I76: 3639.43 | J76: 3691.87 | K76: 3587 | L76: 3454.75 | M76: 4.02498
A77: 68 | B77: DIXON | C77: 6603.9 | D77: 6703.87 | E77: 6458.73 | F77: 6313.57 | G77: 6068.43 | H77: 6849.03 | I77: 7094.17 | J77: 7239.33 | K77: 6949 | L77: 6558.7 | M77: 3.4369
A78: 69 | B78: LALPATHLAB | C78: 2011.9 | D78: 2039.53 | E78: 1972.37 | F78: 1932.83 | G78: 1865.67 | H78: 2079.07 | I78: 2146.23 | J78: 2185.77 | K78: 2106.7 | L78: 2000 | M78: 3.90641
A79: 70 | B79: DRREDDY | C79: 6303.8 | D79: 6300.87 | E79: 6251.73 | F79: 6199.67 | G79: 6150.53 | H79: 6352.93 | I79: 6402.07 | J79: 6454.13 | K79: 6350 | L79: 6248.8 | M79: 2.10265
A80: 71 | B80: EICHERMOT | C80: 3735.55 | D80: 3767.65 | E80: 3682.90 | F80: 3630.25 | G80: 3545.50 | H80: 3820.30 | I80: 3905.05 | J80: 3957.70 | K80: 3852.4 | L80: 3715 | M80: 4.28324
A81: 72 | B81: ESCORTS | C81: 2712.9 | D81: 2748.07 | E81: 2665.38 | F81: 2617.87 | G81: 2535.18 | H81: 2795.58 | I81: 2878.27 | J81: 2925.78 | K81: 2830.75 | L81: 2700.55 | M81: 1.86399
A82: 73 | B82: NYKAA | C82: 149.4 | D82: 151.62 | E82: 143.08 | F82: 136.77 | G82: 128.23 | H82: 157.93 | I82: 166.47 | J82: 172.78 | K82: 160.15 | L82: 145.3 | M82: 100.7435
A83: 74 | B83: FEDERALBNK | C83: 148.5 | D83: 149.33 | E83: 145.92 | F83: 143.33 | G83: 139.92 | H83: 151.92 | I83: 155.33 | J83: 157.92 | K83: 152.75 | L83: 146.75 | M83: 122.73615
A84: 75 | B84: FACT | C84: 593.4 | D84: 611.38 | E84: 564.27 | F84: 535.13 | G84: 488.02 | H84: 640.52 | I84: 687.63 | J84: 716.77 | K84: 658.5 | L84: 582.25 | M84: 5.4099
A85: 76 | B85: FORTIS | C85: 385.55 | D85: 390.85 | E85: 372.70 | F85: 359.85 | G85: 341.70 | H85: 403.70 | I85: 421.85 | J85: 434.70 | K85: 409 | L85: 378 | M85: 27.99185
A86: 77 | B86: GAIL | C86: 168.7 | D86: 171.72 | E86: 163.28 | F86: 157.87 | G86: 149.43 | H86: 177.13 | I86: 185.57 | J86: 190.98 | K86: 180.15 | L86: 166.3 | M86: 228.32224
A87: 78 | B87: GLAND | C87: 1690.7 | D87: 1698.03 | E87: 1663.67 | F87: 1636.63 | G87: 1602.27 | H87: 1725.07 | I87: 1759.43 | J87: 1786.47 | K87: 1732.4 | L87: 1671 | M87: 3.6162
A88: 79 | B88: GODREJCP | C88: 1196.05 | D88: 1205.13 | E88: 1176.22 | F88: 1156.38 | G88: 1127.47 | H88: 1224.97 | I88: 1253.88 | J88: 1273.72 | K88: 1234.05 | L88: 1185.3 | M88: 12.06909
A89: 80 | B89: GODREJPROP | C89: 2205.25 | D89: 2242.92 | E89: 2143.48 | F89: 2081.72 | G89: 1982.28 | H89: 2304.68 | I89: 2404.12 | J89: 2465.88 | K89: 2342.35 | L89: 2181.15 | M89: 10.14147
A90: 81 | B90: GRASIM | C90: 2149.1 | D90: 2163.15 | E90: 2123.25 | F90: 2097.40 | G90: 2057.50 | H90: 2189.00 | I90: 2228.90 | J90: 2254.75 | K90: 2203.05 | L90: 2137.3 | M90: 8.81145
A91: 82 | B91: FLUOROCHEM | C91: 3227.45 | D91: 3248.72 | E91: 3130.38 | F91: 3033.32 | G91: 2914.98 | H91: 3345.78 | I91: 3464.12 | J91: 3561.18 | K91: 3367.05 | L91: 3151.65 | M91: 0.91064
A92: 83 | B92: GUJGASLTD | C92: 528.4 | D92: 535.92 | E92: 515.68 | F92: 502.97 | G92: 482.73 | H92: 548.63 | I92: 568.87 | J92: 581.58 | K92: 556.15 | L92: 523.2 | M92: 12.66699
A93: 84 | B93: HCLTECH | C93: 1631.5 | D93: 1631.03 | E93: 1610.82 | F93: 1590.13 | G93: 1569.92 | H93: 1651.72 | I93: 1671.93 | J93: 1692.62 | K93: 1651.25 | L93: 1610.35 | M93: 25.64135
A94: 85 | B94: HDFCAMC | C94: 3636.05 | D94: 3657.67 | E94: 3564.43 | F94: 3492.82 | G94: 3399.58 | H94: 3729.28 | I94: 3822.52 | J94: 3894.13 | K94: 3750.9 | L94: 3586.05 | M94: 3.39324
A95: 86 | B95: HDFCBANK | C95: 1460.4 | D95: 1460.70 | E95: 1449.80 | F95: 1439.20 | G95: 1428.30 | H95: 1471.30 | I95: 1482.20 | J95: 1492.80 | K95: 1471.6 | L95: 1450.1 | M95: 315.33727
A96: 87 | B96: HDFCLIFE | C96: 610.05 | D96: 613.60 | E96: 600.50 | F96: 590.95 | G96: 577.85 | H96: 623.15 | I96: 636.25 | J96: 645.80 | K96: 626.7 | L96: 604.05 | M96: 28.40155
A97: 88 | B97: HAVELLS | C97: 1474.05 | D97: 1494.08 | E97: 1444.02 | F97: 1413.98 | G97: 1363.92 | H97: 1524.12 | I97: 1574.18 | J97: 1604.22 | K97: 1544.15 | L97: 1464.05 | M97: 16.11966
A98: 89 | B98: HEROMOTOCO | C98: 4512.1 | D98: 4558.47 | E98: 4430.18 | F98: 4348.27 | G98: 4219.98 | H98: 4640.38 | I98: 4768.67 | J98: 4850.58 | K98: 4686.75 | L98: 4476.55 | M98: 7.00123
A99: 90 | B99: HINDALCO | C99: 507 | D99: 512.73 | E99: 495.47 | F99: 483.93 | G99: 466.67 | H99: 524.27 | I99: 541.53 | J99: 553.07 | K99: 530 | L99: 501.2 | M99: 57.12435
A100: 91 | B100: HAL | C100: 3039.5 | D100: 3108.53 | E100: 2946.72 | F100: 2853.93 | G100: 2692.12 | H100: 3201.32 | I100: 3363.13 | J100: 3455.92 | K100: 3270.35 | L100: 3015.75 | M100: 34.48647
A101: 92 | B101: HINDPETRO | C101: 483.9 | D101: 493.17 | E101: 469.33 | F101: 454.77 | G101: 430.93 | H101: 507.73 | I101: 531.57 | J101: 546.13 | K101: 517 | L101: 478.6 | M101: 78.23337
A102: 93 | B102: HINDUNILVR | C102: 2312.6 | D102: 2330.48 | E102: 2285.97 | F102: 2259.33 | G102: 2214.82 | H102: 2357.12 | I102: 2401.63 | J102: 2428.27 | K102: 2375 | L102: 2303.85 | M102: 23.22669
A103: 94 | B103: ICICIBANK | C103: 1083.95 | D103: 1082.25 | E103: 1074.85 | F103: 1065.75 | G103: 1058.35 | H103: 1091.35 | I103: 1098.75 | J103: 1107.85 | K103: 1089.65 | L103: 1073.15 | M103: 248.5587
A104: 95 | B104: ICICIGI | C104: 1643.25 | D104: 1652.70 | E104: 1626.60 | F104: 1609.95 | G104: 1583.85 | H104: 1669.35 | I104: 1695.45 | J104: 1712.10 | K104: 1678.8 | L104: 1636.05 | M104: 17.12838
A105: 96 | B105: ICICIPRULI | C105: 573.55 | D105: 581.65 | E105: 558.90 | F105: 544.25 | G105: 521.50 | H105: 596.30 | I105: 619.05 | J105: 633.70 | K105: 604.4 | L105: 567 | M105: 31.12506
A106: 97 | B106: IDFCFIRSTB | C106: 77.5 | D106: 78.17 | E106: 76.33 | F106: 75.17 | G106: 73.33 | H106: 79.33 | I106: 81.17 | J106: 82.33 | K106: 80 | L106: 77 | M106: 433.14356
A107: 98 | B107: ITC | C107: 422.45 | D107: 427.20 | E107: 416.40 | F107: 410.35 | G107: 399.55 | H107: 433.25 | I107: 444.05 | J107: 450.10 | K107: 438 | L107: 421.15 | M107: 1016.12428
A108: 99 | B108: INDIANB | C108: 501.2 | D108: 506.25 | E108: 489.05 | F108: 476.90 | G108: 459.70 | H108: 518.40 | I108: 535.60 | J108: 547.75 | K108: 523.45 | L108: 494.1 | M108: 34.6622
A109: 100 | B109: INDHOTEL | C109: 544.7 | D109: 554.07 | E109: 530.88 | F109: 517.07 | G109: 493.88 | H109: 567.88 | I109: 591.07 | J109: 604.88 | K109: 577.25 | L109: 540.25 | M109: 45.03786
A110: 101 | B110: IOC | C110: 163.35 | D110: 166.33 | E110: 158.77 | F110: 154.18 | G110: 146.62 | H110: 170.92 | I110: 178.48 | J110: 183.07 | K110: 173.9 | L110: 161.75 | M110: 267.2535
A111: 102 | B111: IRCTC | C111: 880.65 | D111: 893.72 | E111: 855.93 | F111: 831.22 | G111: 793.43 | H111: 918.43 | I111: 956.22 | J111: 980.93 | K111: 931.5 | L111: 869 | M111: 42.44094
A112: 103 | B112: IRFC | C112: 124.25 | D112: 128.68 | E112: 118.57 | F112: 112.88 | G112: 102.77 | H112: 134.37 | I112: 144.48 | J112: 150.17 | K112: 138.8 | L112: 123 | M112: 888.53047
A113: 104 | B113: IGL | C113: 407.55 | D113: 413.32 | E113: 397.63 | F113: 387.72 | G113: 372.03 | H113: 423.23 | I113: 438.92 | J113: 448.83 | K113: 429 | L113: 403.4 | M113: 24.92998
A114: 105 | B114: INDUSTOWER | C114: 236.4 | D114: 239.08 | E114: 228.62 | F114: 220.83 | G114: 210.37 | H114: 246.87 | I114: 257.33 | J114: 265.12 | K114: 249.55 | L114: 231.3 | M114: 160.39868
A115: 106 | B115: INDUSINDBK | C115: 1502.65 | D115: 1512.75 | E115: 1484.90 | F115: 1467.15 | G115: 1439.30 | H115: 1530.50 | I115: 1558.35 | J115: 1576.10 | K115: 1540.6 | L115: 1495 | M115: 41.65036
A116: 107 | B116: NAUKRI | C116: 5107.2 | D116: 5129.47 | E116: 5021.98 | F116: 4936.77 | G116: 4829.28 | H116: 5214.68 | I116: 5322.17 | J116: 5407.38 | K116: 5236.95 | L116: 5044.25 | M116: 4.32451
A117: 108 | B117: INFY | C117: 1611.4 | D117: 1611.48 | E117: 1598.47 | F117: 1585.53 | G117: 1572.52 | H117: 1624.42 | I117: 1637.43 | J117: 1650.37 | K117: 1624.5 | L117: 1598.55 | M117: 56.88997
A118: 109 | B118: INDIGO | C118: 3112.55 | D118: 3153.72 | E118: 3048.93 | F118: 2985.32 | G118: 2880.53 | H118: 3217.33 | I118: 3322.12 | J118: 3385.73 | K118: 3258.5 | L118: 3090.1 | M118: 20.5305
A119: 110 | B119: IPCALAB | C119: 1133.25 | D119: 1145.68 | E119: 1109.82 | F119: 1086.38 | G119: 1050.52 | H119: 1169.12 | I119: 1204.98 | J119: 1228.42 | K119: 1181.55 | L119: 1122.25 | M119: 1.89961
A120: 111 | B120: JSWENERGY | C120: 461.05 | D120: 476.28 | E120: 444.77 | F120: 428.48 | G120: 396.97 | H120: 492.57 | I120: 524.08 | J120: 540.37 | K120: 507.8 | L120: 460 | M120: 55.54982
A121: 112 | B121: JSWSTEEL | C121: 792.95 | D121: 800.67 | E121: 780.73 | F121: 768.52 | G121: 748.58 | H121: 812.88 | I121: 832.82 | J121: 845.03 | K121: 820.6 | L121: 788.45 | M121: 30.47464
A122: 113 | B122: JINDALSTEL | C122: 764.2 | D122: 779.70 | E122: 744.70 | F122: 725.20 | G122: 690.20 | H122: 799.20 | I122: 834.20 | J122: 853.70 | K122: 814.7 | L122: 760.2 | M122: 21.7525
A123: 114 | B123: JUBLFOOD | C123: 431 | D123: 435.43 | E123: 421.67 | F123: 412.33 | G123: 398.57 | H123: 444.77 | I123: 458.53 | J123: 467.87 | K123: 449.2 | L123: 426.1 | M123: 34.72508
A124: 115 | B124: KPITTECH | C124: 1415.65 | D124: 1413.17 | E124: 1357.53 | F124: 1299.42 | G124: 1243.78 | H124: 1471.28 | I124: 1526.92 | J124: 1585.03 | K124: 1468.8 | L124: 1355.05 | M124: 19.01824
A125: 116 | B125: KOTAKBANK | C125: 1729.55 | D125: 1729.83 | E125: 1716.92 | F125: 1704.28 | G125: 1691.37 | H125: 1742.47 | I125: 1755.38 | J125: 1768.02 | K125: 1742.75 | L125: 1717.2 | M125: 58.16083
A126: 117 | B126: L&TFH | C126: 147.6 | D126: 150.55 | E126: 143.40 | F126: 139.20 | G126: 132.05 | H126: 154.75 | I126: 161.90 | J126: 166.10 | K126: 157.7 | L126: 146.35 | M126: 72.66982
A127: 118 | B127: LTTS | C127: 5154.4 | D127: 5199.55 | E127: 5080.10 | F127: 5005.80 | G127: 4886.35 | H127: 5273.85 | I127: 5393.30 | J127: 5467.60 | K127: 5319 | L127: 5125.25 | M127: 1.25309
A128: 119 | B128: LICHSGFIN | C128: 590.45 | D128: 600.45 | E128: 574.95 | F128: 559.45 | G128: 533.95 | H128: 615.95 | I128: 641.45 | J128: 656.95 | K128: 625.95 | L128: 584.95 | M128: 31.02446
A129: 120 | B129: LTIM | C129: 5195 | D129: 5210.12 | E129: 5145.03 | F129: 5095.07 | G129: 5029.98 | H129: 5260.08 | I129: 5325.17 | J129: 5375.13 | K129: 5275.2 | L129: 5160.15 | M129: 6.17665
A130: 121 | B130: LT | C130: 3538.55 | D130: 3562.42 | E130: 3488.03 | F130: 3437.52 | G130: 3363.13 | H130: 3612.93 | I130: 3687.32 | J130: 3737.83 | K130: 3636.8 | L130: 3511.9 | M130: 25.03293
A131: 122 | B131: LAURUSLABS | C131: 400.6 | D131: 404.15 | E131: 390.10 | F131: 379.60 | G131: 365.55 | H131: 414.65 | I131: 428.70 | J131: 439.20 | K131: 418.2 | L131: 393.65 | M131: 25.42891
A132: 123 | B132: LICI | C132: 909.75 | D132: 934.90 | E132: 874.85 | F132: 839.95 | G132: 779.90 | H132: 969.80 | I132: 1029.85 | J132: 1064.75 | K132: 994.95 | L132: 900 | M132: 64.31249
A133: 124 | B133: LUPIN | C133: 1603.5 | D133: 1618.08 | E133: 1574.97 | F133: 1546.43 | G133: 1503.32 | H133: 1646.62 | I133: 1689.73 | J133: 1718.27 | K133: 1661.2 | L133: 1589.55 | M133: 8.97074
A134: 125 | B134: MRF | C134: 139057.7 | D134: 140101.53 | E134: 136703.07 | F134: 134348.43 | G134: 130949.97 | H134: 142456.17 | I134: 145854.63 | J134: 148209.27 | K134: 143500 | L134: 137746.9 | M134: 0.09846
A135: 126 | B135: LODHA | C135: 1012.6 | D135: 1040.03 | E135: 959.07 | F135: 905.53 | G135: 824.57 | H135: 1093.57 | I135: 1174.53 | J135: 1228.07 | K135: 1121 | L135: 986.5 | M135: 27.17829
A136: 127 | B136: M&MFIN | C136: 264.4 | D136: 270.15 | E136: 256.30 | F136: 248.20 | G136: 234.35 | H136: 278.25 | I136: 292.10 | J136: 300.20 | K136: 284 | L136: 262.05 | M136: 40.81909
A137: 128 | B137: M&M | C137: 1853.7 | D137: 1866.45 | E137: 1831.50 | F137: 1809.30 | G137: 1774.35 | H137: 1888.65 | I137: 1923.60 | J137: 1945.80 | K137: 1901.4 | L137: 1844.25 | M137: 42.70994
A138: 129 | B138: MANKIND | C138: 2066.2 | D138: 2072.60 | E138: 2015.60 | F138: 1965.00 | G138: 1908.00 | H138: 2123.20 | I138: 2180.20 | J138: 2230.80 | K138: 2129.6 | L138: 2022 | M138: 2.96258
A139: 130 | B139: MARICO | C139: 496.15 | D139: 500.83 | E139: 489.97 | F139: 483.78 | G139: 472.92 | H139: 507.02 | I139: 517.88 | J139: 524.07 | K139: 511.7 | L139: 494.65 | M139: 22.17193
A140: 131 | B140: MARUTI | C140: 11390.15 | D140: 11404.20 | E140: 11253.55 | F140: 11116.95 | G140: 10966.30 | H140: 11540.80 | I140: 11691.45 | J140: 11828.05 | K140: 11554.85 | L140: 11267.6 | M140: 3.85204
A141: 132 | B141: MFSL | C141: 951.95 | D141: 965.90 | E141: 931.80 | F141: 911.65 | G141: 877.55 | H141: 986.05 | I141: 1020.15 | J141: 1040.30 | K141: 1000 | L141: 945.75 | M141: 12.64419
A142: 133 | B142: MAXHEALTH | C142: 744.45 | D142: 750.82 | E142: 728.63 | F142: 712.82 | G142: 690.63 | H142: 766.63 | I142: 788.82 | J142: 804.63 | K142: 773 | L142: 735 | M142: 23.67867
A143: 134 | B143: MAZDOCK | C143: 1858.95 | D143: 1913.57 | E143: 1790.38 | F143: 1721.82 | G143: 1598.63 | H143: 1982.13 | I143: 2105.32 | J143: 2173.88 | K143: 2036.75 | L143: 1845 | M143: 11.73186
A144: 135 | B144: MSUMI | C144: 61.55 | D144: 62.83 | E144: 59.72 | F144: 57.88 | G144: 54.77 | H144: 64.67 | I144: 67.78 | J144: 69.62 | K144: 65.95 | L144: 61 | M144: 167.84016
A145: 136 | B145: MPHASIS | C145: 2375.3 | D145: 2394.72 | E145: 2328.63 | F145: 2281.97 | G145: 2215.88 | H145: 2441.38 | I145: 2507.47 | J145: 2554.13 | K145: 2460.8 | L145: 2348.05 | M145: 5.31757
A146: 137 | B146: MUTHOOTFIN | C146: 1350.5 | D146: 1364.25 | E146: 1326.55 | F146: 1302.60 | G146: 1264.90 | H146: 1388.20 | I146: 1425.90 | J146: 1449.85 | K146: 1401.95 | L146: 1340.3 | M146: 5.11225
A147: 138 | B147: NHPC | C147: 78.15 | D147: 80.67 | E147: 74.83 | F147: 71.52 | G147: 65.68 | H147: 83.98 | I147: 89.82 | J147: 93.13 | K147: 86.5 | L147: 77.35 | M147: 1916.12158
A148: 139 | B148: NMDC | C148: 205.45 | D148: 211.00 | E148: 197.85 | F148: 190.25 | G148: 177.10 | H148: 218.60 | I148: 231.75 | J148: 239.35 | K148: 224.15 | L148: 203.4 | M148: 221.98771
A149: 140 | B149: NTPC | C149: 322.5 | D149: 328.83 | E149: 313.17 | F149: 303.83 | G149: 288.17 | H149: 338.17 | I149: 353.83 | J149: 363.17 | K149: 344.5 | L149: 319.5 | M149: 237.22232
A150: 141 | B150: NAVINFLUOR | C150: 2924.25 | D150: 2956.43 | E150: 2881.97 | F150: 2839.68 | G150: 2765.22 | H150: 2998.72 | I150: 3073.18 | J150: 3115.47 | K150: 3030.9 | L150: 2914.15 | M150: 3.09551
A151: 142 | B151: NESTLEIND | C151: 2582.95 | D151: 2596.48 | E151: 2539.32 | F151: 2495.68 | G151: 2438.52 | H151: 2640.12 | I151: 2697.28 | J151: 2740.92 | K151: 2653.65 | L151: 2552.85 | M151: 18.13802
A152: 143 | B152: OBEROIRLTY | C152: 1299.85 | D152: 1312.43 | E152: 1271.57 | F152: 1243.28 | G152: 1202.42 | H152: 1340.72 | I152: 1381.58 | J152: 1409.87 | K152: 1353.3 | L152: 1284.15 | M152: 8.96681
A153: 144 | B153: ONGC | C153: 255.35 | D153: 259.70 | E153: 248.40 | F153: 241.45 | G153: 230.15 | H153: 266.65 | I153: 277.95 | J153: 284.90 | K153: 271 | L153: 252.75 | M153: 200.79496
A154: 145 | B154: OIL | C154: 573.8 | D154: 585.43 | E154: 551.52 | F154: 529.23 | G154: 495.32 | H154: 607.72 | I154: 641.63 | J154: 663.92 | K154: 619.35 | L154: 563.15 | M154: 56.3675
A155: 146 | B155: PAYTM | C155: 350.95 | D155: 358.12 | E155: 343.78 | F155: 336.62 | G155: 322.28 | H155: 365.28 | I155: 379.62 | J155: 386.78 | K155: 372.45 | L155: 350.95 | M155: 25.83164
A156: 147 | B156: POLICYBZR | C156: 1075.65 | D156: 1087.87 | E156: 1022.83 | F156: 970.02 | G156: 904.98 | H156: 1140.68 | I156: 1205.72 | J156: 1258.53 | K156: 1152.9 | L156: 1035.05 | M156: 29.2383
A157: 148 | B157: PIIND | C157: 3580.8 | D157: 3593.77 | E157: 3532.18 | F157: 3483.57 | G157: 3421.98 | H157: 3642.38 | I157: 3703.97 | J157: 3752.58 | K157: 3655.35 | L157: 3545.15 | M157: 4.40223
A158: 149 | B158: PAGEIND | C158: 34031.75 | D158: 34401.35 | E158: 33480.40 | F158: 32929.05 | G158: 32008.10 | H158: 34952.70 | I158: 35873.65 | J158: 36425.00 | K158: 35322.3 | L158: 33850 | M158: 0.32802
A159: 150 | B159: PATANJALI | C159: 1348.3 | D159: 1340.53 | E159: 1288.77 | F159: 1229.23 | G159: 1177.47 | H159: 1400.07 | I159: 1451.83 | J159: 1511.37 | K159: 1392.3 | L159: 1281 | M159: 13.54916
A160: 151 | B160: PERSISTENT | C160: 8127.35 | D160: 8164.48 | E160: 8013.97 | F160: 7900.58 | G160: 7750.07 | H160: 8277.87 | I160: 8428.38 | J160: 8541.77 | K160: 8315 | L160: 8051.1 | M160: 2.52035
A161: 152 | B161: PETRONET | C161: 263.75 | D161: 268.13 | E161: 258.02 | F161: 252.28 | G161: 242.17 | H161: 273.87 | I161: 283.98 | J161: 289.72 | K161: 278.25 | L161: 262.4 | M161: 51.9779
A162: 153 | B162: PIDILITIND | C162: 2823.2 | D162: 2839.85 | E162: 2782.25 | F162: 2741.30 | G162: 2683.70 | H162: 2880.80 | I162: 2938.40 | J162: 2979.35 | K162: 2897.45 | L162: 2798.9 | M162: 4.7745
A163: 154 | B163: PEL | C163: 822.85 | D163: 831.95 | E163: 797.35 | F163: 771.85 | G163: 737.25 | H163: 857.45 | I163: 892.05 | J163: 917.55 | K163: 866.55 | L163: 806.45 | M163: 19.71812
A164: 155 | B164: POLYCAB | C164: 4778.9 | D164: 4812.77 | E164: 4696.38 | F164: 4613.87 | G164: 4497.48 | H164: 4895.28 | I164: 5011.67 | J164: 5094.18 | K164: 4929.15 | L164: 4730.25 | M164: 6.33146
A165: 156 | B165: POONAWALLA | C165: 465.35 | D165: 467.13 | E165: 445.27 | F165: 425.18 | G165: 403.32 | H165: 487.22 | I165: 509.08 | J165: 529.17 | K165: 489 | L165: 447.05 | M165: 64.44844
A166: 157 | B166: PFC | C166: 397.6 | D166: 406.63 | E166: 383.32 | F166: 369.03 | G166: 345.72 | H166: 420.92 | I166: 444.23 | J166: 458.52 | K166: 429.95 | L166: 392.35 | M166: 183.57786
A167: 158 | B167: POWERGRID | C167: 264.3 | D167: 270.00 | E167: 256.10 | F167: 247.90 | G167: 234.00 | H167: 278.20 | I167: 292.10 | J167: 300.30 | K167: 283.9 | L167: 261.8 | M167: 393.89523
A168: 159 | B168: PRESTIGE | C168: 1123 | D168: 1110.08 | E168: 1061.17 | F168: 999.33 | G168: 950.42 | H168: 1171.92 | I168: 1220.83 | J168: 1282.67 | K168: 1159 | L168: 1048.25 | M168: 21.04976
A169: 160 | B169: PGHH | C169: 15509.85 | D169: 15544.32 | E169: 15310.93 | F169: 15112.02 | G169: 14878.63 | H169: 15743.23 | I169: 15976.62 | J169: 16175.53 | K169: 15777.7 | L169: 15345.4 | M169: 0.02893
A170: 161 | B170: PNB | C170: 118.8 | D170: 120.85 | E170: 114.85 | F170: 110.90 | G170: 104.90 | H170: 124.80 | I170: 130.80 | J170: 134.75 | K170: 126.85 | L170: 116.9 | M170: 696.47674
A171: 162 | B171: RECLTD | C171: 448.5 | D171: 458.57 | E171: 431.43 | F171: 414.37 | G171: 387.23 | H171: 475.63 | I171: 502.77 | J171: 519.83 | K171: 485.7 | L171: 441.5 | M171: 222.6957
A172: 163 | B172: RVNL | C172: 222.6 | D172: 229.25 | E172: 212.90 | F172: 203.20 | G172: 186.85 | H172: 238.95 | I172: 255.30 | J172: 265.00 | K172: 245.6 | L172: 219.55 | M172: 262.57106
A173: 164 | B173: RELIANCE | C173: 2864.35 | D173: 2895.37 | E173: 2824.53 | F173: 2784.72 | G173: 2713.88 | H173: 2935.18 | I173: 3006.02 | J173: 3045.83 | K173: 2966.2 | L173: 2855.55 | M173: 67.61067
A174: 165 | B174: SBICARD | C174: 685.3 | D174: 690.60 | E174: 677.70 | F174: 670.10 | G174: 657.20 | H174: 698.20 | I174: 711.10 | J174: 718.70 | K174: 703.5 | L174: 683 | M174: 15.18868
A175: 166 | B175: SBILIFE | C175: 1487.35 | D175: 1500.20 | E175: 1467.80 | F175: 1448.25 | G175: 1415.85 | H175: 1519.75 | I175: 1552.15 | J175: 1571.70 | K175: 1532.6 | L175: 1480.65 | M175: 14.61171
A176: 167 | B176: SRF | C176: 2386 | D176: 2407.70 | E176: 2353.40 | F176: 2320.80 | G176: 2266.50 | H176: 2440.30 | I176: 2494.60 | J176: 2527.20 | K176: 2462 | L176: 2375.1 | M176: 4.42261
A177: 168 | B177: MOTHERSON | C177: 110.2 | D177: 111.38 | E177: 106.32 | F177: 102.43 | G177: 97.37 | H177: 115.27 | I177: 120.33 | J177: 124.22 | K177: 116.45 | L177: 107.5 | M177: 313.16694
A178: 169 | B178: SHREECEM | C178: 24360.35 | D178: 24591.03 | E178: 24017.07 | F178: 23673.78 | G178: 23099.82 | H178: 24934.32 | I178: 25508.28 | J178: 25851.57 | K178: 25165 | L178: 24247.75 | M178: 0.3572
A179: 170 | B179: SHRIRAMFIN | C179: 2321.4 | D179: 2353.73 | E179: 2267.77 | F179: 2214.13 | G179: 2128.17 | H179: 2407.37 | I179: 2493.33 | J179: 2546.97 | K179: 2439.7 | L179: 2300.1 | M179: 16.23771
A180: 171 | B180: SIEMENS | C180: 4650.1 | D180: 4702.63 | E180: 4561.27 | F180: 4472.43 | G180: 4331.07 | H180: 4791.47 | I180: 4932.83 | J180: 5021.67 | K180: 4844 | L180: 4613.8 | M180: 3.79017
A181: 172 | B181: SONACOMS | C181: 642.5 | D181: 644.73 | E181: 601.42 | F181: 560.33 | G181: 517.02 | H181: 685.82 | I181: 729.13 | J181: 770.22 | K181: 688.05 | L181: 603.65 | M181: 69.5403
A182: 173 | B182: SBIN | C182: 747.25 | D182: 751.32 | E182: 738.93 | F182: 730.62 | G182: 718.23 | H182: 759.63 | I182: 772.02 | J182: 780.33 | K182: 763.7 | L182: 743 | M182: 279.50252
A183: 174 | B183: SAIL | C183: 118.7 | D183: 122.17 | E183: 113.88 | F183: 109.07 | G183: 100.78 | H183: 126.98 | I183: 135.27 | J183: 140.08 | K183: 130.45 | L183: 117.35 | M183: 540.01247
A184: 175 | B184: SUNPHARMA | C184: 1558.6 | D184: 1564.93 | E184: 1537.67 | F184: 1516.73 | G184: 1489.47 | H184: 1585.87 | I184: 1613.13 | J184: 1634.07 | K184: 1592.2 | L184: 1544 | M184: 28.81503
A185: 176 | B185: SUNTV | C185: 585.75 | D185: 595.47 | E185: 572.53 | F185: 559.32 | G185: 536.38 | H185: 608.68 | I185: 631.62 | J185: 644.83 | K185: 618.4 | L185: 582.25 | M185: 11.23714
A186: 177 | B186: SYNGENE | C186: 670.45 | D186: 677.70 | E186: 658.00 | F186: 645.55 | G186: 625.85 | H186: 690.15 | I186: 709.85 | J186: 722.30 | K186: 697.4 | L186: 665.25 | M186: 7.71428
A187: 178 | B187: TVSMOTOR | C187: 2146.25 | D187: 2176.50 | E187: 2095.50 | F187: 2044.75 | G187: 1963.75 | H187: 2227.25 | I187: 2308.25 | J187: 2359.00 | K187: 2257.5 | L187: 2125.75 | M187: 9.99329
A188: 179 | B188: TATACHEM | C188: 1097.45 | D188: 1115.97 | E188: 1062.93 | F188: 1028.42 | G188: 975.38 | H188: 1150.48 | I188: 1203.52 | J188: 1238.03 | K188: 1169 | L188: 1081.45 | M188: 37.97424
A189: 180 | B189: TATACOMM | C189: 1885.6 | D189: 1914.53 | E189: 1832.07 | F189: 1778.53 | G189: 1696.07 | H189: 1968.07 | I189: 2050.53 | J189: 2104.07 | K189: 1997 | L189: 1861 | M189: 7.02854
A190: 181 | B190: TCS | C190: 4149 | D190: 4173.97 | E190: 4106.93 | F190: 4064.87 | G190: 3997.83 | H190: 4216.03 | I190: 4283.07 | J190: 4325.13 | K190: 4241 | L190: 4131.9 | M190: 28.3726
A191: 182 | B191: TATACONSUM | C191: 1178.95 | D191: 1189.02 | E191: 1160.63 | F191: 1142.32 | G191: 1113.93 | H191: 1207.33 | I191: 1235.72 | J191: 1254.03 | K191: 1217.4 | L191: 1170.7 | M191: 20.50756
A192: 183 | B192: TATAELXSI | C192: 7392.8 | D192: 7521.82 | E192: 7205.98 | F192: 7019.17 | G192: 6703.33 | H192: 7708.63 | I192: 8024.47 | J192: 8211.28 | K192: 7837.65 | L192: 7335 | M192: 3.14712
A193: 184 | B193: TATAMTRDVR | C193: 642.95 | D193: 652.75 | E193: 626.55 | F193: 610.15 | G193: 583.95 | H193: 669.15 | I193: 695.35 | J193: 711.75 | K193: 678.95 | L193: 636.35 | M193: 32.41128
A194: 185 | B194: TATAMOTORS | C194: 973.2 | D194: 985.92 | E194: 950.83 | F194: 928.47 | G194: 893.38 | H194: 1008.28 | I194: 1043.37 | J194: 1065.73 | K194: 1021 | L194: 963.55 | M194: 165.64155
A195: 186 | B195: TATAPOWER | C195: 371.95 | D195: 379.83 | E195: 359.87 | F195: 347.78 | G195: 327.82 | H195: 391.92 | I195: 411.88 | J195: 423.97 | K195: 399.8 | L195: 367.75 | M195: 361.85918
A196: 187 | B196: TATASTEEL | C196: 143.65 | D196: 146.35 | E196: 139.80 | F196: 135.95 | G196: 129.40 | H196: 150.20 | I196: 156.75 | J196: 160.60 | K196: 152.9 | L196: 142.5 | M196: 709.37597
A197: 188 | B197: TECHM | C197: 1277.2 | D197: 1280.97 | E197: 1262.53 | F197: 1247.87 | G197: 1229.43 | H197: 1295.63 | I197: 1314.07 | J197: 1328.73 | K197: 1299.4 | L197: 1266.3 | M197: 20.01399
A198: 189 | B198: RAMCOCEM | C198: 790.25 | D198: 794.03 | E198: 778.07 | F198: 765.88 | G198: 749.92 | H198: 806.22 | I198: 822.18 | J198: 834.37 | K198: 810 | L198: 781.85 | M198: 4.87473
A199: 190 | B199: TITAN | C199: 3625.7 | D199: 3659.23 | E199: 3556.47 | F199: 3487.23 | G199: 3384.47 | H199: 3728.47 | I199: 3831.23 | J199: 3900.47 | K199: 3762 | L199: 3590 | M199: 10.27729
A200: 191 | B200: TORNTPHARM | C200: 2663.95 | D200: 2664.45 | E200: 2638.45 | F200: 2612.95 | G200: 2586.95 | H200: 2689.95 | I200: 2715.95 | J200: 2741.45 | K200: 2690.45 | L200: 2638.95 | M200: 4.13261
A201: 192 | B201: TORNTPOWER | C201: 1135.95 | D201: 1155.60 | E201: 1105.35 | F201: 1074.75 | G201: 1024.50 | H201: 1186.20 | I201: 1236.45 | J201: 1267.05 | K201: 1205.85 | L201: 1125 | M201: 15.19388
A202: 193 | B202: TRENT | C202: 3944.05 | D202: 3953.17 | E202: 3868.38 | F202: 3792.72 | G202: 3707.93 | H202: 4028.83 | I202: 4113.62 | J202: 4189.28 | K202: 4037.95 | L202: 3877.5 | M202: 9.68084
A203: 194 | B203: TIINDIA | C203: 3455.3 | D203: 3471.27 | E203: 3394.53 | F203: 3333.77 | G203: 3257.03 | H203: 3532.03 | I203: 3608.77 | J203: 3669.53 | K203: 3548 | L203: 3410.5 | M203: 1.72415
A204: 195 | B204: UPL | C204: 451.9 | D204: 459.58 | E204: 442.37 | F204: 432.83 | G204: 415.62 | H204: 469.12 | I204: 486.33 | J204: 495.87 | K204: 476.8 | L204: 450.05 | M204: 34.46385
A205: 196 | B205: ULTRACEMCO | C205: 9593.55 | D205: 9582.18 | E205: 9511.37 | F205: 9429.18 | G205: 9358.37 | H205: 9664.37 | I205: 9735.18 | J205: 9817.37 | K205: 9653 | L205: 9500 | M205: 4.15925
... 30 more rows

Sheet MidCap Intra
L5: Back To Main Page
A6: FOR INTRA DAY TRADING | K6: =Main!B10 -> 2024-03-14
A9: Sr.no | B9: Scrip | C9: CLOSE RATE | D9: Pivot Point | E9: Supports | H9: Resistances
E10: S1 | F10: S2 | G10: S3 | H10: R1 | I10: R2 | J10: R3 | K10: HIGH | L10: LOW | M10: Total Trade Quanity in Lakhs
A11: 1 | B11: 360ONE | C11: 697.6 | D11: 693.17 | E11: 679.18 | F11: 660.77 | G11: 646.78 | H11: 711.58 | I11: 725.57 | J11: 743.98 | K11: 707.15 | L11: 674.75 | M11: 4.72495
A12: 2 | B12: 3MINDIA | C12: 30246.55 | D12: 30350.55 | E12: 29801.10 | F12: 29355.65 | G12: 28806.20 | H12: 30796.00 | I12: 31345.45 | J12: 31790.90 | K12: 30900 | L12: 29905.1 | M12: 0.06237
A13: 3 | B13: ABB | C13: 5597.25 | D13: 5659.77 | E13: 5510.18 | F13: 5423.12 | G13: 5273.53 | H13: 5746.83 | I13: 5896.42 | J13: 5983.48 | K13: 5809.35 | L13: 5572.7 | M13: 4.54668
A14: 4 | B14: ACC | C14: 2389.1 | D14: 2439.73 | E14: 2303.82 | F14: 2218.53 | G14: 2082.62 | H14: 2525.02 | I14: 2660.93 | J14: 2746.22 | K14: 2575.65 | L14: 2354.45 | M14: 5.12003
A15: 5 | B15: AIAENG | C15: 3629.85 | D15: 3625.63 | E15: 3558.32 | F15: 3486.78 | G15: 3419.47 | H15: 3697.17 | I15: 3764.48 | J15: 3836.02 | K15: 3692.95 | L15: 3554.1 | M15: 0.47161
A16: 6 | B16: APLAPOLLO | C16: 1492.45 | D16: 1530.82 | E16: 1401.63 | F16: 1310.82 | G16: 1181.63 | H16: 1621.63 | I16: 1750.82 | J16: 1841.63 | K16: 1660 | L16: 1440 | M16: 65.07913
A17: 7 | B17: AUBANK | C17: 576.9 | D17: 578.08 | E17: 569.72 | F17: 562.53 | G17: 554.17 | H17: 585.27 | I17: 593.63 | J17: 600.82 | K17: 586.45 | L17: 570.9 | M17: 46.09989
A18: 8 | B18: AARTIDRUGS | C18: 451.75 | D18: 451.98 | E18: 440.17 | F18: 428.58 | G18: 416.77 | H18: 463.57 | I18: 475.38 | J18: 486.97 | K18: 463.8 | L18: 440.4 | M18: 2.5998
A19: 9 | B19: AARTIIND | C19: 619.9 | D19: 628.07 | E19: 602.63 | F19: 585.37 | G19: 559.93 | H19: 645.33 | I19: 670.77 | J19: 688.03 | K19: 653.5 | L19: 610.8 | M19: 17.01165
A20: 10 | B20: AAVAS | C20: 1339.65 | D20: 1354.70 | E20: 1315.95 | F20: 1292.25 | G20: 1253.50 | H20: 1378.40 | I20: 1417.15 | J20: 1440.85 | K20: 1393.45 | L20: 1331 | M20: 2.09892
A21: 11 | B21: ABBOTINDIA | C21: 27401.95 | D21: 27252.78 | E21: 26978.17 | F21: 26554.38 | G21: 26279.77 | H21: 27676.57 | I21: 27951.18 | J21: 28374.97 | K21: 27527.4 | L21: 26829 | M21: 0.12992
A22: 12 | B22: ADANIENSOL | C22: 947.95 | D22: 970.08 | E22: 893.17 | F22: 838.38 | G22: 761.47 | H22: 1024.87 | I22: 1101.78 | J22: 1156.57 | K22: 1047 | L22: 915.3 | M22: 28.54959
A23: 13 | B23: ADANIENT | C23: 2906.2 | D23: 2964.80 | E23: 2791.55 | F23: 2676.90 | G23: 2503.65 | H23: 3079.45 | I23: 3252.70 | J23: 3367.35 | K23: 3138.05 | L23: 2850.15 | M23: 34.0704
A24: 14 | B24: ADANIGREEN | C24: 1725 | D24: 1763.87 | E24: 1611.13 | F24: 1497.27 | G24: 1344.53 | H24: 1877.73 | I24: 2030.47 | J24: 2144.33 | K24: 1916.6 | L24: 1650 | M24: 23.48187
A25: 15 | B25: ADANIPORTS | C25: 1209.55 | D25: 1235.22 | E25: 1162.43 | F25: 1115.32 | G25: 1042.53 | H25: 1282.33 | I25: 1355.12 | J25: 1402.23 | K25: 1308 | L25: 1188.1 | M25: 86.70336
A26: 16 | B26: ADANIPOWER | C26: 528.3 | D26: 538.57 | E26: 518.03 | F26: 507.77 | G26: 487.23 | H26: 548.83 | I26: 569.37 | J26: 579.63 | K26: 559.1 | L26: 528.3 | M26: 17.91061
A27: 17 | B27: ATGL | C27: 873 | D27: 903.70 | E27: 831.35 | F27: 789.70 | G27: 717.35 | H27: 945.35 | I27: 1017.70 | J27: 1059.35 | K27: 976.05 | L27: 862.05 | M27: 41.64593
A28: 18 | B28: AWL | C28: 332.55 | D28: 337.20 | E28: 320.70 | F28: 308.85 | G28: 292.35 | H28: 349.05 | I28: 365.55 | J28: 377.40 | K28: 353.7 | L28: 325.35 | M28: 38.33297
A29: 19 | B29: ABCAPITAL | C29: 171.4 | D29: 174.93 | E29: 165.77 | F29: 160.13 | G29: 150.97 | H29: 180.57 | I29: 189.73 | J29: 195.37 | K29: 184.1 | L29: 169.3 | M29: 115.24938
A30: 20 | B30: ABFRL | C30: 200.35 | D30: 205.02 | E30: 194.18 | F30: 188.02 | G30: 177.18 | H30: 211.18 | I30: 222.02 | J30: 228.18 | K30: 215.85 | L30: 198.85 | M30: 56.58098
A31: 21 | B31: AEGISCHEM | C31: 362.7 | D31: 374.52 | E31: 345.23 | F31: 327.77 | G31: 298.48 | H31: 391.98 | I31: 421.27 | J31: 438.73 | K31: 403.8 | L31: 357.05 | M31: 14.71463
A32: 22 | B32: AETHER | C32: 786.95 | D32: 792.90 | E32: 777.10 | F32: 767.25 | G32: 751.45 | H32: 802.75 | I32: 818.55 | J32: 828.40 | K32: 808.7 | L32: 783.05 | M32: 0.9401
A33: 23 | B33: AFFLE | C33: 1022 | D33: 1031.00 | E33: 1004.00 | F33: 986.00 | G33: 959.00 | H33: 1049.00 | I33: 1076.00 | J33: 1094.00 | K33: 1058 | L33: 1013 | M33: 2.79518
A34: 24 | B34: AJANTPHARM | C34: 2110.7 | D34: 2094.68 | E34: 2014.37 | F34: 1918.03 | G34: 1837.72 | H34: 2191.02 | I34: 2271.33 | J34: 2367.67 | K34: 2175 | L34: 1998.35 | M34: 1.22917
A35: 25 | B35: APLLTD | C35: 919.4 | D35: 939.72 | E35: 881.48 | F35: 843.57 | G35: 785.33 | H35: 977.63 | I35: 1035.87 | J35: 1073.78 | K35: 997.95 | L35: 901.8 | M35: 1.66114
A36: 26 | B36: ALKEM | C36: 4945.65 | D36: 4973.87 | E36: 4866.83 | F36: 4788.02 | G36: 4680.98 | H36: 5052.68 | I36: 5159.72 | J36: 5238.53 | K36: 5080.9 | L36: 4895.05 | M36: 2.4096
A37: 27 | B37: ALKYLAMINE | C37: 1975.1 | D37: 2002.07 | E37: 1939.23 | F37: 1903.37 | G37: 1840.53 | H37: 2037.93 | I37: 2100.77 | J37: 2136.63 | K37: 2064.9 | L37: 1966.2 | M37: 0.77925
A38: 28 | B38: ALLCARGO | C38: 69.1 | D38: 71.20 | E38: 66.40 | F38: 63.70 | G38: 58.90 | H38: 73.90 | I38: 78.70 | J38: 81.40 | K38: 76 | L38: 68.5 | M38: 43.7406
A39: 29 | B39: ALOKINDS | C39: 27.15 | D39: 27.62 | E39: 26.68 | F39: 26.22 | G39: 25.28 | H39: 28.08 | I39: 29.02 | J39: 29.48 | K39: 28.55 | L39: 27.15 | M39: 32.6482
A40: 30 | B40: ARE&M | C40: 783.15 | D40: 799.23 | E40: 747.92 | F40: 712.68 | G40: 661.37 | H40: 834.47 | I40: 885.78 | J40: 921.02 | K40: 850.55 | L40: 764 | M40: 14.98948
A41: 31 | B41: AMBER | C41: 3554.75 | D41: 3530.88 | E41: 3406.82 | F41: 3258.88 | G41: 3134.82 | H41: 3678.82 | I41: 3802.88 | J41: 3950.82 | K41: 3654.95 | L41: 3382.95 | M41: 1.68859
A42: 32 | B42: AMBUJACEM | C42: 559.25 | D42: 566.80 | E42: 543.25 | F42: 527.25 | G42: 503.70 | H42: 582.80 | I42: 606.35 | J42: 622.35 | K42: 590.35 | L42: 550.8 | M42: 59.46259
A43: 33 | B43: ANGELONE | C43: 2435.2 | D43: 2443.77 | E43: 2326.83 | F43: 2218.47 | G43: 2101.53 | H43: 2552.13 | I43: 2669.07 | J43: 2777.43 | K43: 2560.7 | L43: 2335.4 | M43: 8.1194
A44: 34 | B44: ANURAS | C44: 914 | D44: 916.20 | E44: 897.80 | F44: 881.60 | G44: 863.20 | H44: 932.40 | I44: 950.80 | J44: 967.00 | K44: 934.6 | L44: 900 | M44: 1.11736
A45: 35 | B45: APARINDS | C45: 5781.2 | D45: 5825.15 | E45: 5561.15 | F45: 5341.10 | G45: 5077.10 | H45: 6045.20 | I45: 6309.20 | J45: 6529.25 | K45: 6089.15 | L45: 5605.1 | M45: 1.26883
A46: 36 | B46: APOLLOHOSP | C46: 6008.4 | D46: 6048.15 | E46: 5916.30 | F46: 5824.20 | G46: 5692.35 | H46: 6140.25 | I46: 6272.10 | J46: 6364.20 | K46: 6180 | L46: 5956.05 | M46: 3.56191
A47: 37 | B47: APOLLOTYRE | C47: 492.1 | D47: 498.55 | E47: 482.55 | F47: 473.00 | G47: 457.00 | H47: 508.10 | I47: 524.10 | J47: 533.65 | K47: 514.55 | L47: 489 | M47: 28.50815
A48: 38 | B48: APTUS | C48: 310.55 | D48: 317.72 | E48: 298.88 | F48: 287.22 | G48: 268.38 | H48: 329.38 | I48: 348.22 | J48: 359.88 | K48: 336.55 | L48: 306.05 | M48: 3.75549
A49: 39 | B49: ACI | C49: 607.3 | D49: 609.20 | E49: 581.40 | F49: 555.50 | G49: 527.70 | H49: 635.10 | I49: 662.90 | J49: 688.80 | K49: 637 | L49: 583.3 | M49: 15.16224
A50: 40 | B50: ASAHIINDIA | C50: 512.55 | D50: 513.83 | E50: 505.72 | F50: 498.88 | G50: 490.77 | H50: 520.67 | I50: 528.78 | J50: 535.62 | K50: 521.95 | L50: 507 | M50: 1.59906
A51: 41 | B51: ASHOKLEY | C51: 159.8 | D51: 162.22 | E51: 156.63 | F51: 153.47 | G51: 147.88 | H51: 165.38 | I51: 170.97 | J51: 174.13 | K51: 167.8 | L51: 159.05 | M51: 144.67593
A52: 42 | B52: ASIANPAINT | C52: 2860.15 | D52: 2860.80 | E52: 2834.35 | F52: 2808.55 | G52: 2782.10 | H52: 2886.60 | I52: 2913.05 | J52: 2938.85 | K52: 2887.25 | L52: 2835 | M52: 9.55841
A53: 43 | B53: ASTERDM | C53: 413.15 | D53: 418.40 | E53: 405.25 | F53: 397.35 | G53: 384.20 | H53: 426.30 | I53: 439.45 | J53: 447.35 | K53: 431.55 | L53: 410.5 | M53: 5.55365
A54: 44 | B54: ASTRAL | C54: 2001.15 | D54: 2020.00 | E54: 1956.75 | F54: 1912.35 | G54: 1849.10 | H54: 2064.40 | I54: 2127.65 | J54: 2172.05 | K54: 2083.25 | L54: 1975.6 | M54: 10.66781
A55: 45 | B55: ATUL | C55: 5995.1 | D55: 6014.00 | E55: 5931.10 | F55: 5867.10 | G55: 5784.20 | H55: 6078.00 | I55: 6160.90 | J55: 6224.90 | K55: 6096.9 | L55: 5950 | M55: 0.90043
A56: 46 | B56: AUROPHARMA | C56: 1005.6 | D56: 1019.33 | E56: 971.32 | F56: 937.03 | G56: 889.02 | H56: 1053.62 | I56: 1101.63 | J56: 1135.92 | K56: 1067.35 | L56: 985.05 | M56: 20.54014
A57: 47 | B57: AVANTIFEED | C57: 475.85 | D57: 491.62 | E57: 459.23 | F57: 442.62 | G57: 410.23 | H57: 508.23 | I57: 540.62 | J57: 557.23 | K57: 524 | L57: 475 | M57: 6.08311
A58: 48 | B58: DMART | C58: 3967.8 | D58: 3985.28 | E58: 3914.57 | F58: 3861.33 | G58: 3790.62 | H58: 4038.52 | I58: 4109.23 | J58: 4162.47 | K58: 4056 | L58: 3932.05 | M58: 5.21699
A59: 49 | B59: AXISBANK | C59: 1080.4 | D59: 1083.57 | E59: 1067.58 | F59: 1054.77 | G59: 1038.78 | H59: 1096.38 | I59: 1112.37 | J59: 1125.18 | K59: 1099.55 | L59: 1070.75 | M59: 115.0389
A60: 50 | B60: BEML | C60: 2735.6 | D60: 2848.53 | E60: 2558.97 | F60: 2382.33 | G60: 2092.77 | H60: 3025.17 | I60: 3314.73 | J60: 3491.37 | K60: 3138.1 | L60: 2671.9 | M60: 5.68081
A61: 51 | B61: BLS | C61: 287.95 | D61: 294.12 | E61: 256.78 | F61: 225.62 | G61: 188.28 | H61: 325.28 | I61: 362.62 | J61: 393.78 | K61: 331.45 | L61: 262.95 | M61: 43.43236
A62: 52 | B62: BSE | C62: 2011.7 | D62: 2084.72 | E62: 1899.43 | F62: 1787.17 | G62: 1601.88 | H62: 2196.98 | I62: 2382.27 | J62: 2494.53 | K62: 2270 | L62: 1972.45 | M62: 16.56939
A63: 53 | B63: BAJAJ-AUTO | C63: 8384.9 | D63: 8433.02 | E63: 8248.83 | F63: 8112.77 | G63: 7928.58 | H63: 8569.08 | I63: 8753.27 | J63: 8889.33 | K63: 8617.2 | L63: 8296.95 | M63: 4.30048
A64: 54 | B64: BAJFINANCE | C64: 6456.15 | D64: 6454.22 | E64: 6393.48 | F64: 6330.82 | G64: 6270.08 | H64: 6516.88 | I64: 6577.62 | J64: 6640.28 | K64: 6514.95 | L64: 6391.55 | M64: 11.32183
A65: 55 | B65: BAJAJFINSV | C65: 1573.15 | D65: 1578.03 | E65: 1557.12 | F65: 1541.08 | G65: 1520.17 | H65: 1594.07 | I65: 1614.98 | J65: 1631.02 | K65: 1598.95 | L65: 1562 | M65: 12.79653
A66: 56 | B66: BAJAJHLDNG | C66: 8369 | D66: 8409.38 | E66: 8237.52 | F66: 8106.03 | G66: 7934.17 | H66: 8540.87 | I66: 8712.73 | J66: 8844.22 | K66: 8581.25 | L66: 8277.9 | M66: 0.36711
A67: 57 | B67: BALAMINES | C67: 2041.05 | D67: 2078.88 | E67: 1992.17 | F67: 1943.28 | G67: 1856.57 | H67: 2127.77 | I67: 2214.48 | J67: 2263.37 | K67: 2165.6 | L67: 2030 | M67: 1.36704
A68: 58 | B68: BALKRISIND | C68: 2285.4 | D68: 2311.57 | E68: 2244.33 | F68: 2203.27 | G68: 2136.03 | H68: 2352.63 | I68: 2419.87 | J68: 2460.93 | K68: 2378.8 | L68: 2270.5 | M68: 6.34895
A69: 59 | B69: BALRAMCHIN | C69: 347.6 | D69: 353.45 | E69: 339.45 | F69: 331.30 | G69: 317.30 | H69: 361.60 | I69: 375.60 | J69: 383.75 | K69: 367.45 | L69: 345.3 | M69: 19.89299
A70: 60 | B70: BANDHANBNK | C70: 178.7 | D70: 181.83 | E70: 173.72 | F70: 168.73 | G70: 160.62 | H70: 186.82 | I70: 194.93 | J70: 199.92 | K70: 189.95 | L70: 176.85 | M70: 182.29091
A71: 61 | B71: BANKBARODA | C71: 260.9 | D71: 264.25 | E71: 255.05 | F71: 249.20 | G71: 240.00 | H71: 270.10 | I71: 279.30 | J71: 285.15 | K71: 273.45 | L71: 258.4 | M71: 207.11328
A72: 62 | B72: BANKINDIA | C72: 128.45 | D72: 132.48 | E72: 122.87 | F72: 117.28 | G72: 107.67 | H72: 138.07 | I72: 147.68 | J72: 153.27 | K72: 142.1 | L72: 126.9 | M72: 211.97858
A73: 63 | B73: MAHABANK | C73: 54.2 | D73: 55.77 | E73: 52.03 | F73: 49.87 | G73: 46.13 | H73: 57.93 | I73: 61.67 | J73: 63.83 | K73: 59.5 | L73: 53.6 | M73: 461.47338
A74: 64 | B74: BATAINDIA | C74: 1403.5 | D74: 1404.95 | E74: 1377.30 | F74: 1351.10 | G74: 1323.45 | H74: 1431.15 | I74: 1458.80 | J74: 1485.00 | K74: 1432.6 | L74: 1378.75 | M74: 8.19845
A75: 65 | B75: BAYERCROP | C75: 5030.15 | D75: 5091.22 | E75: 4864.43 | F75: 4698.72 | G75: 4471.93 | H75: 5256.93 | I75: 5483.72 | J75: 5649.43 | K75: 5318 | L75: 4925.5 | M75: 0.34804
A76: 66 | B76: BERGEPAINT | C76: 556.75 | D76: 560.05 | E76: 549.95 | F76: 543.15 | G76: 533.05 | H76: 566.85 | I76: 576.95 | J76: 583.75 | K76: 570.15 | L76: 553.25 | M76: 7.85395
A77: 67 | B77: BDL | C77: 1590.15 | D77: 1631.15 | E77: 1524.00 | F77: 1457.85 | G77: 1350.70 | H77: 1697.30 | I77: 1804.45 | J77: 1870.60 | K77: 1738.3 | L77: 1565 | M77: 15.65428
A78: 68 | B78: BEL | C78: 190.3 | D78: 194.70 | E78: 183.80 | F78: 177.30 | G78: 166.40 | H78: 201.20 | I78: 212.10 | J78: 218.60 | K78: 205.6 | L78: 188.2 | M78: 416.20003
A79: 69 | B79: BHARATFORG | C79: 1127 | D79: 1135.48 | E79: 1106.52 | F79: 1086.03 | G79: 1057.07 | H79: 1155.97 | I79: 1184.93 | J79: 1205.42 | K79: 1164.45 | L79: 1115 | M79: 15.38078
A80: 70 | B80: BHEL | C80: 225.3 | D80: 231.20 | E80: 216.15 | F80: 207.00 | G80: 191.95 | H80: 240.35 | I80: 255.40 | J80: 264.55 | K80: 246.25 | L80: 222.05 | M80: 422.67395
A81: 71 | B81: BPCL | C81: 597.75 | D81: 606.65 | E81: 585.30 | F81: 572.85 | G81: 551.50 | H81: 619.10 | I81: 640.45 | J81: 652.90 | K81: 628 | L81: 594.2 | M81: 74.55092
A82: 72 | B82: BHARTIARTL | C82: 1168.75 | D82: 1177.48 | E82: 1142.97 | F82: 1117.18 | G82: 1082.67 | H82: 1203.27 | I82: 1237.78 | J82: 1263.57 | K82: 1212 | L82: 1151.7 | M82: 75.28096
A83: 73 | B83: BIKAJI | C83: 503.2 | D83: 501.78 | E83: 491.17 | F83: 479.13 | G83: 468.52 | H83: 513.82 | I83: 524.43 | J83: 536.47 | K83: 512.4 | L83: 489.75 | M83: 2.25898
A84: 74 | B84: BIOCON | C84: 252.85 | D84: 258.90 | E84: 244.35 | F84: 235.85 | G84: 221.30 | H84: 267.40 | I84: 281.95 | J84: 290.45 | K84: 273.45 | L84: 250.4 | M84: 70.7806
A85: 75 | B85: BIRLACORPN | C85: 1434.65 | D85: 1437.87 | E85: 1371.78 | F85: 1308.92 | G85: 1242.83 | H85: 1500.73 | I85: 1566.82 | J85: 1629.68 | K85: 1503.95 | L85: 1375 | M85: 2.13002
A86: 76 | B86: BSOFT | C86: 723.3 | D86: 742.08 | E86: 698.72 | F86: 674.13 | G86: 630.77 | H86: 766.67 | I86: 810.03 | J86: 834.62 | K86: 785.45 | L86: 717.5 | M86: 34.11153
A87: 77 | B87: BLUEDART | C87: 5696.25 | D87: 5727.10 | E87: 5629.20 | F87: 5562.15 | G87: 5464.25 | H87: 5794.15 | I87: 5892.05 | J87: 5959.10 | K87: 5825 | L87: 5660.05 | M87: 0.13534
A88: 78 | B88: BLUESTARCO | C88: 1266.8 | D88: 1271.65 | E88: 1217.55 | F88: 1168.30 | G88: 1114.20 | H88: 1320.90 | I88: 1375.00 | J88: 1424.25 | K88: 1325.75 | L88: 1222.4 | M88: 3.4726
A89: 79 | B89: BBTC | C89: 1543.8 | D89: 1582.05 | E89: 1487.10 | F89: 1430.40 | G89: 1335.45 | H89: 1638.75 | I89: 1733.70 | J89: 1790.40 | K89: 1677 | L89: 1525.35 | M89: 0.82996
A90: 80 | B90: BORORENEW | C90: 484.45 | D90: 499.82 | E90: 464.63 | F90: 444.82 | G90: 409.63 | H90: 519.63 | I90: 554.82 | J90: 574.63 | K90: 535 | L90: 480 | M90: 10.95736
A91: 81 | B91: BOSCHLTD | C91: 28300.3 | D91: 28755.43 | E91: 27660.87 | F91: 27021.43 | G91: 25926.87 | H91: 29394.87 | I91: 30489.43 | J91: 31128.87 | K91: 29850 | L91: 28116 | M91: 0.58216
A92: 82 | B92: BRIGADE | C92: 858.15 | D92: 852.30 | E92: 832.85 | F92: 807.55 | G92: 788.10 | H92: 877.60 | I92: 897.05 | J92: 922.35 | K92: 871.75 | L92: 827 | M92: 6.69801
A93: 83 | B93: BCG | C93: 15.8 | D93: 16.13 | E93: 15.22 | F93: 14.63 | G93: 13.72 | H93: 16.72 | I93: 17.63 | J93: 18.22 | K93: 17.05 | L93: 15.55 | M93: 298.22415
A94: 84 | B94: BRITANNIA | C94: 4856.65 | D94: 4884.55 | E94: 4794.10 | F94: 4731.55 | G94: 4641.10 | H94: 4947.10 | I94: 5037.55 | J94: 5100.10 | K94: 4975 | L94: 4822 | M94: 4.10729
A95: 85 | B95: MAPMYINDIA | C95: 1622.85 | D95: 1643.28 | E95: 1579.57 | F95: 1536.28 | G95: 1472.57 | H95: 1686.57 | I95: 1750.28 | J95: 1793.57 | K95: 1707 | L95: 1600 | M95: 1.46384
A96: 86 | B96: CCL | C96: 590.05 | D96: 594.85 | E96: 580.20 | F96: 570.35 | G96: 555.70 | H96: 604.70 | I96: 619.35 | J96: 629.20 | K96: 609.5 | L96: 585 | M96: 1.17841
A97: 87 | B97: CESC | C97: 112.45 | D97: 114.80 | E97: 109.05 | F97: 105.65 | G97: 99.90 | H97: 118.20 | I97: 123.95 | J97: 127.35 | K97: 120.55 | L97: 111.4 | M97: 74.72871
A98: 88 | B98: CGPOWER | C98: 461.45 | D98: 459.38 | E98: 452.87 | F98: 444.28 | G98: 437.77 | H98: 467.97 | I98: 474.48 | J98: 483.07 | K98: 465.9 | L98: 450.8 | M98: 58.76878
A99: 89 | B99: CIEINDIA | C99: 419.2 | D99: 425.08 | E99: 410.12 | F99: 401.03 | G99: 386.07 | H99: 434.17 | I99: 449.13 | J99: 458.22 | K99: 440.05 | L99: 416 | M99: 10.76738
A100: 90 | B100: CRISIL | C100: 4883.8 | D100: 4896.28 | E100: 4812.52 | F100: 4741.23 | G100: 4657.47 | H100: 4967.57 | I100: 5051.33 | J100: 5122.62 | K100: 4980.05 | L100: 4825 | M100: 0.41039
A101: 91 | B101: CSBBANK | C101: 335.8 | D101: 340.25 | E101: 327.05 | F101: 318.30 | G101: 305.10 | H101: 349.00 | I101: 362.20 | J101: 370.95 | K101: 353.45 | L101: 331.5 | M101: 2.97557
A102: 92 | B102: CAMPUS | C102: 222.3 | D102: 227.12 | E102: 215.23 | F102: 208.17 | G102: 196.28 | H102: 234.18 | I102: 246.07 | J102: 253.13 | K102: 239 | L102: 220.05 | M102: 14.91513
A103: 93 | B103: CANFINHOME | C103: 721.45 | D103: 733.53 | E103: 705.87 | F103: 690.28 | G103: 662.62 | H103: 749.12 | I103: 776.78 | J103: 792.37 | K103: 761.2 | L103: 717.95 | M103: 4.67762
A104: 94 | B104: CANBK | C104: 536.45 | D104: 545.85 | E104: 520.05 | F104: 503.65 | G104: 477.85 | H104: 562.25 | I104: 588.05 | J104: 604.45 | K104: 571.65 | L104: 529.45 | M104: 122.0718
A105: 95 | B105: CGCL | C105: 204.95 | D105: 210.92 | E105: 195.83 | F105: 186.72 | G105: 171.63 | H105: 220.03 | I105: 235.12 | J105: 244.23 | K105: 226 | L105: 201.8 | M105: 3.18755
A106: 96 | B106: CARBORUNIV | C106: 1060.85 | D106: 1060.67 | E106: 1045.23 | F106: 1029.62 | G106: 1014.18 | H106: 1076.28 | I106: 1091.72 | J106: 1107.33 | K106: 1076.1 | L106: 1045.05 | M106: 3.07122
A107: 97 | B107: CASTROLIND | C107: 191.55 | D107: 196.13 | E107: 184.67 | F107: 177.78 | G107: 166.32 | H107: 203.02 | I107: 214.48 | J107: 221.37 | K107: 207.6 | L107: 189.25 | M107: 65.31109
A108: 98 | B108: CEATLTD | C108: 2497.25 | D108: 2526.22 | E108: 2437.63 | F108: 2378.02 | G108: 2289.43 | H108: 2585.83 | I108: 2674.42 | J108: 2734.03 | K108: 2614.8 | L108: 2466.6 | M108: 2.80519
A109: 99 | B109: CENTRALBK | C109: 54.1 | D109: 56.18 | E109: 50.97 | F109: 47.83 | G109: 42.62 | H109: 59.32 | I109: 64.53 | J109: 67.67 | K109: 61.4 | L109: 53.05 | M109: 346.29026
A110: 100 | B110: CDSL | C110: 1684.65 | D110: 1725.07 | E110: 1625.13 | F110: 1565.62 | G110: 1465.68 | H110: 1784.58 | I110: 1884.52 | J110: 1944.03 | K110: 1825 | L110: 1665.55 | M110: 13.00232
A111: 101 | B111: CENTURYPLY | C111: 650.35 | D111: 655.38 | E111: 641.37 | F111: 632.38 | G111: 618.37 | H111: 664.37 | I111: 678.38 | J111: 687.37 | K111: 669.4 | L111: 646.4 | M111: 2.78382
A112: 102 | B112: CENTURYTEX | C112: 1344.55 | D112: 1359.75 | E112: 1268.50 | F112: 1192.45 | G112: 1101.20 | H112: 1435.80 | I112: 1527.05 | J112: 1603.10 | K112: 1451 | L112: 1283.7 | M112: 4.41785
A113: 103 | B113: CERA | C113: 7026.3 | D113: 7091.07 | E113: 6878.73 | F113: 6731.17 | G113: 6518.83 | H113: 7238.63 | I113: 7450.97 | J113: 7598.53 | K113: 7303.4 | L113: 6943.5 | M113: 0.1966
A114: 104 | B114: CHALET | C114: 725.15 | D114: 728.53 | E114: 702.07 | F114: 678.98 | G114: 652.52 | H114: 751.62 | I114: 778.08 | J114: 801.17 | K114: 755 | L114: 705.45 | M114: 4.86848
A115: 105 | B115: CHAMBLFERT | C115: 337.75 | D115: 346.08 | E115: 326.87 | F115: 315.98 | G115: 296.77 | H115: 356.97 | I115: 376.18 | J115: 387.07 | K115: 365.3 | L115: 335.2 | M115: 19.46792
A116: 106 | B116: CHEMPLASTS | C116: 432.4 | D116: 431.60 | E116: 423.70 | F116: 415.00 | G116: 407.10 | H116: 440.30 | I116: 448.20 | J116: 456.90 | K116: 439.5 | L116: 422.9 | M116: 1.63676
A117: 107 | B117: CHOLAHLDNG | C117: 1049.35 | D117: 1048.82 | E117: 1012.63 | F117: 975.92 | G117: 939.73 | H117: 1085.53 | I117: 1121.72 | J117: 1158.43 | K117: 1085 | L117: 1012.1 | M117: 3.02011
A118: 108 | B118: CHOLAFIN | C118: 1048.3 | D118: 1051.65 | E118: 1032.50 | F118: 1016.70 | G118: 997.55 | H118: 1067.45 | I118: 1086.60 | J118: 1102.40 | K118: 1070.8 | L118: 1035.85 | M118: 24.03094
A119: 109 | B119: CIPLA | C119: 1471.25 | D119: 1466.42 | E119: 1453.83 | F119: 1436.42 | G119: 1423.83 | H119: 1483.83 | I119: 1496.42 | J119: 1513.83 | K119: 1479 | L119: 1449 | M119: 17.20173
A120: 110 | B120: CUB | C120: 126.8 | D120: 128.45 | E120: 124.60 | F120: 122.40 | G120: 118.55 | H120: 130.65 | I120: 134.50 | J120: 136.70 | K120: 132.3 | L120: 126.25 | M120: 30.07735
A121: 111 | B121: CLEAN | C121: 1290.15 | D121: 1307.28 | E121: 1267.87 | F121: 1245.58 | G121: 1206.17 | H121: 1329.57 | I121: 1368.98 | J121: 1391.27 | K121: 1346.7 | L121: 1285 | M121: 1.2554
A122: 112 | B122: COALINDIA | C122: 417.05 | D122: 425.65 | E122: 401.40 | F122: 385.75 | G122: 361.50 | H122: 441.30 | I122: 465.55 | J122: 481.20 | K122: 449.9 | L122: 410 | M122: 178.03423
A123: 113 | B123: COCHINSHIP | C123: 730.8 | D123: 761.48 | E123: 685.77 | F123: 640.73 | G123: 565.02 | H123: 806.52 | I123: 882.23 | J123: 927.27 | K123: 837.2 | L123: 716.45 | M123: 34.54793
A124: 114 | B124: COFORGE | C124: 6173.6 | D124: 6206.32 | E124: 6087.28 | F124: 6000.97 | G124: 5881.93 | H124: 6292.63 | I124: 6411.67 | J124: 6497.98 | K124: 6325.35 | L124: 6120 | M124: 3.642
A125: 115 | B125: COLPAL | C125: 2572.4 | D125: 2590.13 | E125: 2520.27 | F125: 2468.13 | G125: 2398.27 | H125: 2642.27 | I125: 2712.13 | J125: 2764.27 | K125: 2660 | L125: 2538 | M125: 4.99489
A126: 116 | B126: CAMS | C126: 2744.9 | D126: 2809.12 | E126: 2646.78 | F126: 2548.67 | G126: 2386.33 | H126: 2907.23 | I126: 3069.57 | J126: 3167.68 | K126: 2971.45 | L126: 2711 | M126: 4.58153
A127: 117 | B127: CONCORDBIO | C127: 1373.1 | D127: 1380.80 | E127: 1343.30 | F127: 1313.50 | G127: 1276.00 | H127: 1410.60 | I127: 1448.10 | J127: 1477.90 | K127: 1418.3 | L127: 1351 | M127: 2.55602
A128: 118 | B128: CONCOR | C128: 862.45 | D128: 881.42 | E128: 834.13 | F128: 805.82 | G128: 758.53 | H128: 909.73 | I128: 957.02 | J128: 985.33 | K128: 928.7 | L128: 853.1 | M128: 37.96016
A129: 119 | B129: COROMANDEL | C129: 1076.75 | D129: 1089.40 | E129: 1055.15 | F129: 1033.55 | G129: 999.30 | H129: 1111.00 | I129: 1145.25 | J129: 1166.85 | K129: 1123.65 | L129: 1067.8 | M129: 3.58551
A130: 120 | B130: CRAFTSMAN | C130: 3851.4 | D130: 3891.83 | E130: 3753.22 | F130: 3655.03 | G130: 3516.42 | H130: 3990.02 | I130: 4128.63 | J130: 4226.82 | K130: 4030.45 | L130: 3793.65 | M130: 0.96254
A131: 121 | B131: CREDITACC | C131: 1311.15 | D131: 1310.93 | E131: 1282.87 | F131: 1254.58 | G131: 1226.52 | H131: 1339.22 | I131: 1367.28 | J131: 1395.57 | K131: 1339 | L131: 1282.65 | M131: 4.23937
A132: 122 | B132: CROMPTON | C132: 277.15 | D132: 280.37 | E132: 271.33 | F132: 265.52 | G132: 256.48 | H132: 286.18 | I132: 295.22 | J132: 301.03 | K132: 289.4 | L132: 274.55 | M132: 46.68709
A133: 123 | B133: CUMMINSIND | C133: 2675.95 | D133: 2708.55 | E133: 2619.40 | F133: 2562.85 | G133: 2473.70 | H133: 2765.10 | I133: 2854.25 | J133: 2910.80 | K133: 2797.7 | L133: 2652 | M133: 6.12537
A134: 124 | B134: CYIENT | C134: 1897 | D134: 1895.67 | E134: 1811.43 | F134: 1725.87 | G134: 1641.63 | H134: 1981.23 | I134: 2065.47 | J134: 2151.03 | K134: 1979.9 | L134: 1810.1 | M134: 3.88213
A135: 125 | B135: DCMSHRIRAM | C135: 863.15 | D135: 879.03 | E135: 839.62 | F135: 816.08 | G135: 776.67 | H135: 902.57 | I135: 941.98 | J135: 965.52 | K135: 918.45 | L135: 855.5 | M135: 0.71137
A136: 126 | B136: DLF | C136: 830.15 | D136: 841.35 | E136: 809.45 | F136: 788.75 | G136: 756.85 | H136: 862.05 | I136: 893.95 | J136: 914.65 | K136: 873.25 | L136: 820.65 | M136: 86.39565
A137: 127 | B137: DABUR | C137: 519.95 | D137: 522.38 | E137: 513.37 | F137: 506.78 | G137: 497.77 | H137: 528.97 | I137: 537.98 | J137: 544.57 | K137: 531.4 | L137: 515.8 | M137: 26.66699
A138: 128 | B138: DALBHARAT | C138: 1825.5 | D138: 1849.38 | E138: 1779.27 | F138: 1733.03 | G138: 1662.92 | H138: 1895.62 | I138: 1965.73 | J138: 2011.97 | K138: 1919.5 | L138: 1803.15 | M138: 4.50072
A139: 129 | B139: DATAPATTNS | C139: 2183.25 | D139: 2276.12 | E139: 2088.63 | F139: 1994.02 | G139: 1806.53 | H139: 2370.73 | I139: 2558.22 | J139: 2652.83 | K139: 2463.6 | L139: 2181.5 | M139: 6.19844
A140: 130 | B140: DEEPAKFERT | C140: 459.95 | D140: 469.28 | E140: 440.67 | F140: 421.38 | G140: 392.77 | H140: 488.57 | I140: 517.18 | J140: 536.47 | K140: 497.9 | L140: 450 | M140: 9.35743
A141: 131 | B141: DEEPAKNTR | C141: 2065.2 | D141: 2088.45 | E141: 2030.95 | F141: 1996.70 | G141: 1939.20 | H141: 2122.70 | I141: 2180.20 | J141: 2214.45 | K141: 2145.95 | L141: 2054.2 | M141: 3.96878
A142: 132 | B142: DELHIVERY | C142: 423.45 | D142: 428.37 | E142: 412.38 | F142: 401.32 | G142: 385.33 | H142: 439.43 | I142: 455.42 | J142: 466.48 | K142: 444.35 | L142: 417.3 | M142: 22.46414
A143: 133 | B143: DELTACORP | C143: 118.25 | D143: 121.88 | E143: 113.37 | F143: 108.48 | G143: 99.97 | H143: 126.77 | I143: 135.28 | J143: 140.17 | K143: 130.4 | L143: 117 | M143: 53.33995
A144: 134 | B144: DEVYANI | C144: 147.85 | D144: 147.45 | E144: 142.65 | F144: 137.45 | G144: 132.65 | H144: 152.65 | I144: 157.45 | J144: 162.65 | K144: 152.25 | L144: 142.25 | M144: 72.0919
A145: 135 | B145: DIVISLAB | C145: 3479.8 | D145: 3507.18 | E145: 3427.37 | F145: 3374.93 | G145: 3295.12 | H145: 3559.62 | I145: 3639.43 | J145: 3691.87 | K145: 3587 | L145: 3454.75 | M145: 4.02498
A146: 136 | B146: DIXON | C146: 6603.9 | D146: 6703.87 | E146: 6458.73 | F146: 6313.57 | G146: 6068.43 | H146: 6849.03 | I146: 7094.17 | J146: 7239.33 | K146: 6949 | L146: 6558.7 | M146: 3.4369
A147: 137 | B147: LALPATHLAB | C147: 2011.9 | D147: 2039.53 | E147: 1972.37 | F147: 1932.83 | G147: 1865.67 | H147: 2079.07 | I147: 2146.23 | J147: 2185.77 | K147: 2106.7 | L147: 2000 | M147: 3.90641
A148: 138 | B148: DRREDDY | C148: 6303.8 | D148: 6300.87 | E148: 6251.73 | F148: 6199.67 | G148: 6150.53 | H148: 6352.93 | I148: 6402.07 | J148: 6454.13 | K148: 6350 | L148: 6248.8 | M148: 2.10265
A149: 139 | B149: EIDPARRY | C149: 554.1 | D149: 561.27 | E149: 540.63 | F149: 527.17 | G149: 506.53 | H149: 574.73 | I149: 595.37 | J149: 608.83 | K149: 581.9 | L149: 547.8 | M149: 5.61189
A150: 140 | B150: EIHOTEL | C150: 385.95 | D150: 387.23 | E150: 364.47 | F150: 342.98 | G150: 320.22 | H150: 408.72 | I150: 431.48 | J150: 452.97 | K150: 410 | L150: 365.75 | M150: 11.4505
A151: 141 | B151: EPL | C151: 183.85 | D151: 185.95 | E151: 180.40 | F151: 176.95 | G151: 171.40 | H151: 189.40 | I151: 194.95 | J151: 198.40 | K151: 191.5 | L151: 182.5 | M151: 12.63473
A152: 142 | B152: EASEMYTRIP | C152: 41.65 | D152: 43.00 | E152: 39.80 | F152: 37.95 | G152: 34.75 | H152: 44.85 | I152: 48.05 | J152: 49.90 | K152: 46.2 | L152: 41.15 | M152: 288.46672
A153: 143 | B153: EICHERMOT | C153: 3735.55 | D153: 3767.65 | E153: 3682.90 | F153: 3630.25 | G153: 3545.50 | H153: 3820.30 | I153: 3905.05 | J153: 3957.70 | K153: 3852.4 | L153: 3715 | M153: 4.28324
A154: 144 | B154: ELGIEQUIP | C154: 624.8 | D154: 619.25 | E154: 608.50 | F154: 592.20 | G154: 581.45 | H154: 635.55 | I154: 646.30 | J154: 662.60 | K154: 630 | L154: 602.95 | M154: 3.88766
A155: 145 | B155: EMAMILTD | C155: 437.3 | D155: 440.37 | E155: 430.58 | F155: 423.87 | G155: 414.08 | H155: 447.08 | I155: 456.87 | J155: 463.58 | K155: 450.15 | L155: 433.65 | M155: 15.99397
A156: 146 | B156: ENDURANCE | C156: 1726.3 | D156: 1760.48 | E156: 1682.02 | F156: 1637.73 | G156: 1559.27 | H156: 1804.77 | I156: 1883.23 | J156: 1927.52 | K156: 1838.95 | L156: 1716.2 | M156: 0.57276
A157: 147 | B157: ENGINERSIN | C157: 186.75 | D157: 195.33 | E157: 176.17 | F157: 165.58 | G157: 146.42 | H157: 205.92 | I157: 225.08 | J157: 235.67 | K157: 214.5 | L157: 184.75 | M157: 128.96265
A158: 148 | B158: EPIGRAL | C158: 969.35 | D158: 985.53 | E158: 934.82 | F158: 900.28 | G158: 849.57 | H158: 1020.07 | I158: 1070.78 | J158: 1105.32 | K158: 1036.25 | L158: 951 | M158: 1.23107
A159: 149 | B159: EQUITASBNK | C159: 91.6 | D159: 91.28 | E159: 88.57 | F159: 85.53 | G159: 82.82 | H159: 94.32 | I159: 97.03 | J159: 100.07 | K159: 94 | L159: 88.25 | M159: 74.23648
A160: 150 | B160: ERIS | C160: 831.3 | D160: 839.52 | E160: 800.93 | F160: 770.57 | G160: 731.98 | H160: 869.88 | I160: 908.47 | J160: 938.83 | K160: 878.1 | L160: 809.15 | M160: 2.08861
A161: 151 | B161: ESCORTS | C161: 2712.9 | D161: 2748.07 | E161: 2665.38 | F161: 2617.87 | G161: 2535.18 | H161: 2795.58 | I161: 2878.27 | J161: 2925.78 | K161: 2830.75 | L161: 2700.55 | M161: 1.86399
A162: 152 | B162: EXIDEIND | C162: 300.7 | D162: 306.22 | E162: 292.43 | F162: 284.17 | G162: 270.38 | H162: 314.48 | I162: 328.27 | J162: 336.53 | K162: 320 | L162: 297.95 | M162: 37.10437
A163: 153 | B163: FDC | C163: 423.75 | D163: 425.80 | E163: 418.75 | F163: 413.75 | G163: 406.70 | H163: 430.80 | I163: 437.85 | J163: 442.85 | K163: 432.85 | L163: 420.8 | M163: 1.89785
A164: 154 | B164: NYKAA | C164: 149.4 | D164: 151.62 | E164: 143.08 | F164: 136.77 | G164: 128.23 | H164: 157.93 | I164: 166.47 | J164: 172.78 | K164: 160.15 | L164: 145.3 | M164: 100.7435
A165: 155 | B165: FEDERALBNK | C165: 148.5 | D165: 149.33 | E165: 145.92 | F165: 143.33 | G165: 139.92 | H165: 151.92 | I165: 155.33 | J165: 157.92 | K165: 152.75 | L165: 146.75 | M165: 122.73615
A166: 156 | B166: FACT | C166: 593.4 | D166: 611.38 | E166: 564.27 | F166: 535.13 | G166: 488.02 | H166: 640.52 | I166: 687.63 | J166: 716.77 | K166: 658.5 | L166: 582.25 | M166: 5.4099
A167: 157 | B167: FINEORG | C167: 4100.15 | D167: 4115.37 | E167: 4074.78 | F167: 4049.42 | G167: 4008.83 | H167: 4140.73 | I167: 4181.32 | J167: 4206.68 | K167: 4155.95 | L167: 4090 | M167: 0.26984
A168: 158 | B168: FINCABLES | C168: 844.1 | D168: 854.13 | E168: 823.27 | F168: 802.43 | G168: 771.57 | H168: 874.97 | I168: 905.83 | J168: 926.67 | K168: 885 | L168: 833.3 | M168: 4.69662
A169: 159 | B169: FINPIPE | C169: 207.3 | D169: 209.08 | E169: 202.27 | F169: 197.23 | G169: 190.42 | H169: 214.12 | I169: 220.93 | J169: 225.97 | K169: 215.9 | L169: 204.05 | M169: 12.95072
A170: 160 | B170: FSL | C170: 182.05 | D170: 184.32 | E170: 176.13 | F170: 170.22 | G170: 162.03 | H170: 190.23 | I170: 198.42 | J170: 204.33 | K170: 192.5 | L170: 178.4 | M170: 28.71244
A171: 161 | B171: FIVESTAR | C171: 609.9 | D171: 626.62 | E171: 589.48 | F171: 569.07 | G171: 531.93 | H171: 647.03 | I171: 684.17 | J171: 704.58 | K171: 663.75 | L171: 606.2 | M171: 3.33775
A172: 162 | B172: FORTIS | C172: 385.55 | D172: 390.85 | E172: 372.70 | F172: 359.85 | G172: 341.70 | H172: 403.70 | I172: 421.85 | J172: 434.70 | K172: 409 | L172: 378 | M172: 27.99185
A173: 163 | B173: GRINFRA | C173: 1213.45 | D173: 1221.83 | E173: 1166.67 | F173: 1119.88 | G173: 1064.72 | H173: 1268.62 | I173: 1323.78 | J173: 1370.57 | K173: 1277 | L173: 1175.05 | M173: 1.78042
A174: 164 | B174: GAIL | C174: 168.7 | D174: 171.72 | E174: 163.28 | F174: 157.87 | G174: 149.43 | H174: 177.13 | I174: 185.57 | J174: 190.98 | K174: 180.15 | L174: 166.3 | M174: 228.32224
A175: 165 | B175: GMMPFAUDLR | C175: 1270.8 | D175: 1277.72 | E175: 1256.08 | F175: 1241.37 | G175: 1219.73 | H175: 1292.43 | I175: 1314.07 | J175: 1328.78 | K175: 1299.35 | L175: 1263 | M175: 2.12522
A176: 166 | B176: GMRINFRA | C176: 75.15 | D176: 76.63 | E176: 72.12 | F176: 69.08 | G176: 64.57 | H176: 79.67 | I176: 84.18 | J176: 87.22 | K176: 81.15 | L176: 73.6 | M176: 349.43703
A177: 167 | B177: GALAXYSURF | C177: 2347.25 | D177: 2364.42 | E177: 2322.83 | F177: 2298.42 | G177: 2256.83 | H177: 2388.83 | I177: 2430.42 | J177: 2454.83 | K177: 2406 | L177: 2340 | M177: 0.38536
A178: 168 | B178: GICRE | C178: 317.4 | D178: 327.25 | E178: 301.55 | F178: 285.70 | G178: 260.00 | H178: 343.10 | I178: 368.80 | J178: 384.65 | K178: 352.95 | L178: 311.4 | M178: 42.05429
A179: 169 | B179: GILLETTE | C179: 6374.7 | D179: 6409.38 | E179: 6294.62 | F179: 6214.53 | G179: 6099.77 | H179: 6489.47 | I179: 6604.23 | J179: 6684.32 | K179: 6524.15 | L179: 6329.3 | M179: 0.10314
A180: 170 | B180: GLAND | C180: 1690.7 | D180: 1698.03 | E180: 1663.67 | F180: 1636.63 | G180: 1602.27 | H180: 1725.07 | I180: 1759.43 | J180: 1786.47 | K180: 1732.4 | L180: 1671 | M180: 3.6162
A181: 171 | B181: GLAXO | C181: 1926.3 | D181: 1946.50 | E181: 1877.80 | F181: 1829.30 | G181: 1760.60 | H181: 1995.00 | I181: 2063.70 | J181: 2112.20 | K181: 2015.2 | L181: 1898 | M181: 2.22306
A182: 172 | B182: GLS | C182: 688.3 | D182: 705.60 | E182: 659.20 | F182: 630.10 | G182: 583.70 | H182: 734.70 | I182: 781.10 | J182: 810.20 | K182: 752 | L182: 676.5 | M182: 2.33898
A183: 173 | B183: GLENMARK | C183: 898.45 | D183: 910.70 | E183: 873.25 | F183: 848.05 | G183: 810.60 | H183: 935.90 | I183: 973.35 | J183: 998.55 | K183: 948.15 | L183: 885.5 | M183: 17.73669
A184: 174 | B184: MEDANTA | C184: 1150.7 | D184: 1163.90 | E184: 1109.95 | F184: 1069.20 | G184: 1015.25 | H184: 1204.65 | I184: 1258.60 | J184: 1299.35 | K184: 1217.85 | L184: 1123.15 | M184: 6.44493
A185: 175 | B185: GOCOLORS | C185: 1029.45 | D185: 1051.85 | E185: 993.70 | F185: 957.95 | G185: 899.80 | H185: 1087.60 | I185: 1145.75 | J185: 1181.50 | K185: 1110 | L185: 1016.1 | M185: 1.86926
A186: 176 | B186: GPIL | C186: 691.25 | D186: 689.92 | E186: 665.18 | F186: 639.12 | G186: 614.38 | H186: 715.98 | I186: 740.72 | J186: 766.78 | K186: 714.65 | L186: 663.85 | M186: 7.60671
A187: 177 | B187: GODFRYPHLP | C187: 2932.55 | D187: 3015.68 | E187: 2722.42 | F187: 2512.28 | G187: 2219.02 | H187: 3225.82 | I187: 3519.08 | J187: 3729.22 | K187: 3308.95 | L187: 2805.55 | M187: 3.11285
A188: 178 | B188: GODREJCP | C188: 1196.05 | D188: 1205.13 | E188: 1176.22 | F188: 1156.38 | G188: 1127.47 | H188: 1224.97 | I188: 1253.88 | J188: 1273.72 | K188: 1234.05 | L188: 1185.3 | M188: 12.06909
A189: 179 | B189: GODREJIND | C189: 758.65 | D189: 766.45 | E189: 745.20 | F189: 731.75 | G189: 710.50 | H189: 779.90 | I189: 801.15 | J189: 814.60 | K189: 787.7 | L189: 753 | M189: 2.82991
A190: 180 | B190: GODREJPROP | C190: 2205.25 | D190: 2242.92 | E190: 2143.48 | F190: 2081.72 | G190: 1982.28 | H190: 2304.68 | I190: 2404.12 | J190: 2465.88 | K190: 2342.35 | L190: 2181.15 | M190: 10.14147
A191: 181 | B191: GRANULES | C191: 412.15 | D191: 417.75 | E191: 401.50 | F191: 390.85 | G191: 374.60 | H191: 428.40 | I191: 444.65 | J191: 455.30 | K191: 434 | L191: 407.1 | M191: 15.74571
A192: 182 | B192: GRAPHITE | C192: 598.35 | D192: 611.62 | E192: 577.23 | F192: 556.12 | G192: 521.73 | H192: 632.73 | I192: 667.12 | J192: 688.23 | K192: 646 | L192: 590.5 | M192: 29.45549
A193: 183 | B193: GRASIM | C193: 2149.1 | D193: 2163.15 | E193: 2123.25 | F193: 2097.40 | G193: 2057.50 | H193: 2189.00 | I193: 2228.90 | J193: 2254.75 | K193: 2203.05 | L193: 2137.3 | M193: 8.81145
A194: 184 | B194: GESHIP | C194: 909.7 | D194: 922.95 | E194: 876.75 | F194: 843.80 | G194: 797.60 | H194: 955.90 | I194: 1002.10 | J194: 1035.05 | K194: 969.15 | L194: 890 | M194: 3.30876
A195: 185 | B195: GRINDWELL | C195: 1908.5 | D195: 1924.28 | E195: 1884.22 | F195: 1859.93 | G195: 1819.87 | H195: 1948.57 | I195: 1988.63 | J195: 2012.92 | K195: 1964.35 | L195: 1900 | M195: 0.42175
A196: 186 | B196: GUJALKALI | C196: 706.85 | D196: 710.38 | E196: 683.62 | F196: 660.38 | G196: 633.62 | H196: 733.62 | I196: 760.38 | J196: 783.62 | K196: 737.15 | L196: 687.15 | M196: 1.4325
A197: 187 | B197: GAEL | C197: 361.55 | D197: 370.52 | E197: 346.08 | F197: 330.62 | G197: 306.18 | H197: 385.98 | I197: 410.42 | J197: 425.88 | K197: 394.95 | L197: 355.05 | M197: 10.63377
A198: 188 | B198: FLUOROCHEM | C198: 3227.45 | D198: 3248.72 | E198: 3130.38 | F198: 3033.32 | G198: 2914.98 | H198: 3345.78 | I198: 3464.12 | J198: 3561.18 | K198: 3367.05 | L198: 3151.65 | M198: 0.91064
A199: 189 | B199: GUJGASLTD | C199: 528.4 | D199: 535.92 | E199: 515.68 | F199: 502.97 | G199: 482.73 | H199: 548.63 | I199: 568.87 | J199: 581.58 | K199: 556.15 | L199: 523.2 | M199: 12.66699
A200: 190 | B200: GNFC | C200: 598.05 | D200: 605.75 | E200: 585.50 | F200: 572.95 | G200: 552.70 | H200: 618.30 | I200: 638.55 | J200: 651.10 | K200: 626 | L200: 593.2 | M200: 16.12546
A201: 191 | B201: GPPL | C201: 174.4 | D201: 179.53 | E201: 165.87 | F201: 157.33 | G201: 143.67 | H201: 188.07 | I201: 201.73 | J201: 210.27 | K201: 193.2 | L201: 171 | M201: 66.41901
A202: 192 | B202: GSFC | C202: 189.35 | D202: 194.48 | E202: 182.37 | F202: 175.38 | G202: 163.27 | H202: 201.47 | I202: 213.58 | J202: 220.57 | K202: 206.6 | L202: 187.5 | M202: 54.31711
A203: 193 | B203: GSPL | C203: 335.95 | D203: 342.07 | E203: 327.18 | F203: 318.42 | G203: 303.53 | H203: 350.83 | I203: 365.72 | J203: 374.48 | K203: 356.95 | L203: 333.3 | M203: 16.91109
A204: 194 | B204: HEG | C204: 1727.35 | D204: 1763.45 | E204: 1663.90 | F204: 1600.45 | G204: 1500.90 | H204: 1826.90 | I204: 1926.45 | J204: 1989.90 | K204: 1863 | L204: 1700 | M204: 11.79362
A205: 195 | B205: HCLTECH | C205: 1631.5 | D205: 1631.03 | E205: 1610.82 | F205: 1590.13 | G205: 1569.92 | H205: 1651.72 | I205: 1671.93 | J205: 1692.62 | K205: 1651.25 | L205: 1610.35 | M205: 25.64135
A206: 196 | B206: HDFCAMC | C206: 3636.05 | D206: 3657.67 | E206: 3564.43 | F206: 3492.82 | G206: 3399.58 | H206: 3729.28 | I206: 3822.52 | J206: 3894.13 | K206: 3750.9 | L206: 3586.05 | M206: 3.39324
... 319 more rows

Sheet Bulk Deals
E6: Back To Main Page
A7: Subject : | B7: BULK DEAL | D7: =Main!B10 -> 2024-03-14
A9: Date | B9: Scrip code | C9: Scrip Name | D9: Client Name | E9: Buy / Sell | F9: Quantity Traded | G9: Trade Price / Wt.Avg.trade price | H9: Exchange
A10: 2024-03-13 | B10: 539528 | C10: AAYUSH | D10: MULTIPLIER SHARE & STOCK ADVISORS PRIVATE LIMITED | E10: SELL | F10: 22,508 | G10: 144.3 | H10: BSE
A11: 2024-03-13 | B11: 539528 | C11: AAYUSH | D11: AVANCE VENTURES PRIVATE LIMITED | E11: BUY | F11: 50,000 | G11: 147.15 | H11: BSE
A12: 2024-03-13 | B12: 513119 | C12: ABCGAS | D12: ROHITH SATISH SHOREWALA | E12: SELL | F12: 12,006 | G12: 58 | H12: BSE
A13: 2024-03-13 | B13: 513119 | C13: ABCGAS | D13: ARJUN LEASING AND FINANCE PVT LTD . | E13: BUY | F13: 12,550 | G13: 57.96 | H13: BSE
A14: 2024-03-13 | B14: 539661 | C14: ACEMEN | D14: ECV VENTURES PRIVATE LIMITED | E14: BUY | F14: 17,266 | G14: 43.73 | H14: BSE
A15: 2024-03-13 | B15: 544101 | C15: BRISK | D15: PRAVEENMUDUNURI | E15: SELL | F15: 16,800 | G15: 149.19 | H15: BSE
A16: 2024-03-13 | B16: 544101 | C16: BRISK | D16: RAJESH ARJUN DHARIRA | E16: BUY | F16: 21,600 | G16: 149.66 | H16: BSE
A17: 2024-03-13 | B17: 542866 | C17: COLABCLOUD | D17: AVANCE VENTURES PRIVATE LIMITED | E17: BUY | F17: 55,000 | G17: 189.19 | H17: BSE
A18: 2024-03-13 | B18: 531460 | C18: CONTICON | D18: PARESH DHIRAJLAL SHAH | E18: BUY | F18: 52,692 | G18: 7.74 | H18: BSE
A19: 2024-03-13 | B19: 539596 | C19: DELTA | D19: MULTIPLIER SHARE & STOCK ADVISORS PRIVATE LIMITED | E19: BUY | F19: 40,000 | G19: 29.96 | H19: BSE
A20: 2024-03-13 | B20: 539596 | C20: DELTA | D20: MULTIPLIER SHARE & STOCK ADVISORS PRIVATE LIMITED | E20: SELL | F20: 285 | G20: 29.96 | H20: BSE
A21: 2024-03-13 | B21: 539596 | C21: DELTA | D21: LIVELY EQUIPMENTS SUPPLIERS PRIVATE LIMITED | E21: SELL | F21: 30,000 | G21: 29.96 | H21: BSE
A22: 2024-03-13 | B22: 504000 | C22: ELPROINTL | D22: THE JUPITER GLOBAL FUND-JUPITER INDIA SELECT | E22: BUY | F22: 1,622,750 | G22: 80.3 | H22: BSE
A23: 2024-03-13 | B23: 504000 | C23: ELPROINTL | D23: JUPITER SOUTH ASIA INVESTMENT COMPANY LIMITED | E23: SELL | F23: 1,622,750 | G23: 80.3 | H23: BSE
A24: 2024-03-13 | B24: 539492 | C24: GARBIFIN | D24: TARA DEVI KOTHARI | E24: SELL | F24: 64,026 | G24: 27.26 | H24: BSE
A25: 2024-03-13 | B25: 531592 | C25: GENPHARMA | D25: TOPGAIN FINANCE PRIVATE LIMITED | E25: BUY | F25: 3,000,214 | G25: 2.77 | H25: BSE
A26: 2024-03-13 | B26: 513309 | C26: GOLKONDA | D26: DEEPAK MAHAVEERCHAND JAIN (HUF) | E26: BUY | F26: 30,000 | G26: 17.4 | H26: BSE
A27: 2024-03-13 | B27: 536709 | C27: INDRENEW | D27: MULTIPLIER SHARE & STOCK ADVISORS PRIVATE LIMITED | E27: BUY | F27: 10,000 | G27: 22.13 | H27: BSE
A28: 2024-03-13 | B28: 536709 | C28: INDRENEW | D28: MULTIPLIER SHARE & STOCK ADVISORS PRIVATE LIMITED | E28: SELL | F28: 70,000 | G28: 22.13 | H28: BSE
A29: 2024-03-13 | B29: 524614 | C29: INDXTRA | D29: RDS CORPORATE SERVICES PRIVATE LIMITED | E29: BUY | F29: 225,190 | G29: 10.14 | H29: BSE
A30: 2024-03-13 | B30: 524614 | C30: INDXTRA | D30: RDS CORPORATE SERVICES PRIVATE LIMITED | E30: SELL | F30: 225,190 | G30: 10.16 | H30: BSE
A31: 2024-03-13 | B31: 524614 | C31: INDXTRA | D31: KALPANABEN CHAMPAKLAL SHAH | E31: SELL | F31: 292,500 | G31: 10.16 | H31: BSE
A32: 2024-03-13 | B32: 524614 | C32: INDXTRA | D32: ROMIT CHAMPAKLAL SHAH | E32: SELL | F32: 283,628 | G32: 10.16 | H32: BSE
A33: 2024-03-13 | B33: 524614 | C33: INDXTRA | D33: RONIT CHAMPAKLAL SHAH | E33: SELL | F33: 315,000 | G33: 10.16 | H33: BSE
A34: 2024-03-13 | B34: 500875 | C34: ITC | D34: GOVERNMENT OF SINGAPORE | E34: BUY | F34: 91,545,678 | G34: 400.25 | H34: BSE
A35: 2024-03-13 | B35: 500875 | C35: ITC | D35: ICICI PRUDENTIAL MUTUAL FUND | E35: BUY | F35: 5,926,138 | G35: 400.25 | H35: BSE
A36: 2024-03-13 | B36: 500875 | C36: ITC | D36: TOBACCO MANUFACTURERS (INDIA) LIMITED | E36: SELL | F36: 218,425,728 | G36: 400.25 | H36: BSE
A37: 2024-03-13 | B37: 500875 | C37: ITC | D37: TOBACCO MANUFACTURERS INDIA LIMITED | E37: SELL | F37: 218,425,729 | G37: 400.25 | H37: BSE
A38: 2024-03-13 | B38: 500236 | C38: KANELIND | D38: N L RUNGTA (HUF) | E38: SELL | F38: 98,053 | G38: 1.39 | H38: BSE
A39: 2024-03-13 | B39: 500236 | C39: KANELIND | D39: PARTHASARATHY RAMANUJAM | E39: BUY | F39: 100,000 | G39: 1.4 | H39: BSE
A40: 2024-03-13 | B40: 500236 | C40: KANELIND | D40: GARIMA ASHISHBHAI SHAH | E40: SELL | F40: 120,500 | G40: 1.35 | H40: BSE
A41: 2024-03-13 | B41: 521238 | C41: KDL | D41: RUCHIRA GOYAL | E41: SELL | F41: 3,000 | G41: 127.4 | H41: BSE
A42: 2024-03-13 | B42: 521238 | C42: KDL | D42: MINABEN KIRITBHAI SHAH | E42: BUY | F42: 4,504 | G42: 127.4 | H42: BSE
A43: 2024-03-13 | B43: 539841 | C43: LANCER | D43: MINERVA VENTURES FUND | E43: SELL | F43: 6,060,000 | G43: 69 | H43: BSE
A44: 2024-03-13 | B44: 540360 | C44: LLFICL | D44: HARSHAD RASIKLAL SHETH | E44: BUY | F44: 800,000 | G44: 2.18 | H44: BSE
A45: 2024-03-13 | B45: 543364 | C45: MARKOLINES | D45: QUANTUMGROWTH PARTNERS LLP | E45: BUY | F45: 106,400 | G45: 139.79 | H45: BSE
A46: 2024-03-13 | B46: 543364 | C46: MARKOLINES | D46: PRAKASH PAI PERAJE | E46: SELL | F46: 96,000 | G46: 140 | H46: BSE
A47: 2024-03-13 | B47: 539762 | C47: MEAPL | D47: MULTIPLIER SHARE & STOCK ADVISORS PRIVATE LIMITED | E47: SELL | F47: 30,000 | G47: 81.61 | H47: BSE
A48: 2024-03-13 | B48: 500279 | C48: MIRCELECTR | D48: MARISSA VIJAY MANSUKHANI | E48: BUY | F48: 12,985,774 | G48: 20.5 | H48: BSE
A49: 2024-03-13 | B49: 500279 | C49: MIRCELECTR | D49: VIJAY JAIKRISHIN MANSUKHANI | E49: SELL | F49: 12,985,774 | G49: 20.5 | H49: BSE
A50: 2024-03-13 | B50: 543522 | C50: NVENTURES | D50: NILA BISWAKARMA | E50: SELL | F50: 6,000 | G50: 49.9 | H50: BSE
A51: 2024-03-13 | B51: 543522 | C51: NVENTURES | D51: NILA BISWAKARMA | E51: BUY | F51: 27,000 | G51: 49.84 | H51: BSE
A52: 2024-03-13 | B52: 543522 | C52: NVENTURES | D52: KIRTIBHAI CHAMANBHAI ADHGAMA | E52: SELL | F52: 24,000 | G52: 49.84 | H52: BSE
A53: 2024-03-13 | B53: 538742 | C53: PANABYTE | D53: RAIBEN GOVINDBHAI PATEL | E53: BUY | F53: 23,747 | G53: 24.12 | H53: BSE
A54: 2024-03-13 | B54: 537573 | C54: POLYMAC | D54: KEERTI MAHESHWARI | E54: SELL | F54: 27,200 | G54: 40.65 | H54: BSE
A55: 2024-03-13 | B55: 537573 | C55: POLYMAC | D55: RAJESH RAMANLAL KAPADIA | E55: BUY | F55: 26,400 | G55: 40.71 | H55: BSE
A56: 2024-03-13 | B56: 512047 | C56: ROYALIND | D56: MULTIPLIER SHARE & STOCK ADVISORS PRIVATE LIMITED | E56: BUY | F56: 100,000 | G56: 9.59 | H56: BSE
A57: 2024-03-13 | B57: 512047 | C57: ROYALIND | D57: MULTIPLIER SHARE & STOCK ADVISORS PRIVATE LIMITED | E57: SELL | F57: 164,303 | G57: 9.23 | H57: BSE
A58: 2024-03-13 | B58: 512047 | C58: ROYALIND | D58: KALAWATI PRITHVIRAJ KOTHARI | E58: SELL | F58: 181,252 | G58: 9.23 | H58: BSE
A59: 2024-03-13 | B59: 512047 | C59: ROYALIND | D59: RAMAKRISHNAN SITARAM | E59: BUY | F59: 150,000 | G59: 9.3 | H59: BSE
A60: 2024-03-13 | B60: 505515 | C60: SHYMINV | D60: PARESH V KALYANI | E60: BUY | F60: 44,150 | G60: 10.51 | H60: BSE
A61: 2024-03-13 | B61: 521034 | C61: SOMATEX | D61: VANDANA JATIA FAMILY TRUST | E61: BUY | F61: 200,000 | G61: 37 | H61: BSE
A62: 2024-03-13 | B62: 539310 | C62: THINKINK | D62: PIYUSH SECURITIES PVT LTD | E62: SELL | F62: 250,000 | G62: 46.37 | H62: BSE
A63: 2024-03-13 | B63: 526675 | C63: TIRTPLS | D63: MULTIPLIER SHARE & STOCK ADVISORS PRIVATE LIMITED | E63: BUY | F63: 5,000 | G63: 59 | H63: BSE
A64: 2024-03-13 | B64: 526675 | C64: TIRTPLS | D64: MULTIPLIER SHARE & STOCK ADVISORS PRIVATE LIMITED | E64: SELL | F64: 55,389 | G64: 59 | H64: BSE
A65: 2024-03-13 | B65: 526675 | C65: TIRTPLS | D65: VARIS MAHENDRABHAI DOSHI | E65: SELL | F65: 40,000 | G65: 59 | H65: BSE
A66: 2024-03-13 | B66: 511523 | C66: VEERHEALTH | D66: YOGESH MAHASUKLAL SHAH | E66: BUY | F66: 100,000 | G66: 19.65 | H66: BSE
A67: 2024-03-13 | B67: APLAPOLLO | C67: Apl Apollo Tubes Ltd | D67: NEW WORLD FUND INC | E67: BUY | F67: 2,789,398 | G67: 1601.1 | H67: NSE
A68: 2024-03-13 | B68: COFFEEDAY | C68: Coffee Day Enterprise Ltd | D68: HRTI PRIVATE LIMITED | E68: BUY | F68: 1,284,093 | G68: 52.7 | H68: NSE
A69: 2024-03-13 | B69: DHTL | C69: Docmode Health Tech Ltd | D69: PHOENIX TRADERS | E69: BUY | F69: 16,000 | G69: 179.05 | H69: NSE
A70: 2024-03-13 | B70: DISHTV | C70: Dish TV India Limited | D70: HRTI PRIVATE LIMITED | E70: BUY | F70: 12,749,922 | G70: 17.36 | H70: NSE
A71: 2024-03-13 | B71: IBREALEST | C71: Indiabulls Real Estate Li | D71: HRTI PRIVATE LIMITED | E71: BUY | F71: 3,707,751 | G71: 103.22 | H71: NSE
A72: 2024-03-13 | B72: INDTERRAIN | C72: Ind Terrain Fashions Ltd | D72: POLARIS BANYAN HOLDING PRIVATE LTD | E72: BUY | F72: 296,650 | G72: 78.94 | H72: NSE
A73: 2024-03-13 | B73: INFIBEAM | C73: Infibeam Avenues Limited | D73: HRTI PRIVATE LIMITED | E73: BUY | F73: 18,988,132 | G73: 35.24 | H73: NSE
A74: 2024-03-13 | B74: IPL | C74: India Pesticides Limited | D74: VT CAPITAL MARKET PVT LTD | E74: BUY | F74: 1,456,078 | G74: 309.22 | H74: NSE
A75: 2024-03-13 | B75: IPL | C75: India Pesticides Limited | D75: HRTI PRIVATE LIMITED | E75: BUY | F75: 614,660 | G75: 299.69 | H75: NSE
A76: 2024-03-13 | B76: IPSL | C76: Integrated Perso Ser Ltd | D76: NIRAJ RAJNIKANT SHAH | E76: BUY | F76: 50,000 | G76: 184 | H76: NSE
A77: 2024-03-13 | B77: JGCHEM | C77: J.G.Chemicals Limited | D77: MARWADI CHANDARANA INTERMEDIARIES BROKERS PRIVATE LIMITED | E77: BUY | F77: 425,218 | G77: 189.49 | H77: NSE
A78: 2024-03-13 | B78: JGCHEM | C78: J.G.Chemicals Limited | D78: NK SECURITIES RESEARCH PRIVATE LIMITED | E78: BUY | F78: 213,016 | G78: 199.54 | H78: NSE
A79: 2024-03-13 | B79: JGCHEM | C79: J.G.Chemicals Limited | D79: MUSIGMA SECURITIES | E79: BUY | F79: 242,432 | G79: 201.74 | H79: NSE
A80: 2024-03-13 | B80: JGCHEM | C80: J.G.Chemicals Limited | D80: GRT STRATEGIC VENTURES LLP | E80: BUY | F80: 490,576 | G80: 198.77 | H80: NSE
A81: 2024-03-13 | B81: KTL | C81: Kalahridhaan Trendz Ltd | D81: PANKAJKUMAR JAYANTILAL PATEL | E81: BUY | F81: 120,000 | G81: 41.1 | H81: NSE
A82: 2024-03-13 | B82: KTL | C82: Kalahridhaan Trendz Ltd | D82: MAHADEV MANUBHAI MAKVANA | E82: BUY | F82: 132,000 | G82: 42.66 | H82: NSE
A83: 2024-03-13 | B83: ONDOOR | C83: On Door Concepts Limited | D83: ANANT WEALTH CONSULTANTS PRIVATE LIMITED | E83: BUY | F83: 61,800 | G83: 284.4 | H83: NSE
A84: 2024-03-13 | B84: RAILTEL | C84: Railtel Corp of Ind Ltd | D84: JAINAM BROKING LIMITED | E84: BUY | F84: 74,440 | G84: 338.01 | H84: NSE
A85: 2024-03-13 | B85: RAILTEL | C85: Railtel Corp of Ind Ltd | D85: SW CAPITAL PRIVATE LIMITED | E85: BUY | F85: 1,215,967 | G85: 343.99 | H85: NSE
A86: 2024-03-13 | B86: RICOAUTO | C86: Rico Auto Industries Ltd | D86: GRAVITON RESEARCH CAPITAL LLP | E86: BUY | F86: 830,117 | G86: 120.77 | H86: NSE
A87: 2024-03-13 | B87: RICOAUTO | C87: Rico Auto Industries Ltd | D87: HRTI PRIVATE LIMITED | E87: BUY | F87: 784,134 | G87: 118.48 | H87: NSE
A88: 2024-03-13 | B88: RUCHINFRA | C88: Ruchi Infrastructure Ltd. | D88: SHANTIRAM KUTUMBKAM FOOD SERVICES PRIVATE LIMITED | E88: BUY | F88: 1,552,622 | G88: 10.5 | H88: NSE
A89: 2024-03-13 | B89: SOUTH-RE | C89: The South Indian Bank Ltd | D89: GOLDMAN SACHS (SINGAPORE) PTE | E89: BUY | F89: 5,500,000 | G89: 2.9 | H89: NSE
A90: 2024-03-13 | B90: SUBEXLTD | C90: Subex Ltd | D90: HRTI PRIVATE LIMITED | E90: BUY | F90: 2,972,294 | G90: 31.53 | H90: NSE
A91: 2024-03-13 | B91: SWANENERGY | C91: Swan Energy Limited | D91: JAINAM BROKING LIMITED | E91: BUY | F91: 1,499,719 | G91: 478.22 | H91: NSE
A92: 2024-03-13 | B92: TFCILTD | C92: Tourism Finance Corp | D92: SETU SECURITIES PVT LTD | E92: BUY | F92: 633,456 | G92: 188.85 | H92: NSE
A93: 2024-03-13 | B93: TFCILTD | C93: Tourism Finance Corp | D93: MANSI SHARE AND STOCK ADVISORS PVT LTD | E93: BUY | F93: 848,742 | G93: 188.75 | H93: NSE
A94: 2024-03-13 | B94: TOTAL | C94: Total Transport Sys Ltd | D94: A AND S TRADELINK | E94: BUY | F94: 222,296 | G94: 96.6 | H94: NSE
A95: 2024-03-13 | B95: VIKASECO | C95: Vikas EcoTech Limited | D95: VISHWAS FINCAP SERVICES PRIVATE LIMITED | E95: BUY | F95: 17,476,241 | G95: 3.63 | H95: NSE
A96: 2024-03-13 | B96: VR | C96: V R Infraspace Limited | D96: ADANI ATUL KANTILAL | E96: BUY | F96: 56,000 | G96: 89.2 | H96: NSE
A97: 2024-03-13 | B97: VR | C97: V R Infraspace Limited | D97: FLORENCE ATUL ADANI | E97: BUY | F97: 56,000 | G97: 89.14 | H97: NSE
A98: 2024-03-13 | B98: VR | C98: V R Infraspace Limited | D98: BHUMIKABEN SUNILBHAI PATEL | E98: BUY | F98: 100,800 | G98: 89 | H98: NSE
A99: 2024-03-13 | B99: APLAPOLLO | C99: Apl Apollo Tubes Ltd | D99: PRINCIPAL GLOBAL INVESTORS COLLECTIVE INVESTMENT TRUST | E99: SELL | F99: 1,531,367 | G99: 1600.16 | H99: NSE
A100: 2024-03-13 | B100: ARISTO | C100: Aristo Bio T and Lifesc L | D100: MAYURI SHRIPAL VORA | E100: SELL | F100: 43,200 | G100: 57.15 | H100: NSE
A101: 2024-03-13 | B101: CMMIPL | C101: CMM Infraprojects Limited | D101: SAMTA MUNDRA | E101: SELL | F101: 102,000 | G101: 2.1 | H101: NSE
A102: 2024-03-13 | B102: COFFEEDAY | C102: Coffee Day Enterprise Ltd | D102: HRTI PRIVATE LIMITED | E102: SELL | F102: 1,333,047 | G102: 52.95 | H102: NSE
A103: 2024-03-13 | B103: DHTL | C103: Docmode Health Tech Ltd | D103: AAKANKSHA TIWARI | E103: SELL | F103: 16,000 | G103: 179.05 | H103: NSE
A104: 2024-03-13 | B104: DISHTV | C104: Dish TV India Limited | D104: HRTI PRIVATE LIMITED | E104: SELL | F104: 12,564,916 | G104: 17.48 | H104: NSE
A105: 2024-03-13 | B105: IBREALEST | C105: Indiabulls Real Estate Li | D105: HRTI PRIVATE LIMITED | E105: SELL | F105: 3,731,424 | G105: 103.85 | H105: NSE
A106: 2024-03-13 | B106: INFIBEAM | C106: Infibeam Avenues Limited | D106: HRTI PRIVATE LIMITED | E106: SELL | F106: 18,928,514 | G106: 35.48 | H106: NSE
A107: 2024-03-13 | B107: IPL | C107: India Pesticides Limited | D107: HRTI PRIVATE LIMITED | E107: SELL | F107: 634,724 | G107: 291.11 | H107: NSE
A108: 2024-03-13 | B108: IPL | C108: India Pesticides Limited | D108: VT CAPITAL MARKET PVT LTD | E108: SELL | F108: 1,608,090 | G108: 301.46 | H108: NSE
A109: 2024-03-13 | B109: IPSL | C109: Integrated Perso Ser Ltd | D109: SAUMIL ARVIND BHAVNAGARI | E109: SELL | F109: 85,000 | G109: 183.95 | H109: NSE
A110: 2024-03-13 | B110: JGCHEM | C110: J.G.Chemicals Limited | D110: MUSIGMA SECURITIES | E110: SELL | F110: 242,432 | G110: 201.72 | H110: NSE
A111: 2024-03-13 | B111: JGCHEM | C111: J.G.Chemicals Limited | D111: NK SECURITIES RESEARCH PRIVATE LIMITED | E111: SELL | F111: 213,016 | G111: 199.59 | H111: NSE
A112: 2024-03-13 | B112: JGCHEM | C112: J.G.Chemicals Limited | D112: MARWADI CHANDARANA INTERMEDIARIES BROKERS PRIVATE LIMITED | E112: SELL | F112: 425,218 | G112: 193.03 | H112: NSE
A113: 2024-03-13 | B113: JGCHEM | C113: J.G.Chemicals Limited | D113: GRT STRATEGIC VENTURES LLP | E113: SELL | F113: 490,576 | G113: 198.85 | H113: NSE
A114: 2024-03-13 | B114: KTL | C114: Kalahridhaan Trendz Ltd | D114: MAHADEV MANUBHAI MAKVANA | E114: SELL | F114: 93,000 | G114: 41.1 | H114: NSE
A115: 2024-03-13 | B115: ONDOOR | C115: On Door Concepts Limited | D115: ANANT WEALTH CONSULTANTS PRIVATE LIMITED | E115: SELL | F115: 1,200 | G115: 245 | H115: NSE
A116: 2024-03-13 | B116: ONDOOR | C116: On Door Concepts Limited | D116: ARHAM WEALTH MANAGEMENT PRIVATE LIMITED | E116: SELL | F116: 79,200 | G116: 282.98 | H116: NSE
A117: 2024-03-13 | B117: RAILTEL | C117: Railtel Corp of Ind Ltd | D117: SW CAPITAL PRIVATE LIMITED | E117: SELL | F117: 1,629,511 | G117: 341.54 | H117: NSE
A118: 2024-03-13 | B118: RAILTEL | C118: Railtel Corp of Ind Ltd | D118: JAINAM BROKING LIMITED | E118: SELL | F118: 1,766,698 | G118: 335.36 | H118: NSE
A119: 2024-03-13 | B119: RICOAUTO | C119: Rico Auto Industries Ltd | D119: GRAVITON RESEARCH CAPITAL LLP | E119: SELL | F119: 830,117 | G119: 120.91 | H119: NSE
A120: 2024-03-13 | B120: RICOAUTO | C120: Rico Auto Industries Ltd | D120: HRTI PRIVATE LIMITED | E120: SELL | F120: 726,836 | G120: 120.04 | H120: NSE
A121: 2024-03-13 | B121: RUCHINFRA | C121: Ruchi Infrastructure Ltd. | D121: PATANJALI FOODS LIMITED | E121: SELL | F121: 1,500,000 | G121: 10.5 | H121: NSE
A122: 2024-03-13 | B122: SUBEXLTD | C122: Subex Ltd | D122: HRTI PRIVATE LIMITED | E122: SELL | F122: 3,078,225 | G122: 31.74 | H122: NSE
A123: 2024-03-13 | B123: SWANENERGY | C123: Swan Energy Limited | D123: JAINAM BROKING LIMITED | E123: SELL | F123: 2,499,636 | G123: 494.86 | H123: NSE
A124: 2024-03-13 | B124: TFCILTD | C124: Tourism Finance Corp | D124: SETU SECURITIES PVT LTD | E124: SELL | F124: 608,337 | G124: 190.92 | H124: NSE
A125: 2024-03-13 | B125: TFCILTD | C125: Tourism Finance Corp | D125: MANSI SHARE AND STOCK ADVISORS PVT LTD | E125: SELL | F125: 333,102 | G125: 189.14 | H125: NSE
A126: 2024-03-13 | B126: TIJARIA | C126: Tijaria Polypipes Ltd | D126: MULTIPLIER SHARE & STOCK ADVISORS PRIVATE LIMITED | E126: SELL | F126: 222,471 | G126: 15.3 | H126: NSE
A127: 2024-03-13 | B127: TOTAL | C127: Total Transport Sys Ltd | D127: KRONE INVESTMENTS | E127: SELL | F127: 217,049 | G127: 96.61 | H127: NSE
A128: 2024-03-13 | B128: TRU | C128: TruCap Finance Limited | D128: SHITALNATH CONSULTANT PRIVATE LIMITED | E128: SELL | F128: 600,207 | G128: 50.52 | H128: NSE
A129: 2024-03-13 | B129: VIKASECO | C129: Vikas EcoTech Limited | D129: VISHWAS FINCAP SERVICES PRIVATE LIMITED | E129: SELL | F129: 16,495,875 | G129: 3.55 | H129: NSE
A130: 2024-03-13 | B130: ZENITHDRUG | C130: Zenith Drugs Limited | D130: YUGA STOCKS AND COMMODITIES PRIVATE LIMITED . | E130: SELL | F130: 100,800 | G130: 63.73 | H130: NSE

Sheet Call Tracker (Equity & F&O)
M5: Back To Main Page
A6: Retail Research Technical Calls & Fundamental Performance Report for the month of March-2024
M7: =Main!B10 -> 2024-03-14
B8: Positional Call
A9: Sr.no | B9: Date | D9: Company | E9: Rec | F9: Rec Price | G9: Stop Loss*** | H9: Call Closed At | I9: Target | J9: Remark | K9: Profit / Loss per Share | L9: All charges | M9: Net Gain / Loss % | N9: Status | O9: Closed Date | P9: Market Closing Price | Q9: Second Buying Date
A10: 1 | B10: 2024-01-30 | D10: RELIANCE | E10: Accu | F10: 2870 | G10: 2640 | H10: 3024 | I10: 3100-3200 | J10: Profit of Rs.154/- | K10: =H10-F10 -> 154 | L10: =(F10*-0.3)/100 -> -8.61 | M10: =(K10+L10)/F10 -> 5.07% | N10: Successful | O10: 2024-03-04 | S10: H
A11: 2 | B11: 2024-02-06 | D11: CARBORUNIV | E11: Accu | F11: 1065-1105 | G11: 1030 | I11: 1200-1280 | J11: Open | P11: =VLOOKUP(D11,'MidCap Intra'!$B$11:$C$568,2,0) -> 1060.85 | S11: H
A12: 3 | B12: 2024-02-08 | D12: LTIM | E12: Accu | F12: 5200-5400 | G12: 4990 | I12: 5750-6050 | J12: Open | P12: =VLOOKUP(D12,'MidCap Intra'!$B$11:$C$568,2,0) -> 5195.00 | S12: H
A13: 4 | B13: 2024-02-09 | D13: HDFCBANK | E13: Accu | F13: 1400 | G13: 1290 | H13: 1470 | I13: 1500-1600 | J13: Profit of Rs.70/- | K13: =H13-F13 -> 70 | L13: =(F13*-0.3)/100 -> -4.20 | M13: =(K13+L13)/F13 -> 4.70% | N13: Successful | O13: 2024-03-13 | S13: H
A14: 5 | B14: 2024-02-16 | D14: ARE&M | E14: Accu | F14: 853 | G14: 805 | H14: 805 | I14: 920-960 | J14: Loss of Rs.48/- | K14: -48 | L14: -2.56 | M14: -5.93% | N14: Unsuccessful | O14: 2024-03-13 | S14: K
A15: 6 | B15: 2024-02-21 | D15: IBULHSGFIN | E15: Accu | F15: 180 | G15: 164 | H15: 168 | I15: 215-230 | J15: Loss of Rs.12/- | K15: =H15-F15 -> -12 | L15: =(F15*-0.3)/100 -> -0.54 | M15: =(K15+L15)/F15 -> -6.97% | N15: Unsuccessful | O15: 2024-03-13 | S15: H
A16: 7 | B16: 2024-02-23 | D16: CAPACITE | E16: Accu | F16: 258.75 | G16: 238 | H16: 238 | I16: 300-330 | J16: Loss of Rs.20.75/- | K16: =H16-F16 -> -20.75 | L16: =(F16*-0.3)/100 -> -0.78 | M16: =(K16+L16)/F16 -> -8.32% | N16: Unsuccessful | O16: 2024-03-13 | S16: H
A17: 8 | B17: 2024-02-29 | D17: JAMNAAUTO | E17: Accu | F17: 119.5 | G17: 111.8 | H17: 125.5 | I17: 153-155 | J17: Profit of Rs.6/- | K17: =H17-F17 -> 6 | L17: =(F17*-0.3)/100 -> -0.36 | M17: =(K17+L17)/F17 -> 4.72% | N17: Successful | O17: 2024-03-01 | S17: H
A18: 9 | B18: 2024-03-01 | D18: WIPRO | E18: Accu | F18: 497.5-517.5 | G18: 477.5 | I18: 560-600 | J18: Open | P18: =VLOOKUP(D18,'MidCap Intra'!$B$11:$C$568,2,0) -> 504.40
A19: 10 | B19: 2024-03-02 | D19: SAIL | E19: Accu | F19: 136.75 | G19: 128 | H19: 144.1 | I19: 145-152 | J19: Profit of Rs.7.35/- | K19: =H19-F19 -> 7.35 | L19: =(F19*-0.3)/100 -> -0.41 | M19: =(K19+L19)/F19 -> 5.07% | N19: Successful | O19: 2024-03-04
A20: 11 | B20: 2024-03-04 | D20: TATASTEEL | E20: Accu | F20: 144.5-151.5 | G20: 139 | I20: 164-175 | J20: Open | P20: =VLOOKUP(D20,'MidCap Intra'!$B$11:$C$568,2,0) -> 143.65 | S20: H
A21: 12 | B21: 2024-03-04 | D21: FLUOROCHEM | E21: Accu | F21: 3,485.00 | G21: 3290 | H21: 3290 | I21: 3800-4000 | J21: Loss of Rs.195/- | K21: =H21-F21 -> -195 | L21: =(F21*-0.3)/100 -> -10.46 | M21: =(K21+L21)/F21 -> -5.90% | N21: Unsuccessful | O21: 2024-03-13 | S21: H
A22: 13 | B22: 2024-03-05 | D22: ZEEL | E22: Accu | F22: 155 | G22: 144 | H22: 164.25 | I22: 168-180 | J22: Profit of Rs.9.25/- | K22: =H22-F22 -> 9.25 | L22: =(F22*-0.3)/100 -> -0.47 | M22: =(K22+L22)/F22 -> 5.67% | N22: Successful | O22: 2024-03-11 | S22: H
A23: 14 | B23: 2024-03-06 | D23: CAMS | E23: Accu | F23: 2815-2945 | G23: 2700 | I23: 3150-3350 | J23: Open | P23: =VLOOKUP(D23,'MidCap Intra'!$B$11:$C$568,2,0) -> 2744.90 | S23: H
A24: 15 | B24: 2024-03-06 | D24: INDUSTOWER | E24: Accu | F24: 241.5-251.5 | G24: 230 | I24: 275-300 | J24: Open | P24: =VLOOKUP(D24,'MidCap Intra'!$B$11:$C$568,2,0) -> 236.40 | S24: H
A25: 16 | B25: 2024-03-11 | D25: NESTLEIND | E25: Accu | F25: 2485-2585 | G25: 2390 | I25: 2800-3000 | J25: Open | P25: =VLOOKUP(D25,'MidCap Intra'!$B$11:$C$568,2,0) -> 2582.95
A26: 17 | B26: 2024-03-11 | D26: GLS | E26: Accu | F26: 697.5-732.5 | G26: 668 | I26: 800-850 | J26: Open | P26: =VLOOKUP(D26,'MidCap Intra'!$B$11:$C$568,2,0) -> 688.30
A27: 18 | B27: 2024-03-12 | D27: ZEEL | E27: Accu | F27: 152.5 | G27: 145 | H27: 145 | I27: 165-175 | J27: Loss of Rs.7.5/- | K27: =H27-F27 -> -7.5 | L27: =(F27*-0.3)/100 -> -0.46 | M27: =(K27+L27)/F27 -> -5.22% | N27: Unsuccessful | O27: 2024-03-13
A28: 19 | B28: 2024-03-13 | D28: LATENTVIEW | E28: Accu | F28: 436.5-452.5 | G28: 419 | I28: 490-530 | J28: Open | P28: =VLOOKUP(D28,'MidCap Intra'!$B$11:$C$568,2,0) -> 443.55
A33: CLBS = Closing Basis ***
A34: Dividend adjusted <> | F34: Reinitiated $
A35: Part book {} | D35: s | F35: Revised stoploss #
A39: Master Trade High Risk
A40: Sr.no | B40: Date | D40: Company | E40: Rec | F40: Rec Price | G40: Stop Loss | H40: Call Closed At | I40: Target | J40: Remark | K40: Profit / Loss per share | L40: All charges | M40: Gain / Loss per Lot | N40: Lot | O40: Status | P40: Closed Date
A41: 1 | B41: 2024-02-26 | D41: JSWSTEEL MAR FUT | E41: Buy | F41: 812.5 | G41: 795 | H41: 826 | I41: 831-847 | J41: Profit of Rs.13.5/- | K41: =H41-F41 -> 13.5 | L41: =(H41*N41)*0.03% -> 167.27 | M41: =(K41*N41)-L41 -> 8945.2 | N41: 675 | O41: Successful | P41: 2024-03-01 | S41: K
A42: 2 | B42: 2024-02-29 | D42: FEDERALBNK MAR FUT | E42: Buy | F42: 151.2 | G42: 149 | H42: 153 | I42: 153-155 | J42: Profit of Rs.1.8/- | K42: =H42-F42 -> 1.8 | L42: =(H42*N42)*0.03% -> 229.50 | M42: =(K42*N42)-L42 -> 8770.5 | N42: 5000 | O42: Successful | P42: 2024-03-01 | S42: K
A43: 3 | B43: 2024-02-29 | D43: RELIANCE MAR FUT | E43: Buy | F43: 2934 | G43: 2890 | H43: 2963.5 | I43: 2976-3018 | J43: Profit of Rs.29.5/- | K43: =H43-F43 -> 29.5 | L43: =(H43*N43)*0.03% -> 222.26 | M43: =(K43*N43)-L43 -> 7152.7 | N43: 250 | O43: Successful | P43: 2024-03-01 | S43: N
A44: 4 | B44: 2024-03-01 | D44: NIFTY MAR FUT | E44: Sell | F44: 22295 | G44: 22420 | H44: 22405 | I44: 22150-22000 | J44: Loss of Rs.110/- | K44: =F44-H44 -> -110 | L44: 336.08 | M44: -5836.1 | N44: 50 | O44: Unsuccessful | P44: 2024-03-01 | S44: H
A45: 5 | B45: 2024-03-01 | D45: PIIND MAR FUT | E45: Buy | F45: 3707.5 | G45: 3668 | H45: 3668 | I45: 3750-3792 | J45: Loss of Rs.39.5/- | K45: =H45-F45 -> -39.5 | L45: =(H45*N45)*0.03% -> 275.10 | M45: =(K45*N45)-L45 -> -10150.1 | N45: 250 | O45: Unsuccessful | P45: 2024-03-04 | S45: N
A46: 6 | B46: 2024-03-01 | D46: BANKNIFTY MAR FUT | E46: Buy | F46: 47575 | G46: 47200 | H46: 47740 | I46: 47850-48200 | J46: Profit of Rs.165/- | K46: 165 | L46: =(H46*N46)*0.03% -> 214.83 | M46: =(K46*N46)-L46 -> 2260.2 | N46: 15 | O46: Successful | P46: 2024-03-04 | S46: H
A47: 7 | B47: 2024-03-01 | D47: TITAN MAR FUT | E47: Buy | F47: 3775 | G47: 3718 | H47: 3823 | I47: 3835-3895 | J47: Profit of Rs.48/- | K47: 48 | L47: =(H47*N47)*0.03% -> 200.71 | M47: =(K47*N47)-L47 -> 8199.3 | N47: 175 | O47: Successful | P47: 2024-03-06 | S47: H
A48: 8 | B48: 2024-03-02 | D48: PIDILITIND MAR FUT | E48: Buy | F48: 2757.5 | G48: 2718 | H48: 2718 | I48: 2800-2842 | J48: Loss of Rs.39.5/- | K48: -39.5 | L48: =(H48*N48)*0.03% -> 203.85 | M48: =(K48*N48)-L48 -> -10078.9 | N48: 250 | O48: Unsuccessful | P48: 2024-03-04 | S48: N
A49: 9 | B49: 2024-03-03 | D49: JSWSTEEL MAR FUT | E49: Buy | F49: 834 | G49: 816 | H49: 816 | I49: 850-865 | J49: Loss of Rs.18/- | K49: -18 | L49: =(H49*N49)*0.03% -> 165.24 | M49: =(K49*N49)-L49 -> -12315.2 | N49: 675 | O49: Unsuccessful | P49: 2024-03-06 | S49: K
A50: 10 | B50: 2024-03-05 | D50: HDFCBANK MAR FUT | E50: Buy | F50: 1445 | G50: 1425 | H50: 1462 | I50: 1463-1482 | J50: Profit of Rs.17/- | K50: 17 | L50: 241.23 | M50: 9108.8 | N50: 550 | O50: Successful | P50: 2024-03-12 | S50: H
A51: 11 | B51: 2024-03-06 | D51: TCS MAR FUT | E51: Buy | F51: 4020 | G51: 3960 | H51: 4067.5 | I51: 4085-4145 | J51: Profit of Rs.47.5/- | K51: 47.5 | L51: =(H51*N51)*0.03% -> 213.54 | M51: =(K51*N51)-L51 -> 8099.0 | N51: 175 | O51: Successful | P51: 2024-03-06 | S51: N
A52: 12 | B52: 2024-03-06 | D52: INFY MAR FUT | E52: Buy | F52: 1617-1619 | G52: 1590 | I52: 1644-1671 | J52: Open | S52: N
A53: 13 | B53: 2024-03-06 | D53: ITC MAR FUT | E53: Buy | F53: 410.5 | G53: 403 | H53: 410.5 | I53: 417-424 | J53: No profit no loss | K53: =H53-F53 -> 0 | L53: =(H53*N53)*0.03% -> 197.04 | M53: =(K53*N53)-L53 -> -197.0 | N53: 1600 | O53: Neutral | P53: 2024-03-07 | S53: H
A54: 14 | B54: 2024-03-06 | D54: NIFTY MAR FUT | E54: Buy | F54: 22590 | G54: 22480 | H54: 22545 | I54: 22700-22800 | J54: Loss of Rs.45/- | K54: -45 | L54: 338.18 | M54: -2588.2 | N54: 50 | O54: Unsuccessful | P54: 2024-03-07 | S54: H
A55: 15 | B55: 2024-03-07 | D55: BRITANNIA MAR FUT | E55: Buy | F55: 4865 | G55: 4815 | H55: 4918 | I55: 4918-4970 | J55: Profit of Rs.53/- | K55: 53 | L55: =(H55*N55)*0.03% -> 295.08 | M55: =(K55*N55)-L55 -> 10304.9 | N55: 200 | O55: Successful | P55: 2024-03-07 | S55: H
A56: 16 | B56: 2024-03-07 | D56: SIEMENS MAR FUT | E56: Buy | F56: 4732 | G56: 4655 | H56: 4805 | I56: 4810-4882 | J56: Profit of Rs.73/- | K56: 73 | L56: =(H56*N56)*0.03% -> 216.23 | M56: =(K56*N56)-L56 -> 10733.8 | N56: 150 | O56: Successful | P56: 2024-03-11 | S56: K
A57: 17 | B57: 2024-03-11 | D57: NIFTY MAR FUT | E57: Buy | F57: 22490 | G57: 22315 | H57: 22495 | I57: 22700-22900 | J57: Profit of Rs.5/- | K57: 5 | L57: 337.43 | M57: -87.4 | N57: 50 | O57: Neutral | P57: 2024-03-11
A58: 18 | B58: 2024-03-12 | D58: FEDERALBNK MAR FUT | E58: Buy | F58: 152.65 | G58: 150.5 | H58: 150.5 | I58: 155-157 | J58: Loss of Rs.2.15/- | K58: -2.15 | L58: 225.75 | M58: -10975.8 | N58: 5000 | O58: Unsuccessful | P58: 2024-03-13
A59: 19 | B59: 2024-03-12 | D59: GODREJCP MAR FUT | E59: Buy | F59: 1227 | G59: 1205 | H59: 1198.5 | I59: 1248-1269 | J59: Loss of Rs.28.5/- | K59: -28.5 | L59: =(H59*N59)*0.03% -> 179.78 | M59: =(K59*N59)-L59 -> -14429.8 | N59: 500 | O59: Unsuccessful | P59: 2024-03-13
A64: Master Trade Medium Risk
A65: Sr.no | B65: Date | D65: Company | E65: Rec | F65: Rec Price | G65: Stop Loss | H65: Call Closed At | I65: Target | J65: Remark | K65: Profit/ Loss per lot | L65: All charges | M65: Gain / Loss per Lot | N65: Lot | O65: Status | P65: Closed Date
A66: 1 | B66: 2024-03-01 | D66: NIFTY 22000 PE 07 MAR | E66: Buy | F66: 97 | G66: 60 | H66: 64 | I66: 150-180 | J66: Loss of Rs.33/- | K66: =H66-F66 -> -33 | L66: 50.00 | M66: =(K66*N66)-L66 -> -1700.0 | N66: 50 | O66: Unsuccessful | P66: 2024-03-01 | S66: H
A67: 2 | B67: 2024-03-04 | D67: FINNIFTY 21050 CE 05 MAR | E67: Sell | F67: 30 | H67: 10 | J67: Profit of Rs.5/- | K67: =F67-H67 -> 20 | L67: 50.00 | M67: 100.0 | N67: 40 | O67: Neutral | P67: 2024-03-05 | S67: N
D68: FINNIFTY 20850 PE 05 MAR | E68: Sell | F68: 37 | H68: 52 | K68: =F68-H68 -> -15 | L68: 50.00 | N68: 40
A69: 3 | B69: 2024-03-05 | D69: BANKNIFTY 47300 CE 06 MAR | E69: Buy | F69: 240 | G69: 90 | H69: 300 | I69: 380-500 | J69: Profit of Rs.60/- | K69: =H69-F69 -> 60 | L69: 50.00 | M69: =(K69*N69)-L69 -> 850.0 | N69: 15 | O69: Successful | P69: 2024-03-05 | S69: H
A70: 4 | B70: 2024-03-05 | D70: FINNIFTY 20850 CE 05 MAR | E70: Buy | F70: 30 | G70: 5 | H70: 45 | I70: 60-90 | J70: Profit of Rs.15/- | K70: =H70-F70 -> 15 | L70: 50.00 | M70: =(K70*N70)-L70 -> 550.0 | N70: 40 | O70: Successful | P70: 2024-03-05 | S70: N
A71: 5 | B71: 2024-03-05 | D71: NIFTY 22500 CE 28 MAR | E71: Sell | F71: 250 | G71: 305 | H71: 297.5 | I71: 200-150 | J71: Loss of Rs.47.5/- | K71: =F71-H71 -> -47.5 | L71: 50.00 | M71: =(K71*N71)-L71 -> -2425.0 | N71: 50 | O71: Unsuccessful | P71: 2024-03-05 | S71: H
A72: 6 | B72: 2024-03-07 | D72: INFY 1610 CE MAR | E72: Buy | F72: 37.5 | H72: 42.5 | J72: Profit of Rs.4/- | K72: =H72-F72 -> 5 | L72: 50.00 | M72: 1500.0 | N72: 400 | O72: Successful | P72: 2024-03-12 | S72: H
D73: INFY 1650 CE MAR | E73: Sell | F73: 21.5 | H73: 22.5 | K73: =F73-H73 -> -1 | L73: 50.00 | N73: 400
A74: 7 | B74: 2024-03-07 | D74: NIFTY 22500 CE 07 MAR | E74: Buy | F74: 16 | G74: 0 | H74: 41 | I74: 35-55 | J74: Profit of Rs.25/- | K74: =H74-F74 -> 25 | L74: 50.00 | M74: =(K74*N74)-L74 -> 1200.0 | N74: 50 | O74: Successful | P74: 2024-03-07 | S74: H
A75: 8 | B75: 2024-03-11 | D75: BANKNIFTY 47700 CE 13 MAR | E75: Buy | F75: 295 | G75: 190 | H75: 190 | I75: 400-500 | J75: Loss of Rs.105/- | K75: =H75-F75 -> -105 | L75: 50.00 | M75: -1625.0 | N75: 15 | O75: Unsuccessful | P75: 2024-03-11
A76: 9 | B76: 2024-03-11 | D76: FINNIFTY 20800 PE 12 MAR | E76: Sell | F76: 35 | H76: 33.5 | J76: Profit of Rs.12.5/- | K76: =F76-H76 -> 1.5 | L76: 50.00 | M76: 400.0 | N76: 40 | O76: Successful | P76: 2024-03-12
D77: FINNIFTY 20800 CE 12 MAR | E77: Sell | F77: 21 | H77: 10 | K77: =F77-H77 -> 11 | L77: 50.00 | N77: 40
A78: 10 | B78: 2024-03-12 | D78: FINNIFTY 20950 CE 12 MAR | E78: Buy | F78: 19 | G78: 0 | H78: 45 | I78: 70-90 | J78: Profit of Rs.26/- | K78: =H78-F78 -> 26 | L78: 50.00 | M78: =(K78*N78)-L78 -> 990.0 | N78: 40 | O78: Successful | P78: 2024-03-12
A79: 11 | B79: 2024-03-12 | D79: NIFTY 22500 CE 14 MAR | E79: Sell | F79: 72 | G79: 110 | H79: 52 | I79: 30-5 | J79: Profit of Rs.20/- | K79: =F79-H79 -> 20 | L79: 50.00 | M79: 950.0 | N79: 50 | O79: Successful | P79: 2024-03-12
A80: 12 | B80: 2024-03-12 | D80: BANKNIFTY 47000 PE 13 MAR | E80: Sell | F80: 80 | G80: 140 | H80: 115 | I80: 1 | J80: Loss of Rs.35/- | K80: =F80-H80 -> -35 | L80: 50.00 | M80: -575.0 | N80: 15 | O80: Unsuccessful | P80: 2024-03-12
A81: 13 | B81: 2024-03-13 | D81: FINNIFTY 21000 CE 19 MAR | E81: Buy | F81: 129 | G81: 99 | H81: 99 | I81: 170-200 | J81: Loss of Rs.30/- | K81: =H81-F81 -> -30 | L81: 50.00 | M81: =(K81*N81)-L81 -> -1250.0 | N81: 40 | O81: Unsuccessful | P81: 2024-03-13
A82: 14 | B82: 2024-03-13 | D82: BANKNIFTY 47200 CE 13 MAR | E82: Buy | F82: 52 | H82: 150 | J82: Profit of Rs.49/- | K82: =H82-F82 -> 98 | L82: 50.00 | M82: =49*15-75 -> 660.0 | N82: 15 | O82: Successful | P82: 2024-03-13
D83: BANKNIFTY 47000 PE 13 MAR | E83: Buy | F83: 49 | H83: 0 | K83: -49 | L83: 50.00 | N83: 15
A86: Techno -Funda (positional)
A87: Sr.no | B87: Date | D87: Company | E87: Rec | F87: Rec Price | G87: Stop Loss*** | H87: Call Closed At | I87: Target | J87: Remark | K87: Profit / Loss per Share/Lot | L87: All charges | M87: Net Gain / Loss % | N87: Status | O87: Closed Date | P87: Market Closing Price | Q87: Second Buying Date
A88: 1 | B88: 2024-02-14 | D88: SANSERA | E88: Accu | F88: 905-975 | G88: 818 | I88: 1100-1180 | J88: Open | S88: H
A89: 2 | B89: 2024-02-23 | D89: INDUSTOWER | E89: Accu | F89: 240 | G89: 205 | H89: 266 | I89: 280-320 | J89: Profit of Rs.26/- | K89: =H89-F89 -> 26 | L89: =(F89*-0.3)/100 -> -0.72 | M89: =(K89+L89)/F89 -> 10.53% | N89: Successful | O89: 2024-03-04 | S89: H
A90: 3 | B90: 2024-03-05 | D90: TRIDENT | E90: Accu | F90: 37.3-41.30 | G90: 35 | I90: 48-52 | J90: Open
A92: CLBS = Closing Basis *** | F92: Reinitiated $
A93: Dividend adjusted <> | F93: Revised stoploss # | H93: .................
B102: Investment Idea
A103: Sr.no | B103: Date | D103: Company | E103: Rec | F103: Rec Price | G103: Point of Review | H103: Close Rate | I103: Target | J103: Remark | K103: Profit / Loss per Share | L103: Gain / Loss % | M103: Status | N103: Closed Date
A104: 1 | B104: 2013-11-01 | D104: L&T Finance Holding | E104: Accu | F104: 82.00 | G104: - | H104: 100 | I104: 100.00 | J104: Target Achieved | K104: =H104-F104 -> 18.00 | L104: =K104/F104 -> 21.95% | M104: Successful | N104: 2016-10-14
A105: 2 | B105: 2014-06-04 | D105: Finolex Inds | E105: Buy | F105: 257.00 | G105: - | H105: 300 | I105: 300.00 | J105: Target Achieved | K105: 43.00 | L105: 16.73% | M105: Successful | N105: 2014-07-02
A106: 3 | B106: 2014-07-08 | D106: JK Cement | E106: Buy | F106: 393.00 | G106: - | H106: 468 | I106: 468.00 | J106: Target Achieved | K106: 75.00 | L106: 19.08% | M106: Successful | N106: 2014-08-12
A107: 4 | B107: 2014-08-06 | D107: Finolex Cables | E107: Buy | F107: 205.00 | G107: - | H107: 275 | I107: 250.00 | J107: Target Achieved | K107: 70.00 | L107: 34.15% | M107: Successful | N107: 2014-11-19
A108: 5 | B108: 2014-09-04 | D108: Exide Inds | E108: Buy | F108: 162.00 | G108: - | H108: 190 | I108: 190.00 | J108: Target Achieved | K108: 28.00 | L108: 17.28% | M108: Successful | N108: 2015-01-02
A109: 6 | B109: 2014-09-04 | D109: Deepak Nitrite | E109: Buy | F109: 75.00 | G109: - | H109: 91.5 | I109: 95-100 | J109: Profit of Rs.16.50/- | K109: 16.50 | L109: 22.00% | M109: Successful | N109: 2014-11-11
A110: 7 | B110: 2014-10-01 | D110: Mercks | E110: Buy | F110: 850.00 | G110: - | H110: 982.5 | I110: 1050.00 | J110: Profit of Rs.132.50/- | K110: 132.50 | L110: 15.59% | M110: Successful | N110: 2015-02-04
A111: 8 | B111: 2014-10-01 | D111: Grindwell Norton | E111: Buy | F111: 475.00 | G111: - | H111: 515 | I111: 600.00 | J111: Profit of Rs.40/- | K111: 40.00 | L111: 8.42% | M111: Successful | N111: 2014-10-27
A112: 9 | B112: 2014-10-01 | D112: Snowman Logistics | E112: Buy | F112: 86.00 | G112: - | H112: 99 | I112: 140.00 | J112: Profit of Rs.13.00/- | K112: 13.00 | L112: 15.12% | M112: Successful | N112: 2014-10-27
A113: 10 | B113: 2014-10-14 | D113: Birla Corp | E113: Buy | F113: 496.60 | G113: - | H113: 621 | I113: 580.00 | J113: Target Achieved | K113: 124.40 | L113: 25.05% | M113: Successful | N113: 2016-08-23
A114: 11 | B114: 2014-10-14 | D114: Ultratech Cem | E114: Buy | F114: 2481.90 | G114: - | H114: 2840 | I114: 2870.00 | J114: Profit of Rs.358.10/- | K114: 358.10 | L114: 14.43% | M114: Successful | N114: 2015-01-13
A115: 12 | B115: 2014-10-16 | D115: Sintex Inds | E115: Buy | F115: 84.50 | G115: - | H115: 93 | I115: 110.00 | J115: Profit of Rs.8.50/- | K115: 8.50 | L115: 10.06% | M115: Successful | N115: 2014-10-27
A116: 13 | B116: 2014-10-16 | D116: HSIL | E116: Buy | F116: 401.00 | G116: - | H116: 428 | I116: 450.00 | J116: Profit of Rs.27.00/- | K116: 27.00 | L116: 6.73% | M116: Successful | N116: 2015-01-16
A117: 14 | B117: 2014-10-16 | D117: Eveready Inds | E117: Buy | F117: 101.00 | G117: - | H117: 112 | I117: 120.00 | J117: Profit of Rs.11.00/- | K117: 11.00 | L117: 10.89% | M117: Successful | N117: 2014-10-27
A118: 15 | B118: 2014-11-11 | D118: Pennar Inds | E118: Buy | F118: 59.00 | G118: - | H118: 76 | I118: 76.00 | J118: Target Achieved | K118: 17.00 | L118: 28.81% | M118: Successful | N118: 2017-10-24
A119: 16 | B119: 2014-11-11 | D119: Snowman Logistics | E119: Buy | F119: 99.00 | G119: - | H119: 120 | I119: 120.00 | J119: Profit of Rs.21/- | K119: 21.00 | L119: 21.21% | M119: Successful | N119: 2014-11-17
A120: 17 | B120: 2014-11-13 | D120: Dharamsi Morarji Chem | E120: Buy | F120: 22.00 | G120: - | H120: 33.55 | I120: 32.00 | J120: Profit of Rs 11.55/- | K120: 11.55 | L120: 52.50% | M120: Successful | N120: 2015-07-03
A121: 18 | B121: 2014-12-03 | D121: Tatachem | E121: Buy | F121: 440.00 | G121: - | H121: 520 | I121: 520.00 | J121: Profit of Rs 80.00/- | K121: 80.00 | L121: 18.18% | M121: Successful | N121: 2015-07-23
A122: 19 | B122: 2014-12-03 | D122: Advanta | E122: Buy | F122: 360.00 | G122: - | H122: 427 | I122: 425.00 | J122: Profit of Rs.67.00/- | K122: 67.00 | L122: 18.61% | M122: Successful | N122: 2015-02-23
A123: 20 | B123: 2015-01-08 | D123: GDL | E123: Buy | F123: 360.00 | G123: - | H123: 455 | I123: 420.00 | J123: Profit of Rs.95.00/- | K123: 95.00 | L123: 26.39% | M123: Successful | N123: 2015-01-20
A124: 21 | B124: 2015-01-08 | D124: NRB Bearing | E124: Buy | F124: 130.00 | H124: 175.5 | I124: 165.00 | J124: Profit of Rs 45.50/- | K124: 45.50 | L124: 35.00% | M124: Successful | N124: 2017-12-19
A125: 22 | B125: 2015-02-05 | D125: GSFC | E125: Accu | F125: 98.00 | H125: 120 | I125: 120.00 | J125: Target Achieved | K125: 22.00 | L125: 22.45% | M125: Successful | N125: 2017-01-18
A126: 23 | B126: 2015-02-05 | D126: Sundrmfast | E126: Accu | F126: 196.00 | H126: 262 | I126: 255.00 | J126: Target Achieved | K126: 66.00 | L126: 33.67% | M126: Successful | N126: 2016-08-17
A127: 24 | B127: 2015-03-04 | D127: GPPL | E127: Accu | F127: 235 | H127: 77.00 | I127: 280-285 | J127: Loss of Rs.158/- | K127: -158.00 | L127: -67.23% | M127: Unsuccessful | N127: 2019-02-26
A128: 25 | B128: 2015-03-04 | D128: ORIENTCEM | E128: Accu | F128: 185.00 | H128: 224 | I128: 220-225 | J128: Target Achieved | K128: 39.00 | L128: 21.08% | M128: Successful | N128: 2016-10-04
A129: 26 | B129: 2015-03-27 | D129: PFS | E129: Accu | F129: 49.5 | H129: 15.85 | I129: 67.00 | J129: Loss of Rs.33.65/- | K129: -33.65 | L129: -68% | M129: Unsuccessful | N129: 2019-06-11
A130: 27 | B130: 2015-03-30 | D130: Walchandnagar Ind Ltd | E130: Accu | F130: 183.50 | H130: 219 | I130: 218.00 | J130: Profit of Rs.35.50/- | K130: 35.50 | L130: 19.35% | M130: Successful | N130: 2015-04-09
A131: 28 | B131: 2015-04-20 | D131: Kalpataru Power Transmission Ltd | E131: Accu | F131: =(227+237)/2 -> 232.00 | H131: 298 | I131: 298.00 | J131: Target Achieved | K131: 66.00 | L131: 28.45% | M131: Successful | N131: 2017-03-29
A132: 29 | B132: 2015-05-04 | D132: Mastek Ltd | E132: Buy | F132: 385.00 | H132: =212.5+331 -> 543.5 | I132: 510.00 | J132: Profit of Rs 158.50/- | K132: 158.50 | L132: 41.17% | M132: Successful | N132: 2015-08-19
A133: 30 | B133: 2015-05-04 | D133: Suprajit Eng | E133: Buy | F133: 115.50 | H133: 146 | I133: 142.00 | J133: Profit of Rs 30.50/- | K133: 30.50 | L133: 26.41% | M133: Successful | N133: 2015-07-17
A134: 31 | B134: 2015-05-27 | D134: TCI | E134: Buy | F134: 237.50 | H134: 279.5 | I134: 278.00 | J134: Target Achieved | K134: 42.00 | L134: 17.68% | M134: Successful | N134: 2015-08-06
A135: 32 | B135: 2015-06-19 | D135: HSIL | E135: Accu | F135: 340.00 | H135: 448 | I135: 448.00 | J135: Target Achieved | K135: 108.00 | L135: 31.76% | M135: Successful | N135: 2017-10-10
A136: 33 | B136: 2015-07-06 | D136: Capital First | E136: Accu | F136: 390.00 | H136: 460 | I136: 460.00 | J136: Target Achieved | K136: 70.00 | L136: 17.95% | M136: Successful | N136: 2016-04-18
A137: 34 | B137: 2015-07-10 | D137: Dolphin OffShore | E137: Accu | F137: 122.5 | H137: 61.00 | I137: 172.00 | J137: Loss of Rs.61.50/- | K137: -61.50 | L137: -50.20% | M137: Unsuccessful | N137: 2018-08-21
A138: 35 | B138: 2015-08-03 | D138: Allcargo logistics | E138: Accu | F138: 297.50 | H138: 350 | I138: 360.00 | J138: Profit of Rs 52.50/- | K138: 52.50 | L138: 17.65% | M138: Successful | N138: 2015-08-16
A139: 36 | B139: 2015-08-03 | D139: Camline Fine | E139: Accu | F139: 115.50 | H139: 149 | I139: 140.00 | J139: Profit of Rs 33.50/- | K139: 33.50 | L139: 29.00% | M139: Successful | N139: 2017-01-05
A140: 37 | B140: 2015-09-04 | D140: TCI | E140: Accu | F140: 226.00 | H140: 292 | I140: 292.00 | J140: Target Achieved | K140: 66.00 | L140: 29.20% | M140: Successful | N140: 2015-10-09
A141: 38 | B141: 2015-09-07 | D141: Kalpataru Power Transmission Ltd | E141: Accu | F141: 232.50 | H141: 312.5 | I141: 310.00 | J141: Target Achieved | K141: 80.00 | L141: 34.41% | M141: Successful | N141: 2017-03-29
A142: 39 | B142: 2015-09-21 | D142: LLOYD ELECTRIC & ENG LTD | E142: Accu | F142: 196.50 | H142: 238 | I142: 238.00 | J142: Target Achieved | K142: 41.50 | L142: 21.12% | M142: Successful | N142: 2015-10-14
A143: 40 | B143: 2015-09-24 | D143: L&T Finance Holding | E143: Accu | F143: 65.00 | H143: 82 | I143: 82.00 | J143: Target Achieved | K143: 17.00 | L143: 26.15% | M143: Successful | N143: 2016-07-27
A144: 41 | B144: 2015-10-14 | D144: KEC International ltd | E144: Accu | F144: 144.00 | H144: 182.5 | I144: 181.00 | J144: Target Achieved | K144: 38.50 | L144: 26.74% | M144: Successful | N144: 2017-03-23
A145: 42 | B145: 2015-10-14 | D145: Gruh Finance | E145: Accu | F145: 264.00 | H145: 311 | I145: 311.00 | J145: Target Achieved | K145: 47.00 | L145: 17.80% | M145: Successful | N145: 2016-08-22
A146: 43 | B146: 2015-11-10 | D146: Pidilitind | E146: Buy | F146: 549.50 | H146: 630 | I146: 630.00 | J146: Target Achieved | K146: 80.50 | L146: 14.65% | M146: Successful | N146: 2016-02-19
A147: 44 | B147: 2015-12-04 | D147: Zensar Technology | E147: Accu | F147: 1027.50 | H147: 1315 | I147: 1250.00 | J147: Target Achieved | K147: 287.50 | L147: 27.98% | M147: Successful | N147: 2018-05-24
A148: 45 | B148: 2015-12-29 | D148: Vinati Organics Ltd | E148: Accu | F148: 465.00 | H148: 540 | I148: 540.00 | J148: Target Achieved | K148: 75.00 | L148: 16.13% | M148: Successful | N148: 2016-06-09
A149: 46 | B149: 2016-01-11 | D149: GSFC | E149: Buy | F149: 81.00 | H149: 110 | I149: 110.00 | J149: Target Achieved | K149: 29.00 | L149: 35.80% | M149: Successful | N149: 2017-01-10
A150: 47 | B150: 2016-01-13 | D150: SSWL | E150: Buy | F150: 417.50 | H150: 547 | I150: 535.00 | J150: Target Achieved | K150: 129.50 | L150: 31.02% | M150: Successful | N150: 2016-07-27
A151: 48 | B151: 2016-02-08 | D151: Persistent System Ltd | E151: Accu | F151: 650.00 | H151: 800 | I151: 800.00 | J151: Target Achieved | K151: 150.00 | L151: 23.08% | M151: Successful | N151: 2018-02-23
A152: 49 | B152: 2016-03-04 | D152: UPL | E152: Accu | F152: 437.50 | H152: 504.5 | I152: 522.00 | J152: Profit of Rs.67/- | K152: 67.00 | L152: 15.31% | M152: Successful | N152: 2016-04-20
A153: 50 | B153: 2016-03-09 | D153: Ashoka Buildcon Ltd | E153: Accu | F153: 189.50 | H153: 218 | I153: 218.00 | J153: Target Achieved | K153: 28.50 | L153: 15.04% | M153: Successful | N153: 2017-10-26
A154: 51 | B154: 2016-04-11 | D154: PTC INDIA FIN SERV LTD | E154: Accu | F154: 36.5 | H154: 15.85 | I154: 60.00 | J154: Loss of Rs.20.65/- | K154: -20.65 | L154: -56.58% | M154: Unsuccessful | N154: 2019-06-11
A155: 52 | B155: 2016-04-12 | D155: CAMLINFINE $ | E155: Accu | F155: 93.00 | H155: 149 | I155: 140.00 | J155: Profit of Rs 56/- | K155: 56.00 | L155: 60.22% | M155: Successful | N155: 2017-01-05
A156: 53 | B156: 2016-04-12 | D156: Greaves Cotton Ltd. | E156: Accu | F156: 130.00 | H156: 150 | I156: 150-155 | J156: Target Achieved | K156: 20.00 | L156: 15.38% | M156: Successful | N156: 2016-07-13
A157: 54 | B157: 2016-04-13 | D157: DHFL | E157: Accu | F157: 196.00 | H157: 299 | I157: 299.00 | J157: Target Achieved | K157: 103.00 | L157: 52.55% | M157: Successful | N157: 2016-09-07
A158: 55 | B158: 2016-04-13 | D158: Magma | E158: Accu | F158: 88.00 | H158: 103 | I158: 103.00 | J158: Target Achieved | K158: 15.00 | L158: 17.05% | M158: Successful | N158: 2016-06-09
A159: 56 | B159: 2016-05-02 | D159: KEC International ltd $ | E159: Accu | F159: 127.50 | H159: 148 | I159: 148-150 | J159: Target Achieved | K159: =H159-F159 -> 20.50 | L159: =K159/F159 -> 16.08% | M159: Successful | N159: 2016-07-13
A160: 57 | B160: 2016-05-03 | D160: Mindtree | E160: Accu | F160: 675.00 | H160: 815 | I160: 790-800 | J160: Target Achieved | K160: 140.00 | L160: 20.74% | M160: Successful | N160: 2018-02-23
A161: 58 | B161: 2016-06-01 | D161: Atulauto | E161: Accu | F161: 500 | H161: 232.50 | I161: 565-570 | J161: Loss of Rs.267.50 /- | K161: -267.50 | L161: -53.50% | M161: Unsuccessful | N161: 2019-09-27
A162: 59 | B162: 2016-06-06 | D162: TRITURBINE | E162: Accu | F162: 110.00 | H162: 126.5 | I162: 125.00 | J162: Profit of Rs.16.50/- | K162: 16.50 | L162: 15.00% | M162: Successful | N162: 2016-07-01
A163: 60 | B163: 2016-06-17 | D163: Pennar Industries Ltd | E163: Accu | F163: 44.00 | H163: 69.5 | I163: 69.50 | J163: Profit of Rs.25.50/- | K163: 25.50 | L163: 57.95% | M163: Successful | N163: 2017-08-30
A164: 61 | B164: 2016-06-28 | D164: EVEREADY | E164: Accu | F164: 262.50 | H164: 340 | I164: 333.00 | J164: Profit of Rs.77.50/- | K164: 77.50 | L164: 29.52% | M164: Successful | N164: 2017-10-09
A165: 62 | B165: 2016-06-28 | D165: FIEMIND | E165: Accu | F165: 840.00 | H165: 1230 | I165: 1230.00 | J165: Target Achieved | K165: 390.00 | L165: 46.43% | M165: Successful | N165: 2016-10-06
A166: 63 | B166: 2016-07-05 | D166: Bajaj Corp Ltd | E166: Accu | F166: 395 | H166: =(468.5+342.5)/2 -> 405.50 | I166: 510.00 | J166: Profit of Rs.10.50/- | K166: =H166-F166 -> 10.50 | L166: =K166/F166 -> 3% | M166: Neutral | N166: 2019-05-21
A167: 64 | B167: 2016-08-02 | D167: GPPL $ | E167: Buy | F167: =169.5-12.8 -> 156.7 | H167: 77.00 | I167: 198-200 | J167: Loss of Rs.79.7/- | K167: -79.70 | L167: -50.86% | M167: Unsuccessful | N167: 2019-02-26
A168: 65 | B168: 2016-08-04 | D168: WONDERLA HOLIDAYS LTD | E168: Accu | F168: 400 | H168: 305.00 | I168: 475.00 | J168: Loss of Rs.95/- | K168: -95.00 | L168: -23.75% | M168: Unsuccessful | N168: 2019-05-21
A169: 66 | B169: 2016-08-11 | D169: CAMLINFINE | E169: Accu | F169: 86.50 | H169: 130 | I169: 130.00 | J169: Profit of Rs.43.50/- | K169: 43.50 | L169: 50.29% | M169: Successful | N169: 2017-12-22
A170: 67 | B170: 2016-08-18 | D170: GRANULES | E170: Accu | F170: 133.5 | H170: 126.50 | I170: 178.00 | J170: Exit | K170: -7.00 | L170: -5.24% | M170: Unsuccessful | N170: 2016-09-02
A171: 68 | B171: 2016-08-31 | D171: VA TECH WABAG | E171: Accu | F171: 560.00 | H171: 725 | I171: 725.00 | J171: Target Achieved | K171: 165.00 | L171: 29.46% | M171: Successful | N171: 2016-03-27
A172: 69 | B172: 2016-09-01 | D172: SKIPPER LIMITED | E172: Accu | F172: 160.50 | H172: 210 | I172: 210.00 | J172: Target Achieved | K172: 49.50 | L172: 30.84% | M172: Successful | N172: 2017-05-16
A173: 70 | B173: 2016-10-03 | D173: IFBIND | E173: Accu | F173: 430.00 | H173: 596 | I173: 575.00 | J173: Profit of Rs.166/- | K173: 166.00 | L173: 38.60% | M173: Successful | N173: 2017-02-03
A174: 71 | B174: 2016-10-14 | D174: ASIANTILES | E174: Accu | F174: 280.00 | H174: 345 | I174: 345.00 | J174: Target Achieved | K174: =H174-F174 -> 65.00 | L174: =K174/F174 -> 23.21% | M174: Successful | N174: 2017-03-20
A175: 72 | B175: 2016-10-14 | D175: DEEPIND | E175: Accu | F175: 245.00 | H175: 325.5 | I175: 330.00 | J175: Profit of Rs.80.5/- | K175: 80.50 | L175: 32.86% | M175: Successful | N175: 2017-02-03
A176: 73 | B176: 2016-10-17 | D176: DCBBANK | E176: Accu | F176: 125.00 | H176: 160 | I176: 160.00 | J176: Target Achieved | K176: 35.00 | L176: 28.00% | M176: Successful | N176: 2017-03-09
A177: 74 | B177: 2016-10-17 | D177: ORIENTREF | E177: Accu | F177: 114.00 | H177: 145 | I177: 145.00 | J177: Target Achieved | K177: 31.00 | L177: =K177/F177 -> 27.19% | M177: Successful | N177: 2017-05-04
A178: 75 | B178: 2016-10-17 | D178: GANECOS | E178: Accu | F178: 212.00 | H178: 280 | I178: 276.00 | J178: Profit of Rs.68/- | K178: 68.00 | L178: 32.08% | M178: Successful | N178: 2017-05-03
A179: 76 | B179: 2016-11-04 | D179: NBCC | E179: Accu | F179: 155.00 | H179: 210 | I179: 210.00 | J179: Profit of Rs.55/- | K179: 55.00 | L179: 35.48% | M179: Successful | N179: 2017-07-28
A180: 77 | B180: 2016-12-06 | D180: PRECAM | E180: Accu | F180: 150.5 | H180: 72.50 | I180: 174.00 | J180: Loss of Rs.78/- | K180: -78.00 | L180: -51.83% | M180: Unsuccessful | N180: 2018-08-21
A181: 78 | B181: 2016-12-08 | D181: INFRATEL | E181: Accu | F181: 380.00 | H181: 478 | I181: 468.00 | J181: Target Achieved | K181: =H181-F181 -> 98.00 | L181: =K181/F181 -> 25.79% | M181: Successful | N181: 2017-10-17
A182: 79 | B182: 2016-12-30 | D182: GODREJPROP | E182: Accu | F182: 305.00 | H182: 375 | I182: 375.00 | J182: Target Achieved | K182: 70.00 | L182: 22.95% | M182: Successful | N182: 2017-02-02
A183: 80 | B183: 2017-01-04 | D183: DEEPAKNTR | E183: Accu | F183: 99.50 | H183: 158 | I183: 158.00 | J183: Target Achieved | K183: 58.50 | L183: 58.79% | M183: Successful | N183: 2017-06-12
A184: 81 | B184: 2017-01-04 | D184: DEEPAKNTR | E184: Accu | F184: 99.50 | H184: 158 | I184: 158.00 | J184: Target Achieved | K184: 58.50 | L184: 58.79% | M184: Successful | N184: 2017-06-12
A185: 82 | B185: 2017-02-20 | D185: RECLTD | E185: Accu | F185: 140.50 | H185: 220 | I185: 220.00 | J185: Target Achieved | K185: =H185-F185 -> 79.50 | L185: =K185/F185 -> 56.58% | M185: Successful | N185: 2017-05-09
A186: 83 | B186: 2017-02-20 | D186: SUBROS | E186: Accu | F186: 202.50 | H186: 234 | I186: 234.00 | J186: Target Achieved | K186: 31.50 | L186: 15.56% | M186: Successful | N186: 2017-04-11
A187: 84 | B187: 2017-03-24 | D187: VRLLOG | E187: Accu | F187: 300.50 | H187: 417.5 | I187: 420.00 | J187: Profit of Rs.117/- | K187: =H187-F187 -> 117.00 | L187: =K187/F187 -> 38.94% | M187: Successful | N187: 2017-12-01
A188: 85 | B188: 2017-03-24 | D188: FIEMIND | E188: Accu | F188: 850.00 | H188: 1042.5 | I188: 1023.00 | J188: Profit of Rs 192.50/- | K188: 192.50 | L188: 22.65% | M188: Successful | N188: 2017-04-05
A189: 86 | B189: 2017-04-05 | D189: RATNAMANI | E189: Accu | F189: 785.00 | H189: 930 | I189: 920.00 | J189: Profit of Rs.145/- | K189: =H189-F189 -> 145.00 | L189: =K189/F189 -> 18.47% | M189: Successful | N189: 2017-08-29
A190: 87 | B190: 2017-04-06 | D190: ZEEMEDIA | E190: Accu | F190: 40 | H190: 13.10 | I190: 60.00 | J190: Loss of Rs.26.9/- | K190: -26.90 | L190: -67.25% | M190: Unsuccessful | N190: 2018-02-07
A191: 88 | B191: 2017-04-12 | D191: DABUR | E191: Accu | F191: 289.50 | H191: 354 | I191: 360.00 | J191: Profit of Rs.64.5/- | K191: =H191-F191 -> 64.50 | L191: =K191/F191 -> 22.28% | M191: Successful | N191: 2017-11-01
A192: 89 | B192: 2017-04-20 | D192: KPRMILL | E192: Accu | F192: 700.00 | H192: 840 | I192: 840.00 | J192: Profit of Rs.140/- | K192: 140.00 | L192: 20.00% | M192: Successful | N192: 2017-06-07
A193: 90 | B193: 2017-06-01 | D193: ESSELPACK | E193: Accu | F193: 130.00 | H193: 144.25 | I193: 170.00 | J193: Profit of Rs.14.25/- | K193: 14.25 | L193: 10.96% | M193: Successful | N193: 2019-07-29
A194: 91 | B194: 2017-06-15 | D194: KEI | E194: Accu | F194: 214.50 | H194: 262 | I194: 262.00 | J194: Profit of Rs.47.5/- | K194: 47.50 | L194: 22.14% | M194: Successful | N194: 2017-08-30
A195: 92 | B195: 2017-07-17 | D195: MAYURUNIQ | E195: Accu | F195: 370.00 | H195: 447.5 | I195: 450.00 | J195: Target Achieved | K195: 77.50 | L195: 20.95% | M195: Successful | N195: 2017-10-27
A196: 93 | B196: 2017-07-27 | D196: RAMCOCEM | E196: Accu | F196: 657.50 | H196: 825 | I196: 820.00 | J196: Target Achieved | K196: 167.50 | L196: 25.48% | M196: Successful | N196: 2017-12-21
A197: 94 | B197: 2017-08-17 | D197: FINPIPE | E197: Accu | F197: 605.00 | H197: 750 | I197: 750.00 | J197: Profit of Rs.145/- | K197: 145.00 | L197: 23.97% | M197: Successful | N197: 2017-10-19
A198: 95 | B198: 2017-09-01 | D198: SHK | E198: Accu | F198: 255 | H198: 217.25 | I198: 320.00 | J198: Loss of Rs.37.75/- | K198: -37.75 | L198: -15% | M198: Unsuccessful | N198: 2019-07-15
A199: 96 | B199: 2017-09-19 | D199: SKIPPER | E199: Accu | F199: 215.00 | H199: 258 | I199: 258.00 | J199: Target Achieved | K199: 43.00 | L199: 20.00% | M199: Successful | N199: 2017-11-01
A200: 97 | B200: 2017-09-19 | D200: SKIPPER | E200: Accu | F200: 215.00 | H200: 258 | I200: 258.00 | J200: Target Achieved | K200: 43.00 | L200: 20.00% | M200: Successful | N200: 2017-11-01
A201: 98 | B201: 2017-09-20 | D201: CAMLINFINE$ | E201: Accu | F201: 75.00 | H201: 90 | I201: 90.00 | J201: Profit of Rs.15.00/- | K201: =H201-F201 -> 15.00 | L201: =K201/F201 -> 20.00% | M201: Successful | N201: 2017-10-11
A202: 99 | B202: 2017-10-03 | D202: GNA | E202: Accu | F202: 315.00 | H202: 392 | I202: 384.00 | J202: Profit of Rs.77/- | K202: 77.00 | L202: 24.44% | M202: Successful | N202: 2017-10-09
A203: 100 | B203: 2017-10-05 | D203: NOCIL | E203: Accu | F203: 145.00 | H203: 179 | I203: 180.00 | J203: Profit of Rs.34/- | K203: 34.00 | L203: 23.45% | M203: Successful | N203: 2017-10-17
A204: 101 | B204: 2017-10-06 | D204: CENTURYPLY | E204: Accu | F204: 256.00 | H204: 323 | I204: 320.00 | J204: Target Achieved | K204: 67.00 | L204: 26.17% | M204: Successful | N204: 2017-11-28
A205: 102 | B205: 2017-10-09 | D205: EIHOTEL | E205: Accu | F205: 137.50 | H205: 184 | I205: 183.00 | J205: Profit of Rs.46.5/- | K205: 46.50 | L205: 33.82% | M205: Successful | N205: 2018-01-08
A206: 103 | B206: 2017-10-10 | D206: NRBBEARING | E206: Accu | F206: 125.50 | H206: 158 | I206: 155.00 | J206: Profit of Rs.32.5/- | K206: 32.50 | L206: 25.90% | M206: Successful | N206: 2017-11-28
A207: 104 | B207: 2017-10-10 | D207: BOROSIL | E207: Accu | F207: 895.00 | H207: 1122.5 | I207: 1078.00 | J207: Profit of Rs.227.5/- | K207: 227.50 | L207: 25.42% | M207: Successful | N207: 2018-01-17
A208: 105 | B208: 2017-10-12 | D208: CYIENT | E208: Accu | F208: 525.00 | H208: 629 | I208: 629.00 | J208: Target Achieved | K208: 104.00 | L208: 19.81% | M208: Successful | N208: 2018-01-19
A209: 106 | B209: 2017-11-07 | D209: HATSUN | E209: Accu | F209: 740.00 | H209: 892.5 | I209: 900.00 | J209: Profit of Rs.152.5/- | K209: =H209-F209 -> 152.50 | L209: =K209/F209 -> 20.61% | M209: Successful | N209: 2017-11-13
A210: 107 | B210: 2017-12-04 | D210: SANGHIIND | E210: Accu | F210: 118.50 | H210: 143.5 | I210: 145.00 | J210: Profit of Rs.25/- | K210: 25.00 | L210: 21.10% | M210: Successful | N210: 2017-12-28
A211: 108 | B211: 2017-12-21 | D211: KAJARIACER | E211: Accu | F211: 715 | H211: 500.00 | I211: 872.00 | J211: Loss of Rs.215/- | K211: -215.00 | L211: -30.07% | M211: Unsuccessful | N211: 2019-07-24
A212: 109 | B212: 2017-12-29 | D212: GNA | E212: Accu | F212: 435.00 | H212: 542.5 | I212: 539.00 | J212: Target Achieved | K212: 107.50 | L212: 24.71% | M212: Successful | N212: 2018-04-16
A213: 110 | B213: 2017-12-29 | D213: ZENSARTECH | E213: Accu | F213: 885.00 | H213: 1090 | I213: 1084.00 | J213: Target Achieved | K213: 205.00 | L213: 23.16% | M213: Successful | N213: 2018-04-23
A214: 111 | B214: 2018-04-02 | D214: EVERESTIND | E214: Accu | F214: 478.50 | H214: 442 | I214: 613.00 | J214: Loss of Rs.36.50 /- | K214: =H214-F214 -> -36.50 | L214: =K214/F214 -> -7.63% | M214: Unsuccessful | N214: 2019-10-24
A215: 112 | B215: 2018-04-04 | D215: GPPL$ | E215: Accu | F215: =141.5-7.3 -> 134.2 | H215: 77.00 | I215: 180.00 | J215: Loss of Rs.57.2/- | K215: -57.20 | L215: -42.62% | M215: Unsuccessful | N215: 2019-02-26
A216: 113 | B216: 2018-04-19 | D216: MANPASAND | E216: Accu | F216: 430 | H216: 220.00 | I216: 537.00 | J216: Loss of Rs.210/- | K216: -210.00 | L216: -48.84% | M216: Unsuccessful | N216: 2018-06-01
A217: 114 | B217: 2018-04-30 | D217: HEIDELBERG | E217: Accu | F217: 153.5 | H217: 196 | I217: 196.00 | J217: Profit of Rs.42.50/- | K217: 42.50 | L217: 27.69% | M217: Successful | N217: 2019-05-20
A218: 115 | B218: 2018-07-25 | D218: ZEEMEDIA | E218: Accu | F218: 27.5 | H218: 13.10 | I218: 60.00 | J218: Loss of Rs.14.40/- | K218: -14.40 | L218: -52.36% | M218: Unsuccessful | N218: 2018-02-07
A219: 116 | B219: 2018-08-06 | D219: GABRIEL | E219: Accu | F219: 148.5 | H219: 102 | I219: 182.00 | J219: Loss of Rs.46.50/- | K219: =H219-F219 -> -46.50 | L219: =K219/F219 -> -31.31% | M219: Unsuccessful | N219: 2019-07-15
A220: 117 | B220: 2018-08-23 | D220: INDIANHUME | E220: Accu | F220: 285 | H220: 355 | I220: 364.00 | J220: Profit of Rs.70/- | K220: 70.00 | L220: 24.56% | M220: Successful | N220: 2018-12-21
A221: 118 | B221: 2018-08-29 | D221: GRINDWELL | E221: Accu | F221: 525 | H221: 585 | I221: 635.00 | J221: Profit of Rs.60- | K221: =H221-F221 -> 60.00 | L221: =K221/F221 -> 11.43% | M221: Successful | N221: 2019-07-16
A222: 119 | B222: 2018-10-22 | D222: FINPIPE | E222: Accu | F222: 475 | H222: 574 | I222: 570.00 | J222: Target Achieved | K222: 99.00 | L222: 20.84% | M222: Successful | N222: 2018-10-30
A223: 120 | B223: 2018-10-24 | D223: GULFOILLUB | E223: Accu | F223: 707.5 | H223: 872 | I223: 872.00 | J223: Target Achieved | K223: 164.50 | L223: 23.25% | M223: Successful | N223: 2019-01-17
A224: 121 | B224: 2018-10-25 | D224: DBCORP | E224: Accu | F224: 162 | H224: 204 | I224: 209.00 | J224: Profit of Rs.42/- | K224: 42.00 | L224: 25.93% | M224: Successful | N224: 2019-03-15
A225: 122 | B225: 2018-10-26 | D225: RITES | E225: Accu | F225: 240 | H225: 297 | I225: 297.00 | J225: Target Achieved | K225: 57.00 | L225: 23.75% | M225: Successful | N225: 2018-11-13
A226: 123 | B226: 2018-12-05 | D226: BRIGADE | E226: Accu | F226: 202.5 | H226: 255 | I226: 252.00 | J226: Target Achieved | K226: 52.50 | L226: 25.93% | M226: Successful | N226: 2019-03-18 | S226: V
... 87 more rows
